Workbook

Sheet Overview
C2: BriQs finance demonstration
C4: Selected case | E4: ='Assumptions'!$G$4 -> Base | H4: EUR · entirely fictional
C6: Demonstration business
C7: As of 31 August 2026. January–August actuals, September–December forecast.
C9: August metric | E9: Actual | F9: Original budget | G9: Variance
C10: Revenue | E10: ='P&L'!L11 -> 261,500 | F10: ='Budget'!L11 -> 295,375 | G10: =E10-F10 -> (33,875)
C11: Gross profit | E11: ='P&L'!L16 -> 93,200 | F11: ='Budget'!L16 -> 148,075 | G11: =E11-F11 -> (54,875)
C12: EBITDA | E12: ='P&L'!L23 -> 8,600 | F12: ='Budget'!L23 -> 67,575 | G12: =E12-F12 -> (58,975)
C13: Net profit | E13: ='P&L'!L30 -> 2,433 | F13: ='Budget'!L30 -> 49,702 | G13: =E13-F13 -> (47,269)
C14: Gross margin | E14: ='P&L'!L17 -> 35.6% | F14: ='Budget'!L17 -> 50.1% | G14: =E14-F14 -> (14.5%)
C17: Cash at 31 August | E17: ='Balance sheet'!L8 -> €155,875
C18: Lowest end-of-day cash | E18: ='13 week cash'!K23 -> €14,092
C19: Reserve headroom / (shortfall) | E19: =E18-'Assumptions'!$E$74 -> (€60,908)
C20: Receivables overdue | E20: =SUM('Working capital'!E69:E72) -> €200,000
C21: AP awaiting approval / hold release | E21: ='Working capital'!E74 -> €17,000
C24: Full-year revenue | E24: =SUM('P&L'!E11:P11) -> 3,338,400
C25: Full-year EBITDA | E25: =SUM('P&L'!E23:P23) -> 510,125
C26: Year-end cash | E26: ='Balance sheet'!P8 -> 243,419
C30: CFO action register
C32: Priority | D32: Finding | E32: Metric EUR | F32: Action | G32: Owner | H32: Due | I32: Status
C33: High | D33: Revenue below August budget | E33: ='P&L'!L36 -> (33,875) | F33: Confirm September starts and reset delivery milestones. | G33: Commercial lead | H33: 2026-09-04 | I33: Open
C34: High | D34: Overdue customer invoices | E34: =SUM('Working capital'!E69:E72) -> 200,000 | F34: Secure written receipt dates for AR-2601 to AR-2605. | G34: Finance lead | H34: 2026-09-03 | I34: In progress
C35: High | D35: Lowest end-of-day cash | E35: ='13 week cash'!K23 -> 14,092 | F35: Review September capex and arrange reserve recovery. | G35: CFO | H35: 2026-09-07 | I35: Open
C36: Medium | D36: AP workflow prerequisites | E36: ='Working capital'!E74 -> 17,000 | F36: Resolve approval, review and hold separately for AP-2601/2604. | G36: Operations lead | H36: 2026-09-04 | I36: Awaiting review
C37: High | D37: August gross-profit gap | E37: ='P&L'!L16-'Budget'!L16 -> (54,875) | F37: Review project pricing, scope and subcontractor commitments. | G37: Delivery lead | H37: 2026-09-11 | I37: Open
C41: Monthly cash and liquidity
C43: Month | D43: Closing cash | E43: Reserve
C44: Jan | D44: ='Balance sheet'!E8 -> 237,250 | E44: ='Assumptions'!$E$74 -> 75,000
C45: Feb | D45: ='Balance sheet'!F8 -> 247,675 | E45: ='Assumptions'!$E$74 -> 75,000
C46: Mar | D46: ='Balance sheet'!G8 -> 232,975 | E46: ='Assumptions'!$E$74 -> 75,000
C47: Apr | D47: ='Balance sheet'!H8 -> 252,000 | E47: ='Assumptions'!$E$74 -> 75,000
C48: May | D48: ='Balance sheet'!I8 -> 257,775 | E48: ='Assumptions'!$E$74 -> 75,000
C49: Jun | D49: ='Balance sheet'!J8 -> 199,250 | E49: ='Assumptions'!$E$74 -> 75,000
C50: Jul | D50: ='Balance sheet'!K8 -> 188,000 | E50: ='Assumptions'!$E$74 -> 75,000
C51: Aug | D51: ='Balance sheet'!L8 -> 155,875 | E51: ='Assumptions'!$E$74 -> 75,000
C52: Sep | D52: ='Balance sheet'!M8 -> 143,562 | E52: ='Assumptions'!$E$74 -> 75,000
C53: Oct | D53: ='Balance sheet'!N8 -> 113,931 | E53: ='Assumptions'!$E$74 -> 75,000
C54: Nov | D54: ='Balance sheet'!O8 -> 165,933 | E54: ='Assumptions'!$E$74 -> 75,000
C55: Dec | D55: ='Balance sheet'!P8 -> 243,419 | E55: ='Assumptions'!$E$74 -> 75,000

Sheet Assumptions
C2: Assumptions
C4: Selected case | E4: 1 | F4: Case name | G4: =CHOOSE($E$4,"Base","Downside") -> Base | H4: EUR · entirely fictional
C5: 1 = Base, 2 = Downside
E6: Actual | F6: Actual | G6: Actual | H6: Actual | I6: Actual | J6: Actual | K6: Actual | L6: Actual | M6: Forecast | N6: Forecast | O6: Forecast | P6: Forecast
E7: 2026-01-01 | F7: 2026-02-01 | G7: 2026-03-01 | H7: 2026-04-01 | I7: 2026-05-01 | J7: 2026-06-01 | K7: 2026-07-01 | L7: 2026-08-01 | M7: 2026-09-01 | N7: 2026-10-01 | O7: 2026-11-01 | P7: 2026-12-01
C8: Active retainers — active | E8: ='Actual inputs'!E8 -> 18.0 | F8: ='Actual inputs'!F8 -> 19.0 | G8: ='Actual inputs'!G8 -> 19.0 | H8: ='Actual inputs'!H8 -> 20.0 | I8: ='Actual inputs'!I8 -> 21.0 | J8: ='Actual inputs'!J8 -> 21.0 | K8: ='Actual inputs'!K8 -> 22.0 | L8: ='Actual inputs'!L8 -> 22.0 | M8: =IF($E$4=1,IF(ISNUMBER(M9),M9,NA()),IF($E$4=2,IF(ISNUMBER(M10),M10,NA()),NA())) -> 23.0 | N8: =IF($E$4=1,IF(ISNUMBER(N9),N9,NA()),IF($E$4=2,IF(ISNUMBER(N10),N10,NA()),NA())) -> 24.0 | O8: =IF($E$4=1,IF(ISNUMBER(O9),O9,NA()),IF($E$4=2,IF(ISNUMBER(O10),O10,NA()),NA())) -> 25.0 | P8: =IF($E$4=1,IF(ISNUMBER(P9),P9,NA()),IF($E$4=2,IF(ISNUMBER(P10),P10,NA()),NA())) -> 26.0
C9: Base | M9: 23.0 | N9: 24.0 | O9: 25.0 | P9: 26.0
C10: Downside | M10: 21.0 | N10: 20.0 | O10: 20.0 | P10: 20.0
C11: Monthly retainer fee — active | E11: ='Actual inputs'!E9 -> 5,000 | F11: ='Actual inputs'!F9 -> 5,000 | G11: ='Actual inputs'!G9 -> 5,000 | H11: ='Actual inputs'!H9 -> 5,000 | I11: ='Actual inputs'!I9 -> 5,000 | J11: ='Actual inputs'!J9 -> 5,000 | K11: ='Actual inputs'!K9 -> 5,000 | L11: ='Actual inputs'!L9 -> 5,000 | M11: =IF($E$4=1,IF(ISNUMBER(M12),M12,NA()),IF($E$4=2,IF(ISNUMBER(M13),M13,NA()),NA())) -> 5,100 | N11: =IF($E$4=1,IF(ISNUMBER(N12),N12,NA()),IF($E$4=2,IF(ISNUMBER(N13),N13,NA()),NA())) -> 5,100 | O11: =IF($E$4=1,IF(ISNUMBER(O12),O12,NA()),IF($E$4=2,IF(ISNUMBER(O13),O13,NA()),NA())) -> 5,200 | P11: =IF($E$4=1,IF(ISNUMBER(P12),P12,NA()),IF($E$4=2,IF(ISNUMBER(P13),P13,NA()),NA())) -> 5,200
C12: Base | M12: 5,100 | N12: 5,100 | O12: 5,200 | P12: 5,200
C13: Downside | M13: 5,000 | N13: 5,000 | O13: 5,000 | P13: 5,000
C14: Billable project days — active | E14: ='Actual inputs'!E10 -> 135 | F14: ='Actual inputs'!F10 -> 140 | G14: ='Actual inputs'!G10 -> 150 | H14: ='Actual inputs'!H10 -> 155 | I14: ='Actual inputs'!I10 -> 152 | J14: ='Actual inputs'!J10 -> 145 | K14: ='Actual inputs'!K10 -> 158 | L14: ='Actual inputs'!L10 -> 150 | M14: =IF($E$4=1,IF(ISNUMBER(M15),M15,NA()),IF($E$4=2,IF(ISNUMBER(M16),M16,NA()),NA())) -> 170 | N14: =IF($E$4=1,IF(ISNUMBER(N15),N15,NA()),IF($E$4=2,IF(ISNUMBER(N16),N16,NA()),NA())) -> 180 | O14: =IF($E$4=1,IF(ISNUMBER(O15),O15,NA()),IF($E$4=2,IF(ISNUMBER(O16),O16,NA()),NA())) -> 185 | P14: =IF($E$4=1,IF(ISNUMBER(P15),P15,NA()),IF($E$4=2,IF(ISNUMBER(P16),P16,NA()),NA())) -> 170
C15: Base | M15: 170 | N15: 180 | O15: 185 | P15: 170
C16: Downside | M16: 140 | N16: 140 | O16: 145 | P16: 130
C17: Project day rate — active | E17: ='Actual inputs'!E11 -> 850 | F17: ='Actual inputs'!F11 -> 850 | G17: ='Actual inputs'!G11 -> 850 | H17: ='Actual inputs'!H11 -> 850 | I17: ='Actual inputs'!I11 -> 850 | J17: ='Actual inputs'!J11 -> 850 | K17: ='Actual inputs'!K11 -> 850 | L17: ='Actual inputs'!L11 -> 850 | M17: =IF($E$4=1,IF(ISNUMBER(M18),M18,NA()),IF($E$4=2,IF(ISNUMBER(M19),M19,NA()),NA())) -> 875 | N17: =IF($E$4=1,IF(ISNUMBER(N18),N18,NA()),IF($E$4=2,IF(ISNUMBER(N19),N19,NA()),NA())) -> 875 | O17: =IF($E$4=1,IF(ISNUMBER(O18),O18,NA()),IF($E$4=2,IF(ISNUMBER(O19),O19,NA()),NA())) -> 900 | P17: =IF($E$4=1,IF(ISNUMBER(P18),P18,NA()),IF($E$4=2,IF(ISNUMBER(P19),P19,NA()),NA())) -> 900
C18: Base | M18: 875 | N18: 875 | O18: 900 | P18: 900
C19: Downside | M19: 825 | N19: 825 | O19: 825 | P19: 825
C20: Implementations completed — active | E20: ='Actual inputs'!E12 -> 2.0 | F20: ='Actual inputs'!F12 -> 2.0 | G20: ='Actual inputs'!G12 -> 3.0 | H20: ='Actual inputs'!H12 -> 3.0 | I20: ='Actual inputs'!I12 -> 2.0 | J20: ='Actual inputs'!J12 -> 3.0 | K20: ='Actual inputs'!K12 -> 2.0 | L20: ='Actual inputs'!L12 -> 2.0 | M20: =IF($E$4=1,IF(ISNUMBER(M21),M21,NA()),IF($E$4=2,IF(ISNUMBER(M22),M22,NA()),NA())) -> 3.0 | N20: =IF($E$4=1,IF(ISNUMBER(N21),N21,NA()),IF($E$4=2,IF(ISNUMBER(N22),N22,NA()),NA())) -> 3.0 | O20: =IF($E$4=1,IF(ISNUMBER(O21),O21,NA()),IF($E$4=2,IF(ISNUMBER(O22),O22,NA()),NA())) -> 4.0 | P20: =IF($E$4=1,IF(ISNUMBER(P21),P21,NA()),IF($E$4=2,IF(ISNUMBER(P22),P22,NA()),NA())) -> 3.0
C21: Base | M21: 3.0 | N21: 3.0 | O21: 4.0 | P21: 3.0
C22: Downside | M22: 2.0 | N22: 2.0 | O22: 2.0 | P22: 2.0
C23: Implementation fee — active | E23: ='Actual inputs'!E13 -> 12,000 | F23: ='Actual inputs'!F13 -> 12,000 | G23: ='Actual inputs'!G13 -> 12,000 | H23: ='Actual inputs'!H13 -> 12,000 | I23: ='Actual inputs'!I13 -> 12,000 | J23: ='Actual inputs'!J13 -> 12,000 | K23: ='Actual inputs'!K13 -> 12,000 | L23: ='Actual inputs'!L13 -> 12,000 | M23: =IF($E$4=1,IF(ISNUMBER(M24),M24,NA()),IF($E$4=2,IF(ISNUMBER(M25),M25,NA()),NA())) -> 12,500 | N23: =IF($E$4=1,IF(ISNUMBER(N24),N24,NA()),IF($E$4=2,IF(ISNUMBER(N25),N25,NA()),NA())) -> 12,500 | O23: =IF($E$4=1,IF(ISNUMBER(O24),O24,NA()),IF($E$4=2,IF(ISNUMBER(O25),O25,NA()),NA())) -> 12,500 | P23: =IF($E$4=1,IF(ISNUMBER(P24),P24,NA()),IF($E$4=2,IF(ISNUMBER(P25),P25,NA()),NA())) -> 12,500
C24: Base | M24: 12,500 | N24: 12,500 | O24: 12,500 | P24: 12,500
C25: Downside | M25: 12,000 | N25: 12,000 | O25: 12,000 | P25: 12,000
C26: Paid delivery FTE — active | E26: ='Actual inputs'!E14 -> 20.0 | F26: ='Actual inputs'!F14 -> 20.0 | G26: ='Actual inputs'!G14 -> 20.0 | H26: ='Actual inputs'!H14 -> 21.0 | I26: ='Actual inputs'!I14 -> 21.0 | J26: ='Actual inputs'!J14 -> 21.0 | K26: ='Actual inputs'!K14 -> 22.0 | L26: ='Actual inputs'!L14 -> 22.0 | M26: =IF($E$4=1,IF(ISNUMBER(M27),M27,NA()),IF($E$4=2,IF(ISNUMBER(M28),M28,NA()),NA())) -> 22.0 | N26: =IF($E$4=1,IF(ISNUMBER(N27),N27,NA()),IF($E$4=2,IF(ISNUMBER(N28),N28,NA()),NA())) -> 22.0 | O26: =IF($E$4=1,IF(ISNUMBER(O27),O27,NA()),IF($E$4=2,IF(ISNUMBER(O28),O28,NA()),NA())) -> 23.0 | P26: =IF($E$4=1,IF(ISNUMBER(P27),P27,NA()),IF($E$4=2,IF(ISNUMBER(P28),P28,NA()),NA())) -> 23.0
C27: Base | M27: 22.0 | N27: 22.0 | O27: 23.0 | P27: 23.0
C28: Downside | M28: 22.0 | N28: 22.0 | O28: 22.0 | P28: 22.0
C29: Monthly loaded pay per FTE — active | E29: ='Actual inputs'!E15 -> 5,200 | F29: ='Actual inputs'!F15 -> 5,200 | G29: ='Actual inputs'!G15 -> 5,200 | H29: ='Actual inputs'!H15 -> 5,300 | I29: ='Actual inputs'!I15 -> 5,300 | J29: ='Actual inputs'!J15 -> 5,300 | K29: ='Actual inputs'!K15 -> 5,400 | L29: ='Actual inputs'!L15 -> 5,400 | M29: =IF($E$4=1,IF(ISNUMBER(M30),M30,NA()),IF($E$4=2,IF(ISNUMBER(M31),M31,NA()),NA())) -> 5,400 | N29: =IF($E$4=1,IF(ISNUMBER(N30),N30,NA()),IF($E$4=2,IF(ISNUMBER(N31),N31,NA()),NA())) -> 5,400 | O29: =IF($E$4=1,IF(ISNUMBER(O30),O30,NA()),IF($E$4=2,IF(ISNUMBER(O31),O31,NA()),NA())) -> 5,500 | P29: =IF($E$4=1,IF(ISNUMBER(P30),P30,NA()),IF($E$4=2,IF(ISNUMBER(P31),P31,NA()),NA())) -> 5,500
C30: Base | M30: 5,400 | N30: 5,400 | O30: 5,500 | P30: 5,500
C31: Downside | M31: 5,400 | N31: 5,400 | O31: 5,500 | P31: 5,500
C32: Subcontractor days — active | E32: ='Actual inputs'!E16 -> 42 | F32: ='Actual inputs'!F16 -> 44 | G32: ='Actual inputs'!G16 -> 47 | H32: ='Actual inputs'!H16 -> 48 | I32: ='Actual inputs'!I16 -> 51 | J32: ='Actual inputs'!J16 -> 56 | K32: ='Actual inputs'!K16 -> 60 | L32: ='Actual inputs'!L16 -> 65 | M32: =IF($E$4=1,IF(ISNUMBER(M33),M33,NA()),IF($E$4=2,IF(ISNUMBER(M34),M34,NA()),NA())) -> 52 | N32: =IF($E$4=1,IF(ISNUMBER(N33),N33,NA()),IF($E$4=2,IF(ISNUMBER(N34),N34,NA()),NA())) -> 50 | O32: =IF($E$4=1,IF(ISNUMBER(O33),O33,NA()),IF($E$4=2,IF(ISNUMBER(O34),O34,NA()),NA())) -> 50 | P32: =IF($E$4=1,IF(ISNUMBER(P33),P33,NA()),IF($E$4=2,IF(ISNUMBER(P34),P34,NA()),NA())) -> 46
C33: Base | M33: 52 | N33: 50 | O33: 50 | P33: 46
C34: Downside | M34: 62 | N34: 60 | O34: 58 | P34: 55
C35: Subcontractor day rate — active | E35: ='Actual inputs'!E17 -> 550 | F35: ='Actual inputs'!F17 -> 550 | G35: ='Actual inputs'!G17 -> 550 | H35: ='Actual inputs'!H17 -> 575 | I35: ='Actual inputs'!I17 -> 575 | J35: ='Actual inputs'!J17 -> 575 | K35: ='Actual inputs'!K17 -> 600 | L35: ='Actual inputs'!L17 -> 600 | M35: =IF($E$4=1,IF(ISNUMBER(M36),M36,NA()),IF($E$4=2,IF(ISNUMBER(M37),M37,NA()),NA())) -> 600 | N35: =IF($E$4=1,IF(ISNUMBER(N36),N36,NA()),IF($E$4=2,IF(ISNUMBER(N37),N37,NA()),NA())) -> 600 | O35: =IF($E$4=1,IF(ISNUMBER(O36),O36,NA()),IF($E$4=2,IF(ISNUMBER(O37),O37,NA()),NA())) -> 600 | P35: =IF($E$4=1,IF(ISNUMBER(P36),P36,NA()),IF($E$4=2,IF(ISNUMBER(P37),P37,NA()),NA())) -> 600
C36: Base | M36: 600 | N36: 600 | O36: 600 | P36: 600
C37: Downside | M37: 625 | N37: 625 | O37: 625 | P37: 625
C38: Direct software — active | E38: ='Actual inputs'!E18 -> 9,000 | F38: ='Actual inputs'!F18 -> 9,000 | G38: ='Actual inputs'!G18 -> 9,500 | H38: ='Actual inputs'!H18 -> 9,500 | I38: ='Actual inputs'!I18 -> 10,000 | J38: ='Actual inputs'!J18 -> 10,000 | K38: ='Actual inputs'!K18 -> 10,500 | L38: ='Actual inputs'!L18 -> 10,500 | M38: =IF($E$4=1,IF(ISNUMBER(M39),M39,NA()),IF($E$4=2,IF(ISNUMBER(M40),M40,NA()),NA())) -> 11,000 | N38: =IF($E$4=1,IF(ISNUMBER(N39),N39,NA()),IF($E$4=2,IF(ISNUMBER(N40),N40,NA()),NA())) -> 11,000 | O38: =IF($E$4=1,IF(ISNUMBER(O39),O39,NA()),IF($E$4=2,IF(ISNUMBER(O40),O40,NA()),NA())) -> 11,500 | P38: =IF($E$4=1,IF(ISNUMBER(P39),P39,NA()),IF($E$4=2,IF(ISNUMBER(P40),P40,NA()),NA())) -> 11,500
C39: Base | M39: 11,000 | N39: 11,000 | O39: 11,500 | P39: 11,500
C40: Downside | M40: 11,000 | N40: 11,000 | O40: 11,000 | P40: 11,000
C41: Sales and marketing — active | E41: ='Actual inputs'!E19 -> 18,000 | F41: ='Actual inputs'!F19 -> 18,000 | G41: ='Actual inputs'!G19 -> 19,000 | H41: ='Actual inputs'!H19 -> 19,000 | I41: ='Actual inputs'!I19 -> 20,000 | J41: ='Actual inputs'!J19 -> 20,000 | K41: ='Actual inputs'!K19 -> 22,000 | L41: ='Actual inputs'!L19 -> 22,000 | M41: =IF($E$4=1,IF(ISNUMBER(M42),M42,NA()),IF($E$4=2,IF(ISNUMBER(M43),M43,NA()),NA())) -> 22,000 | N41: =IF($E$4=1,IF(ISNUMBER(N42),N42,NA()),IF($E$4=2,IF(ISNUMBER(N43),N43,NA()),NA())) -> 23,000 | O41: =IF($E$4=1,IF(ISNUMBER(O42),O42,NA()),IF($E$4=2,IF(ISNUMBER(O43),O43,NA()),NA())) -> 23,000 | P41: =IF($E$4=1,IF(ISNUMBER(P42),P42,NA()),IF($E$4=2,IF(ISNUMBER(P43),P43,NA()),NA())) -> 22,000
C42: Base | M42: 22,000 | N42: 23,000 | O42: 23,000 | P42: 22,000
C43: Downside | M43: 20,000 | N43: 20,000 | O43: 20,000 | P43: 18,000
C44: Management and admin payroll — active | E44: ='Actual inputs'!E20 -> 40,000 | F44: ='Actual inputs'!F20 -> 40,000 | G44: ='Actual inputs'!G20 -> 40,000 | H44: ='Actual inputs'!H20 -> 42,000 | I44: ='Actual inputs'!I20 -> 42,000 | J44: ='Actual inputs'!J20 -> 42,000 | K44: ='Actual inputs'!K20 -> 44,000 | L44: ='Actual inputs'!L20 -> 44,000 | M44: =IF($E$4=1,IF(ISNUMBER(M45),M45,NA()),IF($E$4=2,IF(ISNUMBER(M46),M46,NA()),NA())) -> 44,000 | N44: =IF($E$4=1,IF(ISNUMBER(N45),N45,NA()),IF($E$4=2,IF(ISNUMBER(N46),N46,NA()),NA())) -> 44,000 | O44: =IF($E$4=1,IF(ISNUMBER(O45),O45,NA()),IF($E$4=2,IF(ISNUMBER(O46),O46,NA()),NA())) -> 46,000 | P44: =IF($E$4=1,IF(ISNUMBER(P45),P45,NA()),IF($E$4=2,IF(ISNUMBER(P46),P46,NA()),NA())) -> 46,000
C45: Base | M45: 44,000 | N45: 44,000 | O45: 46,000 | P45: 46,000
C46: Downside | M46: 44,000 | N46: 44,000 | O46: 44,000 | P46: 44,000
C47: Office and general costs — active | E47: ='Actual inputs'!E21 -> 10,500 | F47: ='Actual inputs'!F21 -> 10,500 | G47: ='Actual inputs'!G21 -> 10,500 | H47: ='Actual inputs'!H21 -> 10,500 | I47: ='Actual inputs'!I21 -> 10,500 | J47: ='Actual inputs'!J21 -> 10,500 | K47: ='Actual inputs'!K21 -> 10,500 | L47: ='Actual inputs'!L21 -> 10,500 | M47: =IF($E$4=1,IF(ISNUMBER(M48),M48,NA()),IF($E$4=2,IF(ISNUMBER(M49),M49,NA()),NA())) -> 10,500 | N47: =IF($E$4=1,IF(ISNUMBER(N48),N48,NA()),IF($E$4=2,IF(ISNUMBER(N49),N49,NA()),NA())) -> 10,500 | O47: =IF($E$4=1,IF(ISNUMBER(O48),O48,NA()),IF($E$4=2,IF(ISNUMBER(O49),O49,NA()),NA())) -> 11,000 | P47: =IF($E$4=1,IF(ISNUMBER(P48),P48,NA()),IF($E$4=2,IF(ISNUMBER(P49),P49,NA()),NA())) -> 11,000
C48: Base | M48: 10,500 | N48: 10,500 | O48: 11,000 | P48: 11,000
C49: Downside | M49: 10,500 | N49: 10,500 | O49: 10,500 | P49: 10,500
C50: Professional fees — active | E50: ='Actual inputs'!E22 -> 6,000 | F50: ='Actual inputs'!F22 -> 6,000 | G50: ='Actual inputs'!G22 -> 7,500 | H50: ='Actual inputs'!H22 -> 6,000 | I50: ='Actual inputs'!I22 -> 6,500 | J50: ='Actual inputs'!J22 -> 8,000 | K50: ='Actual inputs'!K22 -> 7,000 | L50: ='Actual inputs'!L22 -> 8,100 | M50: =IF($E$4=1,IF(ISNUMBER(M51),M51,NA()),IF($E$4=2,IF(ISNUMBER(M52),M52,NA()),NA())) -> 7,500 | N50: =IF($E$4=1,IF(ISNUMBER(N51),N51,NA()),IF($E$4=2,IF(ISNUMBER(N52),N52,NA()),NA())) -> 7,500 | O50: =IF($E$4=1,IF(ISNUMBER(O51),O51,NA()),IF($E$4=2,IF(ISNUMBER(O52),O52,NA()),NA())) -> 8,000 | P50: =IF($E$4=1,IF(ISNUMBER(P51),P51,NA()),IF($E$4=2,IF(ISNUMBER(P52),P52,NA()),NA())) -> 8,000
C51: Base | M51: 7,500 | N51: 7,500 | O51: 8,000 | P51: 8,000
C52: Downside | M52: 8,500 | N52: 8,500 | O52: 8,500 | P52: 8,500
C53: Target closing AR days — active | E53: ='Working capital'!E16/'P&L'!E11*31 -> 26 | F53: ='Working capital'!F16/'P&L'!F11*28 -> 24 | G53: ='Working capital'!G16/'P&L'!G11*31 -> 26 | H53: ='Working capital'!H16/'P&L'!H11*30 -> 27 | I53: ='Working capital'!I16/'P&L'!I11*31 -> 31 | J53: ='Working capital'!J16/'P&L'!J11*30 -> 33 | K53: ='Working capital'!K16/'P&L'!K11*31 -> 38 | L53: ='Working capital'!L16/'P&L'!L11*31 -> 43 | M53: =IF($E$4=1,IF(ISNUMBER(M54),M54,NA()),IF($E$4=2,IF(ISNUMBER(M55),M55,NA()),NA())) -> 40 | N53: =IF($E$4=1,IF(ISNUMBER(N54),N54,NA()),IF($E$4=2,IF(ISNUMBER(N55),N55,NA()),NA())) -> 38 | O53: =IF($E$4=1,IF(ISNUMBER(O54),O54,NA()),IF($E$4=2,IF(ISNUMBER(O55),O55,NA()),NA())) -> 36 | P53: =IF($E$4=1,IF(ISNUMBER(P54),P54,NA()),IF($E$4=2,IF(ISNUMBER(P55),P55,NA()),NA())) -> 36
C54: Base | M54: 40 | N54: 38 | O54: 36 | P54: 36
C55: Downside | M55: 52 | N55: 55 | O55: 58 | P55: 60
C56: New vendor AP / expense × month days — active | E56: ='Working capital'!E25/'Working capital'!E21*31 -> 54 | F56: ='Working capital'!F25/'Working capital'!F21*28 -> 49 | G56: ='Working capital'!G25/'Working capital'!G21*31 -> 53 | H56: ='Working capital'!H25/'Working capital'!H21*30 -> 53 | I56: ='Working capital'!I25/'Working capital'!I21*31 -> 48 | J56: ='Working capital'!J25/'Working capital'!J21*30 -> 46 | K56: ='Working capital'!K25/'Working capital'!K21*31 -> 47 | L56: ='Working capital'!L25/'Working capital'!L21*31 -> 49 | M56: =IF($E$4=1,IF(ISNUMBER(M57),M57,NA()),IF($E$4=2,IF(ISNUMBER(M58),M58,NA()),NA())) -> 28 | N56: =IF($E$4=1,IF(ISNUMBER(N57),N57,NA()),IF($E$4=2,IF(ISNUMBER(N58),N58,NA()),NA())) -> 28 | O56: =IF($E$4=1,IF(ISNUMBER(O57),O57,NA()),IF($E$4=2,IF(ISNUMBER(O58),O58,NA()),NA())) -> 28 | P56: =IF($E$4=1,IF(ISNUMBER(P57),P57,NA()),IF($E$4=2,IF(ISNUMBER(P58),P58,NA()),NA())) -> 28
C57: Base | M57: 28 | N57: 28 | O57: 28 | P57: 28
C58: Downside | M58: 28 | N58: 28 | O58: 28 | P58: 28
C59: Cash capital expenditure — active | E59: ='Actual inputs'!E28 -> 12,000 | F59: ='Actual inputs'!F28 -> 0 | G59: ='Actual inputs'!G28 -> 24,000 | H59: ='Actual inputs'!H28 -> 0 | I59: ='Actual inputs'!I28 -> 0 | J59: ='Actual inputs'!J28 -> 30,000 | K59: ='Actual inputs'!K28 -> 0 | L59: ='Actual inputs'!L28 -> 18,000 | M59: =IF($E$4=1,IF(ISNUMBER(M60),M60,NA()),IF($E$4=2,IF(ISNUMBER(M61),M61,NA()),NA())) -> 75,000 | N59: =IF($E$4=1,IF(ISNUMBER(N60),N60,NA()),IF($E$4=2,IF(ISNUMBER(N61),N61,NA()),NA())) -> 12,000 | O59: =IF($E$4=1,IF(ISNUMBER(O60),O60,NA()),IF($E$4=2,IF(ISNUMBER(O61),O61,NA()),NA())) -> 12,000 | P59: =IF($E$4=1,IF(ISNUMBER(P60),P60,NA()),IF($E$4=2,IF(ISNUMBER(P61),P61,NA()),NA())) -> 12,000
C60: Base | M60: 75,000 | N60: 12,000 | O60: 12,000 | P60: 12,000
C61: Downside | M61: 75,000 | N61: 12,000 | O61: 8,000 | P61: 8,000
C62: Tax cash payment — active | E62: ='Actual inputs'!E29 -> 0 | F62: ='Actual inputs'!F29 -> 0 | G62: ='Actual inputs'!G29 -> 20,000 | H62: ='Actual inputs'!H29 -> 0 | I62: ='Actual inputs'!I29 -> 0 | J62: ='Actual inputs'!J29 -> 18,000 | K62: ='Actual inputs'!K29 -> 0 | L62: ='Actual inputs'!L29 -> 0 | M62: =IF($E$4=1,IF(ISNUMBER(M63),M63,NA()),IF($E$4=2,IF(ISNUMBER(M64),M64,NA()),NA())) -> 25,000 | N62: =IF($E$4=1,IF(ISNUMBER(N63),N63,NA()),IF($E$4=2,IF(ISNUMBER(N64),N64,NA()),NA())) -> 0 | O62: =IF($E$4=1,IF(ISNUMBER(O63),O63,NA()),IF($E$4=2,IF(ISNUMBER(O64),O64,NA()),NA())) -> 0 | P62: =IF($E$4=1,IF(ISNUMBER(P63),P63,NA()),IF($E$4=2,IF(ISNUMBER(P64),P64,NA()),NA())) -> 15,000
C63: Base | M63: 25,000 | N63: 0 | O63: 0 | P63: 15,000
C64: Downside | M64: 25,000 | N64: 0 | O64: 0 | P64: 10,000
C65: Opening AR collection delay days — active | E65: 0 | F65: 0 | G65: 0 | H65: 0 | I65: 0 | J65: 0 | K65: 0 | L65: 0 | M65: =IF($E$4=1,IF(ISNUMBER(M66),M66,NA()),IF($E$4=2,IF(ISNUMBER(M67),M67,NA()),NA())) -> 0 | N65: =IF($E$4=1,IF(ISNUMBER(N66),N66,NA()),IF($E$4=2,IF(ISNUMBER(N67),N67,NA()),NA())) -> 0 | O65: =IF($E$4=1,IF(ISNUMBER(O66),O66,NA()),IF($E$4=2,IF(ISNUMBER(O67),O67,NA()),NA())) -> 0 | P65: =IF($E$4=1,IF(ISNUMBER(P66),P66,NA()),IF($E$4=2,IF(ISNUMBER(P67),P67,NA()),NA())) -> 0
C66: Base | M66: 0 | N66: 0 | O66: 0 | P66: 0
C67: Downside | M67: 14 | N67: 14 | O67: 14 | P67: 14
C70: Shared accounting and cash assumptions
C72: Illustrative positive-profit tax rate | E72: 20.0%
C73: Annual debt interest rate | E73: 6.0%
C74: Minimum cash reserve | E74: 75,000
C75: Opening assets monthly depreciation | E75: 2,500
C76: New asset life in months | E76: 36
C77: Monthly debt principal repayment | E77: 5,000
C78: Available days per paid FTE | E78: 20
C79: Delivery days per monthly retainer | E79: 5
C80: Delivery days per implementation | E80: 20
C81: Deferred revenue / retainer revenue | E81: 55.0%
C84: One selector feeds every forecast schedule. Actuals and original budget stay fixed.
C85: A blank selected driver returns an error. A valid zero remains zero.

Sheet P&L
C2: P&L
C4: Selected case | E4: ='Assumptions'!$G$4 -> Base | H4: EUR · entirely fictional
E6: Actual | F6: Actual | G6: Actual | H6: Actual | I6: Actual | J6: Actual | K6: Actual | L6: Actual | M6: Forecast | N6: Forecast | O6: Forecast | P6: Forecast
E7: 2026-01-01 | F7: 2026-02-01 | G7: 2026-03-01 | H7: 2026-04-01 | I7: 2026-05-01 | J7: 2026-06-01 | K7: 2026-07-01 | L7: 2026-08-01 | M7: 2026-09-01 | N7: 2026-10-01 | O7: 2026-11-01 | P7: 2026-12-01
C8: Retainers | E8: ='Revenue capacity'!E10 -> 90,000 | F8: ='Revenue capacity'!F10 -> 95,000 | G8: ='Revenue capacity'!G10 -> 95,000 | H8: ='Revenue capacity'!H10 -> 100,000 | I8: ='Revenue capacity'!I10 -> 105,000 | J8: ='Revenue capacity'!J10 -> 105,000 | K8: ='Revenue capacity'!K10 -> 110,000 | L8: ='Revenue capacity'!L10 -> 110,000 | M8: ='Revenue capacity'!M10 -> 117,300 | N8: ='Revenue capacity'!N10 -> 122,400 | O8: ='Revenue capacity'!O10 -> 130,000 | P8: ='Revenue capacity'!P10 -> 135,200
C9: Projects | E9: ='Revenue capacity'!E13 -> 114,750 | F9: ='Revenue capacity'!F13 -> 119,000 | G9: ='Revenue capacity'!G13 -> 127,500 | H9: ='Revenue capacity'!H13 -> 131,750 | I9: ='Revenue capacity'!I13 -> 129,200 | J9: ='Revenue capacity'!J13 -> 123,250 | K9: ='Revenue capacity'!K13 -> 134,300 | L9: ='Revenue capacity'!L13 -> 127,500 | M9: ='Revenue capacity'!M13 -> 148,750 | N9: ='Revenue capacity'!N13 -> 157,500 | O9: ='Revenue capacity'!O13 -> 166,500 | P9: ='Revenue capacity'!P13 -> 153,000
C10: Implementation | E10: ='Revenue capacity'!E16 -> 24,000 | F10: ='Revenue capacity'!F16 -> 24,000 | G10: ='Revenue capacity'!G16 -> 36,000 | H10: ='Revenue capacity'!H16 -> 36,000 | I10: ='Revenue capacity'!I16 -> 24,000 | J10: ='Revenue capacity'!J16 -> 36,000 | K10: ='Revenue capacity'!K16 -> 24,000 | L10: ='Revenue capacity'!L16 -> 24,000 | M10: ='Revenue capacity'!M16 -> 37,500 | N10: ='Revenue capacity'!N16 -> 37,500 | O10: ='Revenue capacity'!O16 -> 50,000 | P10: ='Revenue capacity'!P16 -> 37,500
C11: Revenue | E11: =SUM(E8:E10) -> €228,750 | F11: =SUM(F8:F10) -> €238,000 | G11: =SUM(G8:G10) -> €258,500 | H11: =SUM(H8:H10) -> €267,750 | I11: =SUM(I8:I10) -> €258,200 | J11: =SUM(J8:J10) -> €264,250 | K11: =SUM(K8:K10) -> €268,300 | L11: =SUM(L8:L10) -> €261,500 | M11: =SUM(M8:M10) -> €303,550 | N11: =SUM(N8:N10) -> €317,400 | O11: =SUM(O8:O10) -> €346,500 | P11: =SUM(P8:P10) -> €325,700
C12: Direct payroll | E12: =-'Revenue capacity'!E21 -> (104,000) | F12: =-'Revenue capacity'!F21 -> (104,000) | G12: =-'Revenue capacity'!G21 -> (104,000) | H12: =-'Revenue capacity'!H21 -> (111,300) | I12: =-'Revenue capacity'!I21 -> (111,300) | J12: =-'Revenue capacity'!J21 -> (111,300) | K12: =-'Revenue capacity'!K21 -> (118,800) | L12: =-'Revenue capacity'!L21 -> (118,800) | M12: =-'Revenue capacity'!M21 -> (118,800) | N12: =-'Revenue capacity'!N21 -> (118,800) | O12: =-'Revenue capacity'!O21 -> (126,500) | P12: =-'Revenue capacity'!P21 -> (126,500)
C13: Subcontractors | E13: =-'Revenue capacity'!E24 -> (23,100) | F13: =-'Revenue capacity'!F24 -> (24,200) | G13: =-'Revenue capacity'!G24 -> (25,850) | H13: =-'Revenue capacity'!H24 -> (27,600) | I13: =-'Revenue capacity'!I24 -> (29,325) | J13: =-'Revenue capacity'!J24 -> (32,200) | K13: =-'Revenue capacity'!K24 -> (36,000) | L13: =-'Revenue capacity'!L24 -> (39,000) | M13: =-'Revenue capacity'!M24 -> (31,200) | N13: =-'Revenue capacity'!N24 -> (30,000) | O13: =-'Revenue capacity'!O24 -> (30,000) | P13: =-'Revenue capacity'!P24 -> (27,600)
C14: Direct software | E14: =-'Revenue capacity'!E25 -> (9,000) | F14: =-'Revenue capacity'!F25 -> (9,000) | G14: =-'Revenue capacity'!G25 -> (9,500) | H14: =-'Revenue capacity'!H25 -> (9,500) | I14: =-'Revenue capacity'!I25 -> (10,000) | J14: =-'Revenue capacity'!J25 -> (10,000) | K14: =-'Revenue capacity'!K25 -> (10,500) | L14: =-'Revenue capacity'!L25 -> (10,500) | M14: =-'Revenue capacity'!M25 -> (11,000) | N14: =-'Revenue capacity'!N25 -> (11,000) | O14: =-'Revenue capacity'!O25 -> (11,500) | P14: =-'Revenue capacity'!P25 -> (11,500)
C15: Direct costs | E15: =SUM(E12:E14) -> (€136,100) | F15: =SUM(F12:F14) -> (€137,200) | G15: =SUM(G12:G14) -> (€139,350) | H15: =SUM(H12:H14) -> (€148,400) | I15: =SUM(I12:I14) -> (€150,625) | J15: =SUM(J12:J14) -> (€153,500) | K15: =SUM(K12:K14) -> (€165,300) | L15: =SUM(L12:L14) -> (€168,300) | M15: =SUM(M12:M14) -> (€161,000) | N15: =SUM(N12:N14) -> (€159,800) | O15: =SUM(O12:O14) -> (€168,000) | P15: =SUM(P12:P14) -> (€165,600)
C16: Gross profit | E16: =SUM(E11,E15) -> €92,650 | F16: =SUM(F11,F15) -> €100,800 | G16: =SUM(G11,G15) -> €119,150 | H16: =SUM(H11,H15) -> €119,350 | I16: =SUM(I11,I15) -> €107,575 | J16: =SUM(J11,J15) -> €110,750 | K16: =SUM(K11,K15) -> €103,000 | L16: =SUM(L11,L15) -> €93,200 | M16: =SUM(M11,M15) -> €142,550 | N16: =SUM(N11,N15) -> €157,600 | O16: =SUM(O11,O15) -> €178,500 | P16: =SUM(P11,P15) -> €160,100
C17: Gross margin | E17: =E16/E11 -> 40.5% | F17: =F16/F11 -> 42.4% | G17: =G16/G11 -> 46.1% | H17: =H16/H11 -> 44.6% | I17: =I16/I11 -> 41.7% | J17: =J16/J11 -> 41.9% | K17: =K16/K11 -> 38.4% | L17: =L16/L11 -> 35.6% | M17: =M16/M11 -> 47.0% | N17: =N16/N11 -> 49.7% | O17: =O16/O11 -> 51.5% | P17: =P16/P11 -> 49.2%
C18: Sales and marketing | E18: =-'Assumptions'!E41 -> (18,000) | F18: =-'Assumptions'!F41 -> (18,000) | G18: =-'Assumptions'!G41 -> (19,000) | H18: =-'Assumptions'!H41 -> (19,000) | I18: =-'Assumptions'!I41 -> (20,000) | J18: =-'Assumptions'!J41 -> (20,000) | K18: =-'Assumptions'!K41 -> (22,000) | L18: =-'Assumptions'!L41 -> (22,000) | M18: =-'Assumptions'!M41 -> (22,000) | N18: =-'Assumptions'!N41 -> (23,000) | O18: =-'Assumptions'!O41 -> (23,000) | P18: =-'Assumptions'!P41 -> (22,000)
C19: Management and admin payroll | E19: =-'Assumptions'!E44 -> (40,000) | F19: =-'Assumptions'!F44 -> (40,000) | G19: =-'Assumptions'!G44 -> (40,000) | H19: =-'Assumptions'!H44 -> (42,000) | I19: =-'Assumptions'!I44 -> (42,000) | J19: =-'Assumptions'!J44 -> (42,000) | K19: =-'Assumptions'!K44 -> (44,000) | L19: =-'Assumptions'!L44 -> (44,000) | M19: =-'Assumptions'!M44 -> (44,000) | N19: =-'Assumptions'!N44 -> (44,000) | O19: =-'Assumptions'!O44 -> (46,000) | P19: =-'Assumptions'!P44 -> (46,000)
C20: Office and general costs | E20: =-'Assumptions'!E47 -> (10,500) | F20: =-'Assumptions'!F47 -> (10,500) | G20: =-'Assumptions'!G47 -> (10,500) | H20: =-'Assumptions'!H47 -> (10,500) | I20: =-'Assumptions'!I47 -> (10,500) | J20: =-'Assumptions'!J47 -> (10,500) | K20: =-'Assumptions'!K47 -> (10,500) | L20: =-'Assumptions'!L47 -> (10,500) | M20: =-'Assumptions'!M47 -> (10,500) | N20: =-'Assumptions'!N47 -> (10,500) | O20: =-'Assumptions'!O47 -> (11,000) | P20: =-'Assumptions'!P47 -> (11,000)
C21: Professional fees | E21: =-'Assumptions'!E50 -> (6,000) | F21: =-'Assumptions'!F50 -> (6,000) | G21: =-'Assumptions'!G50 -> (7,500) | H21: =-'Assumptions'!H50 -> (6,000) | I21: =-'Assumptions'!I50 -> (6,500) | J21: =-'Assumptions'!J50 -> (8,000) | K21: =-'Assumptions'!K50 -> (7,000) | L21: =-'Assumptions'!L50 -> (8,100) | M21: =-'Assumptions'!M50 -> (7,500) | N21: =-'Assumptions'!N50 -> (7,500) | O21: =-'Assumptions'!O50 -> (8,000) | P21: =-'Assumptions'!P50 -> (8,000)
C22: Operating expenses | E22: =SUM(E18:E21) -> (€74,500) | F22: =SUM(F18:F21) -> (€74,500) | G22: =SUM(G18:G21) -> (€77,000) | H22: =SUM(H18:H21) -> (€77,500) | I22: =SUM(I18:I21) -> (€79,000) | J22: =SUM(J18:J21) -> (€80,500) | K22: =SUM(K18:K21) -> (€83,500) | L22: =SUM(L18:L21) -> (€84,600) | M22: =SUM(M18:M21) -> (€84,000) | N22: =SUM(N18:N21) -> (€85,000) | O22: =SUM(O18:O21) -> (€88,000) | P22: =SUM(P18:P21) -> (€87,000)
C23: EBITDA | E23: =SUM(E16,E22) -> €18,150 | F23: =SUM(F16,F22) -> €26,300 | G23: =SUM(G16,G22) -> €42,150 | H23: =SUM(H16,H22) -> €41,850 | I23: =SUM(I16,I22) -> €28,575 | J23: =SUM(J16,J22) -> €30,250 | K23: =SUM(K16,K22) -> €19,500 | L23: =SUM(L16,L22) -> €8,600 | M23: =SUM(M16,M22) -> €58,550 | N23: =SUM(N16,N22) -> €72,600 | O23: =SUM(O16,O22) -> €90,500 | P23: =SUM(P16,P22) -> €73,100
C24: EBITDA margin | E24: =E23/E11 -> 7.9% | F24: =F23/F11 -> 11.1% | G24: =G23/G11 -> 16.3% | H24: =H23/H11 -> 15.6% | I24: =I23/I11 -> 11.1% | J24: =J23/J11 -> 11.4% | K24: =K23/K11 -> 7.3% | L24: =L23/L11 -> 3.3% | M24: =M23/M11 -> 19.3% | N24: =N23/N11 -> 22.9% | O24: =O23/O11 -> 26.1% | P24: =P23/P11 -> 22.4%
C25: Depreciation | E25: =-'Assets debt'!E14 -> (2,833) | F25: =-'Assets debt'!F14 -> (2,833) | G25: =-'Assets debt'!G14 -> (3,500) | H25: =-'Assets debt'!H14 -> (3,500) | I25: =-'Assets debt'!I14 -> (3,500) | J25: =-'Assets debt'!J14 -> (4,333) | K25: =-'Assets debt'!K14 -> (4,333) | L25: =-'Assets debt'!L14 -> (4,833) | M25: =-'Assets debt'!M14 -> (6,917) | N25: =-'Assets debt'!N14 -> (7,250) | O25: =-'Assets debt'!O14 -> (7,583) | P25: =-'Assets debt'!P14 -> (7,917)
C26: EBIT | E26: =SUM(E23,E25) -> €15,317 | F26: =SUM(F23,F25) -> €23,467 | G26: =SUM(G23,G25) -> €38,650 | H26: =SUM(H23,H25) -> €38,350 | I26: =SUM(I23,I25) -> €25,075 | J26: =SUM(J23,J25) -> €25,917 | K26: =SUM(K23,K25) -> €15,167 | L26: =SUM(L23,L25) -> €3,767 | M26: =SUM(M23,M25) -> €51,633 | N26: =SUM(N23,N25) -> €65,350 | O26: =SUM(O23,O25) -> €82,917 | P26: =SUM(P23,P25) -> €65,183
C27: Interest | E27: =-'Assets debt'!E22 -> (900) | F27: =-'Assets debt'!F22 -> (875) | G27: =-'Assets debt'!G22 -> (850) | H27: =-'Assets debt'!H22 -> (825) | I27: =-'Assets debt'!I22 -> (800) | J27: =-'Assets debt'!J22 -> (775) | K27: =-'Assets debt'!K22 -> (750) | L27: =-'Assets debt'!L22 -> (725) | M27: =-'Assets debt'!M22 -> (700) | N27: =-'Assets debt'!N22 -> (675) | O27: =-'Assets debt'!O22 -> (650) | P27: =-'Assets debt'!P22 -> (625)
C28: Profit before tax | E28: =SUM(E26:E27) -> €14,417 | F28: =SUM(F26:F27) -> €22,592 | G28: =SUM(G26:G27) -> €37,800 | H28: =SUM(H26:H27) -> €37,525 | I28: =SUM(I26:I27) -> €24,275 | J28: =SUM(J26:J27) -> €25,142 | K28: =SUM(K26:K27) -> €14,417 | L28: =SUM(L26:L27) -> €3,042 | M28: =SUM(M26:M27) -> €50,933 | N28: =SUM(N26:N27) -> €64,675 | O28: =SUM(O26:O27) -> €82,267 | P28: =SUM(P26:P27) -> €64,558
C29: Illustrative tax expense | E29: =-MAX(0,E28)*'Assumptions'!$E$72 -> (2,883) | F29: =-MAX(0,F28)*'Assumptions'!$E$72 -> (4,518) | G29: =-MAX(0,G28)*'Assumptions'!$E$72 -> (7,560) | H29: =-MAX(0,H28)*'Assumptions'!$E$72 -> (7,505) | I29: =-MAX(0,I28)*'Assumptions'!$E$72 -> (4,855) | J29: =-MAX(0,J28)*'Assumptions'!$E$72 -> (5,028) | K29: =-MAX(0,K28)*'Assumptions'!$E$72 -> (2,883) | L29: =-MAX(0,L28)*'Assumptions'!$E$72 -> (608) | M29: =-MAX(0,M28)*'Assumptions'!$E$72 -> (10,187) | N29: =-MAX(0,N28)*'Assumptions'!$E$72 -> (12,935) | O29: =-MAX(0,O28)*'Assumptions'!$E$72 -> (16,453) | P29: =-MAX(0,P28)*'Assumptions'!$E$72 -> (12,912)
C30: Net profit | E30: =SUM(E28:E29) -> €11,533 | F30: =SUM(F28:F29) -> €18,073 | G30: =SUM(G28:G29) -> €30,240 | H30: =SUM(H28:H29) -> €30,020 | I30: =SUM(I28:I29) -> €19,420 | J30: =SUM(J28:J29) -> €20,113 | K30: =SUM(K28:K29) -> €11,533 | L30: =SUM(L28:L29) -> €2,433 | M30: =SUM(M28:M29) -> €40,747 | N30: =SUM(N28:N29) -> €51,740 | O30: =SUM(O28:O29) -> €65,813 | P30: =SUM(P28:P29) -> €51,647
C34: Original budget comparison
C35: Revenue budget | E35: ='Budget'!E11 -> 268,125 | F35: ='Budget'!F11 -> 269,875 | G35: ='Budget'!G11 -> 276,625 | H35: ='Budget'!H11 -> 278,375 | I35: ='Budget'!I11 -> 285,125 | J35: ='Budget'!J11 -> 286,875 | K35: ='Budget'!K11 -> 293,625 | L35: ='Budget'!L11 -> 295,375 | M35: ='Budget'!M11 -> 302,125 | N35: ='Budget'!N11 -> 303,875 | O35: ='Budget'!O11 -> 310,625 | P35: ='Budget'!P11 -> 312,375
C36: Revenue above / (below) budget | E36: =E11-E35 -> (39,375) | F36: =F11-F35 -> (31,875) | G36: =G11-G35 -> (18,125) | H36: =H11-H35 -> (10,625) | I36: =I11-I35 -> (26,925) | J36: =J11-J35 -> (22,625) | K36: =K11-K35 -> (25,325) | L36: =L11-L35 -> (33,875) | M36: =M11-M35 -> 1,425 | N36: =N11-N35 -> 13,525 | O36: =O11-O35 -> 35,875 | P36: =P11-P35 -> 13,325
C37: Revenue variance % | E37: =E36/E35 -> (14.7%) | F37: =F36/F35 -> (11.8%) | G37: =G36/G35 -> (6.6%) | H37: =H36/H35 -> (3.8%) | I37: =I36/I35 -> (9.4%) | J37: =J36/J35 -> (7.9%) | K37: =K36/K35 -> (8.6%) | L37: =L36/L35 -> (11.5%) | M37: =M36/M35 -> 0.5% | N37: =N36/N35 -> 4.5% | O37: =O36/O35 -> 11.5% | P37: =P36/P35 -> 4.3%
C39: EBITDA budget | E39: ='Budget'!E23 -> 52,875 | F39: ='Budget'!F23 -> 53,875 | G39: ='Budget'!G23 -> 59,875 | H39: ='Budget'!H23 -> 60,875 | I39: ='Budget'!I23 -> 59,575 | J39: ='Budget'!J23 -> 60,575 | K39: ='Budget'!K23 -> 66,575 | L39: ='Budget'!L23 -> 67,575 | M39: ='Budget'!M23 -> 66,075 | N39: ='Budget'!N23 -> 67,075 | O39: ='Budget'!O23 -> 73,075 | P39: ='Budget'!P23 -> 74,075
C40: EBITDA favorable / (unfavorable) | E40: =E23-E39 -> (34,725) | F40: =F23-F39 -> (27,575) | G40: =G23-G39 -> (17,725) | H40: =H23-H39 -> (19,025) | I40: =I23-I39 -> (31,000) | J40: =J23-J39 -> (30,325) | K40: =K23-K39 -> (47,075) | L40: =L23-L39 -> (58,975) | M40: =M23-M39 -> (7,525) | N40: =N23-N39 -> 5,525 | O40: =O23-O39 -> 17,425 | P40: =P23-P39 -> (975)
C42: Gross margin budget | E42: ='Budget'!E17 -> 48.4% | F42: ='Budget'!F17 -> 48.7% | G42: ='Budget'!G17 -> 49.8% | H42: ='Budget'!H17 -> 50.1% | I42: ='Budget'!I17 -> 48.6% | J42: ='Budget'!J17 -> 48.8% | K42: ='Budget'!K17 -> 49.9% | L42: ='Budget'!L17 -> 50.1% | M42: ='Budget'!M17 -> 48.7% | N42: ='Budget'!N17 -> 48.9% | O42: ='Budget'!O17 -> 49.9% | P42: ='Budget'!P17 -> 50.1%
C43: Gross margin variance (points) | E43: =E17-E42 -> (7.9%) | F43: =F17-F42 -> (6.3%) | G43: =G17-G42 -> (3.7%) | H43: =H17-H42 -> (5.5%) | I43: =I17-I42 -> (6.9%) | J43: =J17-J42 -> (6.9%) | K43: =K17-K42 -> (11.5%) | L43: =L17-L42 -> (14.5%) | M43: =M17-M42 -> (1.7%) | N43: =N17-N42 -> 0.8% | O43: =O17-O42 -> 1.6% | P43: =P17-P42 -> (1.0%)

Sheet Balance sheet
C2: Balance sheet
C4: Selected case | E4: ='Assumptions'!$G$4 -> Base | H4: EUR · entirely fictional
E6: Actual | F6: Actual | G6: Actual | H6: Actual | I6: Actual | J6: Actual | K6: Actual | L6: Actual | M6: Forecast | N6: Forecast | O6: Forecast | P6: Forecast
E7: 2026-01-01 | F7: 2026-02-01 | G7: 2026-03-01 | H7: 2026-04-01 | I7: 2026-05-01 | J7: 2026-06-01 | K7: 2026-07-01 | L7: 2026-08-01 | M7: 2026-09-01 | N7: 2026-10-01 | O7: 2026-11-01 | P7: 2026-12-01
C8: Cash | E8: ='Cash flow'!E23 -> 237,250 | F8: ='Cash flow'!F23 -> 247,675 | G8: ='Cash flow'!G23 -> 232,975 | H8: ='Cash flow'!H23 -> 252,000 | I8: ='Cash flow'!I23 -> 257,775 | J8: ='Cash flow'!J23 -> 199,250 | K8: ='Cash flow'!K23 -> 188,000 | L8: ='Cash flow'!L23 -> 155,875 | M8: ='Cash flow'!M23 -> 143,562 | N8: ='Cash flow'!N23 -> 113,931 | O8: ='Cash flow'!O23 -> 165,933 | P8: ='Cash flow'!P23 -> 243,419
C9: Accounts receivable | E9: ='Working capital'!E16 -> 190,000 | F9: ='Working capital'!F16 -> 205,000 | G9: ='Working capital'!G16 -> 215,000 | H9: ='Working capital'!H16 -> 245,000 | I9: ='Working capital'!I16 -> 260,000 | J9: ='Working capital'!J16 -> 290,000 | K9: ='Working capital'!K16 -> 325,000 | L9: ='Working capital'!L16 -> 360,000 | M9: ='Working capital'!M16 -> 304,065 | N9: ='Working capital'!N16 -> 389,071 | O9: ='Working capital'!O16 -> 415,800 | P9: ='Working capital'!P16 -> 378,232
C10: Prepayments | E10: ='Working capital'!E29 -> 18,000 | F10: ='Working capital'!F29 -> 18,000 | G10: ='Working capital'!G29 -> 20,000 | H10: ='Working capital'!H29 -> 18,000 | I10: ='Working capital'!I29 -> 18,000 | J10: ='Working capital'!J29 -> 24,000 | K10: ='Working capital'!K29 -> 22,000 | L10: ='Working capital'!L29 -> 20,000 | M10: ='Working capital'!M29 -> 20,000 | N10: ='Working capital'!N29 -> 20,000 | O10: ='Working capital'!O29 -> 20,000 | P10: ='Working capital'!P29 -> 20,000
C11: Current tax prepayment | E11: =MAX(0,-'Assets debt'!E27) -> 0 | F11: =MAX(0,-'Assets debt'!F27) -> 0 | G11: =MAX(0,-'Assets debt'!G27) -> 0 | H11: =MAX(0,-'Assets debt'!H27) -> 0 | I11: =MAX(0,-'Assets debt'!I27) -> 0 | J11: =MAX(0,-'Assets debt'!J27) -> 0 | K11: =MAX(0,-'Assets debt'!K27) -> 0 | L11: =MAX(0,-'Assets debt'!L27) -> 0 | M11: =MAX(0,-'Assets debt'!M27) -> 4,972 | N11: =MAX(0,-'Assets debt'!N27) -> 0 | O11: =MAX(0,-'Assets debt'!O27) -> 0 | P11: =MAX(0,-'Assets debt'!P27) -> 0
C12: Current assets | E12: =SUM(E8:E11) -> €445,250 | F12: =SUM(F8:F11) -> €470,675 | G12: =SUM(G8:G11) -> €467,975 | H12: =SUM(H8:H11) -> €515,000 | I12: =SUM(I8:I11) -> €535,775 | J12: =SUM(J8:J11) -> €513,250 | K12: =SUM(K8:K11) -> €535,000 | L12: =SUM(L8:L11) -> €535,875 | M12: =SUM(M8:M11) -> €472,598 | N12: =SUM(N8:N11) -> €523,002 | O12: =SUM(O8:O11) -> €601,733 | P12: =SUM(P8:P11) -> €641,651
C13: Fixed assets at cost | E13: ='Assets debt'!E10 -> 132,000 | F13: ='Assets debt'!F10 -> 132,000 | G13: ='Assets debt'!G10 -> 156,000 | H13: ='Assets debt'!H10 -> 156,000 | I13: ='Assets debt'!I10 -> 156,000 | J13: ='Assets debt'!J10 -> 186,000 | K13: ='Assets debt'!K10 -> 186,000 | L13: ='Assets debt'!L10 -> 204,000 | M13: ='Assets debt'!M10 -> 279,000 | N13: ='Assets debt'!N10 -> 291,000 | O13: ='Assets debt'!O10 -> 303,000 | P13: ='Assets debt'!P10 -> 315,000
C14: Accumulated depreciation | E14: ='Assets debt'!E15 -> 38,833 | F14: ='Assets debt'!F15 -> 41,667 | G14: ='Assets debt'!G15 -> 45,167 | H14: ='Assets debt'!H15 -> 48,667 | I14: ='Assets debt'!I15 -> 52,167 | J14: ='Assets debt'!J15 -> 56,500 | K14: ='Assets debt'!K15 -> 60,833 | L14: ='Assets debt'!L15 -> 65,667 | M14: ='Assets debt'!M15 -> 72,583 | N14: ='Assets debt'!N15 -> 79,833 | O14: ='Assets debt'!O15 -> 87,417 | P14: ='Assets debt'!P15 -> 95,333
C15: Net fixed assets | E15: =E13-E14 -> €93,167 | F15: =F13-F14 -> €90,333 | G15: =G13-G14 -> €110,833 | H15: =H13-H14 -> €107,333 | I15: =I13-I14 -> €103,833 | J15: =J13-J14 -> €129,500 | K15: =K13-K14 -> €125,167 | L15: =L13-L14 -> €138,333 | M15: =M13-M14 -> €206,417 | N15: =N13-N14 -> €211,167 | O15: =O13-O14 -> €215,583 | P15: =P13-P14 -> €219,667
C16: Total assets | E16: =SUM(E12,E15) -> €538,417 | F16: =SUM(F12,F15) -> €561,008 | G16: =SUM(G12,G15) -> €578,808 | H16: =SUM(H12,H15) -> €622,333 | I16: =SUM(I12,I15) -> €639,608 | J16: =SUM(J12,J15) -> €642,750 | K16: =SUM(K12,K15) -> €660,167 | L16: =SUM(L12,L15) -> €674,208 | M16: =SUM(M12,M15) -> €679,015 | N16: =SUM(N12,N15) -> €734,169 | O16: =SUM(O12,O15) -> €817,317 | P16: =SUM(P12,P15) -> €861,318
C17: Accounts payable | E17: ='Working capital'!E25 -> 56,000 | F17: ='Working capital'!F25 -> 58,000 | G17: ='Working capital'!G25 -> 60,000 | H17: ='Working capital'!H25 -> 66,000 | I17: ='Working capital'!I25 -> 61,000 | J17: ='Working capital'!J25 -> 65,000 | K17: ='Working capital'!K25 -> 70,000 | L17: ='Working capital'!L25 -> 78,000 | M17: ='Working capital'!M25 -> 56,387 | N17: ='Working capital'!N25 -> 54,032 | O17: ='Working capital'!O25 -> 55,733 | P17: ='Working capital'!P25 -> 52,316
C18: Accruals | E18: ='Working capital'!E30 -> 28,000 | F18: ='Working capital'!F30 -> 29,000 | G18: ='Working capital'!G30 -> 30,000 | H18: ='Working capital'!H30 -> 31,000 | I18: ='Working capital'!I30 -> 32,000 | J18: ='Working capital'!J30 -> 33,000 | K18: ='Working capital'!K30 -> 34,000 | L18: ='Working capital'!L30 -> 36,000 | M18: ='Working capital'!M30 -> 36,000 | N18: ='Working capital'!N30 -> 36,000 | O18: ='Working capital'!O30 -> 36,000 | P18: ='Working capital'!P30 -> 36,000
C19: Deferred revenue | E19: ='Working capital'!E13 -> 50,000 | F19: ='Working capital'!F13 -> 52,000 | G19: ='Working capital'!G13 -> 54,000 | H19: ='Working capital'!H13 -> 58,000 | I19: ='Working capital'!I13 -> 60,000 | J19: ='Working capital'!J13 -> 56,000 | K19: ='Working capital'!K13 -> 58,000 | L19: ='Working capital'!L13 -> 64,000 | M19: ='Working capital'!M13 -> 64,515 | N19: ='Working capital'!N13 -> 67,320 | O19: ='Working capital'!O13 -> 71,500 | P19: ='Working capital'!P13 -> 74,360
C20: Tax payable | E20: =MAX(0,'Assets debt'!E27) -> 14,883 | F20: =MAX(0,'Assets debt'!F27) -> 19,402 | G20: =MAX(0,'Assets debt'!G27) -> 6,962 | H20: =MAX(0,'Assets debt'!H27) -> 14,467 | I20: =MAX(0,'Assets debt'!I27) -> 19,322 | J20: =MAX(0,'Assets debt'!J27) -> 6,350 | K20: =MAX(0,'Assets debt'!K27) -> 9,233 | L20: =MAX(0,'Assets debt'!L27) -> 9,842 | M20: =MAX(0,'Assets debt'!M27) -> 0 | N20: =MAX(0,'Assets debt'!N27) -> 7,963 | O20: =MAX(0,'Assets debt'!O27) -> 24,417 | P20: =MAX(0,'Assets debt'!P27) -> 22,328
C21: Current operating liabilities | E21: =SUM(E17:E20) -> €148,883 | F21: =SUM(F17:F20) -> €158,402 | G21: =SUM(G17:G20) -> €150,962 | H21: =SUM(H17:H20) -> €169,467 | I21: =SUM(I17:I20) -> €172,322 | J21: =SUM(J17:J20) -> €160,350 | K21: =SUM(K17:K20) -> €171,233 | L21: =SUM(L17:L20) -> €187,842 | M21: =SUM(M17:M20) -> €156,902 | N21: =SUM(N17:N20) -> €165,316 | O21: =SUM(O17:O20) -> €187,650 | P21: =SUM(P17:P20) -> €185,004
C22: Debt | E22: ='Assets debt'!E20 -> 175,000 | F22: ='Assets debt'!F20 -> 170,000 | G22: ='Assets debt'!G20 -> 165,000 | H22: ='Assets debt'!H20 -> 160,000 | I22: ='Assets debt'!I20 -> 155,000 | J22: ='Assets debt'!J20 -> 150,000 | K22: ='Assets debt'!K20 -> 145,000 | L22: ='Assets debt'!L20 -> 140,000 | M22: ='Assets debt'!M20 -> 135,000 | N22: ='Assets debt'!N20 -> 130,000 | O22: ='Assets debt'!O20 -> 125,000 | P22: ='Assets debt'!P20 -> 120,000
C23: Total liabilities | E23: =SUM(E21:E22) -> €323,883 | F23: =SUM(F21:F22) -> €328,402 | G23: =SUM(G21:G22) -> €315,962 | H23: =SUM(H21:H22) -> €329,467 | I23: =SUM(I21:I22) -> €327,322 | J23: =SUM(J21:J22) -> €310,350 | K23: =SUM(K21:K22) -> €316,233 | L23: =SUM(L21:L22) -> €327,842 | M23: =SUM(M21:M22) -> €291,902 | N23: =SUM(N21:N22) -> €295,316 | O23: =SUM(O21:O22) -> €312,650 | P23: =SUM(P21:P22) -> €305,004
C24: Share capital | E24: ='Actual inputs'!$E$49 -> 100,000 | F24: ='Actual inputs'!$E$49 -> 100,000 | G24: ='Actual inputs'!$E$49 -> 100,000 | H24: ='Actual inputs'!$E$49 -> 100,000 | I24: ='Actual inputs'!$E$49 -> 100,000 | J24: ='Actual inputs'!$E$49 -> 100,000 | K24: ='Actual inputs'!$E$49 -> 100,000 | L24: ='Actual inputs'!$E$49 -> 100,000 | M24: ='Actual inputs'!$E$49 -> 100,000 | N24: ='Actual inputs'!$E$49 -> 100,000 | O24: ='Actual inputs'!$E$49 -> 100,000 | P24: ='Actual inputs'!$E$49 -> 100,000
C25: Retained earnings | E25: ='Actual inputs'!$E$50+'P&L'!E30 -> 114,533 | F25: =E25+'P&L'!F30 -> 132,607 | G25: =F25+'P&L'!G30 -> 162,847 | H25: =G25+'P&L'!H30 -> 192,867 | I25: =H25+'P&L'!I30 -> 212,287 | J25: =I25+'P&L'!J30 -> 232,400 | K25: =J25+'P&L'!K30 -> 243,933 | L25: =K25+'P&L'!L30 -> 246,367 | M25: =L25+'P&L'!M30 -> 287,113 | N25: =M25+'P&L'!N30 -> 338,853 | O25: =N25+'P&L'!O30 -> 404,667 | P25: =O25+'P&L'!P30 -> 456,313
C26: Equity | E26: =SUM(E24:E25) -> €214,533 | F26: =SUM(F24:F25) -> €232,607 | G26: =SUM(G24:G25) -> €262,847 | H26: =SUM(H24:H25) -> €292,867 | I26: =SUM(I24:I25) -> €312,287 | J26: =SUM(J24:J25) -> €332,400 | K26: =SUM(K24:K25) -> €343,933 | L26: =SUM(L24:L25) -> €346,367 | M26: =SUM(M24:M25) -> €387,113 | N26: =SUM(N24:N25) -> €438,853 | O26: =SUM(O24:O25) -> €504,667 | P26: =SUM(P24:P25) -> €556,313
C27: Liabilities and equity | E27: =SUM(E23,E26) -> €538,417 | F27: =SUM(F23,F26) -> €561,008 | G27: =SUM(G23,G26) -> €578,808 | H27: =SUM(H23,H26) -> €622,333 | I27: =SUM(I23,I26) -> €639,608 | J27: =SUM(J23,J26) -> €642,750 | K27: =SUM(K23,K26) -> €660,167 | L27: =SUM(L23,L26) -> €674,208 | M27: =SUM(M23,M26) -> €679,015 | N27: =SUM(N23,N26) -> €734,169 | O27: =SUM(O23,O26) -> €817,317 | P27: =SUM(P23,P26) -> €861,318
C29: Negative forecast cash denotes an unfunded plan. No credit facility is assumed.

Sheet Cash flow
C2: Cash flow
C4: Selected case | E4: ='Assumptions'!$G$4 -> Base | H4: EUR · entirely fictional
E6: Actual | F6: Actual | G6: Actual | H6: Actual | I6: Actual | J6: Actual | K6: Actual | L6: Actual | M6: Forecast | N6: Forecast | O6: Forecast | P6: Forecast
E7: 2026-01-01 | F7: 2026-02-01 | G7: 2026-03-01 | H7: 2026-04-01 | I7: 2026-05-01 | J7: 2026-06-01 | K7: 2026-07-01 | L7: 2026-08-01 | M7: 2026-09-01 | N7: 2026-10-01 | O7: 2026-11-01 | P7: 2026-12-01
C8: Net profit | E8: ='P&L'!E30 -> 11,533 | F8: ='P&L'!F30 -> 18,073 | G8: ='P&L'!G30 -> 30,240 | H8: ='P&L'!H30 -> 30,020 | I8: ='P&L'!I30 -> 19,420 | J8: ='P&L'!J30 -> 20,113 | K8: ='P&L'!K30 -> 11,533 | L8: ='P&L'!L30 -> 2,433 | M8: ='P&L'!M30 -> 40,747 | N8: ='P&L'!N30 -> 51,740 | O8: ='P&L'!O30 -> 65,813 | P8: ='P&L'!P30 -> 51,647
C9: Depreciation add-back | E9: ='Assets debt'!E14 -> 2,833 | F9: ='Assets debt'!F14 -> 2,833 | G9: ='Assets debt'!G14 -> 3,500 | H9: ='Assets debt'!H14 -> 3,500 | I9: ='Assets debt'!I14 -> 3,500 | J9: ='Assets debt'!J14 -> 4,333 | K9: ='Assets debt'!K14 -> 4,333 | L9: ='Assets debt'!L14 -> 4,833 | M9: ='Assets debt'!M14 -> 6,917 | N9: ='Assets debt'!N14 -> 7,250 | O9: ='Assets debt'!O14 -> 7,583 | P9: ='Assets debt'!P14 -> 7,917
C10: Change in receivables | E10: ='Actual inputs'!$E$40-'Balance sheet'!E9 -> (20,000) | F10: ='Balance sheet'!E9-'Balance sheet'!F9 -> (15,000) | G10: ='Balance sheet'!F9-'Balance sheet'!G9 -> (10,000) | H10: ='Balance sheet'!G9-'Balance sheet'!H9 -> (30,000) | I10: ='Balance sheet'!H9-'Balance sheet'!I9 -> (15,000) | J10: ='Balance sheet'!I9-'Balance sheet'!J9 -> (30,000) | K10: ='Balance sheet'!J9-'Balance sheet'!K9 -> (35,000) | L10: ='Balance sheet'!K9-'Balance sheet'!L9 -> (35,000) | M10: ='Balance sheet'!L9-'Balance sheet'!M9 -> 55,935 | N10: ='Balance sheet'!M9-'Balance sheet'!N9 -> (85,006) | O10: ='Balance sheet'!N9-'Balance sheet'!O9 -> (26,729) | P10: ='Balance sheet'!O9-'Balance sheet'!P9 -> 37,568
C11: Change in prepayments | E11: ='Actual inputs'!$E$41-'Balance sheet'!E10 -> 2,000 | F11: ='Balance sheet'!E10-'Balance sheet'!F10 -> 0 | G11: ='Balance sheet'!F10-'Balance sheet'!G10 -> (2,000) | H11: ='Balance sheet'!G10-'Balance sheet'!H10 -> 2,000 | I11: ='Balance sheet'!H10-'Balance sheet'!I10 -> 0 | J11: ='Balance sheet'!I10-'Balance sheet'!J10 -> (6,000) | K11: ='Balance sheet'!J10-'Balance sheet'!K10 -> 2,000 | L11: ='Balance sheet'!K10-'Balance sheet'!L10 -> 2,000 | M11: ='Balance sheet'!L10-'Balance sheet'!M10 -> 0 | N11: ='Balance sheet'!M10-'Balance sheet'!N10 -> 0 | O11: ='Balance sheet'!N10-'Balance sheet'!O10 -> 0 | P11: ='Balance sheet'!O10-'Balance sheet'!P10 -> 0
C12: Change in payables | E12: ='Balance sheet'!E17-'Actual inputs'!$E$44 -> 1,000 | F12: ='Balance sheet'!F17-'Balance sheet'!E17 -> 2,000 | G12: ='Balance sheet'!G17-'Balance sheet'!F17 -> 2,000 | H12: ='Balance sheet'!H17-'Balance sheet'!G17 -> 6,000 | I12: ='Balance sheet'!I17-'Balance sheet'!H17 -> (5,000) | J12: ='Balance sheet'!J17-'Balance sheet'!I17 -> 4,000 | K12: ='Balance sheet'!K17-'Balance sheet'!J17 -> 5,000 | L12: ='Balance sheet'!L17-'Balance sheet'!K17 -> 8,000 | M12: ='Balance sheet'!M17-'Balance sheet'!L17 -> (21,613) | N12: ='Balance sheet'!N17-'Balance sheet'!M17 -> (2,354) | O12: ='Balance sheet'!O17-'Balance sheet'!N17 -> 1,701 | P12: ='Balance sheet'!P17-'Balance sheet'!O17 -> (3,417)
C13: Change in accruals | E13: ='Balance sheet'!E18-'Actual inputs'!$E$45 -> 2,000 | F13: ='Balance sheet'!F18-'Balance sheet'!E18 -> 1,000 | G13: ='Balance sheet'!G18-'Balance sheet'!F18 -> 1,000 | H13: ='Balance sheet'!H18-'Balance sheet'!G18 -> 1,000 | I13: ='Balance sheet'!I18-'Balance sheet'!H18 -> 1,000 | J13: ='Balance sheet'!J18-'Balance sheet'!I18 -> 1,000 | K13: ='Balance sheet'!K18-'Balance sheet'!J18 -> 1,000 | L13: ='Balance sheet'!L18-'Balance sheet'!K18 -> 2,000 | M13: ='Balance sheet'!M18-'Balance sheet'!L18 -> 0 | N13: ='Balance sheet'!N18-'Balance sheet'!M18 -> 0 | O13: ='Balance sheet'!O18-'Balance sheet'!N18 -> 0 | P13: ='Balance sheet'!P18-'Balance sheet'!O18 -> 0
C14: Change in deferred revenue | E14: ='Balance sheet'!E19-'Actual inputs'!$E$46 -> 2,000 | F14: ='Balance sheet'!F19-'Balance sheet'!E19 -> 2,000 | G14: ='Balance sheet'!G19-'Balance sheet'!F19 -> 2,000 | H14: ='Balance sheet'!H19-'Balance sheet'!G19 -> 4,000 | I14: ='Balance sheet'!I19-'Balance sheet'!H19 -> 2,000 | J14: ='Balance sheet'!J19-'Balance sheet'!I19 -> (4,000) | K14: ='Balance sheet'!K19-'Balance sheet'!J19 -> 2,000 | L14: ='Balance sheet'!L19-'Balance sheet'!K19 -> 6,000 | M14: ='Balance sheet'!M19-'Balance sheet'!L19 -> 515 | N14: ='Balance sheet'!N19-'Balance sheet'!M19 -> 2,805 | O14: ='Balance sheet'!O19-'Balance sheet'!N19 -> 4,180 | P14: ='Balance sheet'!P19-'Balance sheet'!O19 -> 2,860
C15: Change in tax payable | E15: ='Assets debt'!E27-'Actual inputs'!$E$47 -> 2,883 | F15: ='Assets debt'!F27-'Assets debt'!E27 -> 4,518 | G15: ='Assets debt'!G27-'Assets debt'!F27 -> (12,440) | H15: ='Assets debt'!H27-'Assets debt'!G27 -> 7,505 | I15: ='Assets debt'!I27-'Assets debt'!H27 -> 4,855 | J15: ='Assets debt'!J27-'Assets debt'!I27 -> (12,972) | K15: ='Assets debt'!K27-'Assets debt'!J27 -> 2,883 | L15: ='Assets debt'!L27-'Assets debt'!K27 -> 608 | M15: ='Assets debt'!M27-'Assets debt'!L27 -> (14,813) | N15: ='Assets debt'!N27-'Assets debt'!M27 -> 12,935 | O15: ='Assets debt'!O27-'Assets debt'!N27 -> 16,453 | P15: ='Assets debt'!P27-'Assets debt'!O27 -> (2,088)
C16: Operating cash flow | E16: =SUM(E8:E15) -> €4,250 | F16: =SUM(F8:F15) -> €15,425 | G16: =SUM(G8:G15) -> €14,300 | H16: =SUM(H8:H15) -> €24,025 | I16: =SUM(I8:I15) -> €10,775 | J16: =SUM(J8:J15) -> (€23,525) | K16: =SUM(K8:K15) -> (€6,250) | L16: =SUM(L8:L15) -> (€9,125) | M16: =SUM(M8:M15) -> €67,687 | N16: =SUM(N8:N15) -> (€12,630) | O16: =SUM(O8:O15) -> €69,002 | P16: =SUM(P8:P15) -> €94,486
C17: Capital expenditure | E17: =-'Assets debt'!E9 -> (12,000) | F17: =-'Assets debt'!F9 -> 0 | G17: =-'Assets debt'!G9 -> (24,000) | H17: =-'Assets debt'!H9 -> 0 | I17: =-'Assets debt'!I9 -> 0 | J17: =-'Assets debt'!J9 -> (30,000) | K17: =-'Assets debt'!K9 -> 0 | L17: =-'Assets debt'!L9 -> (18,000) | M17: =-'Assets debt'!M9 -> (75,000) | N17: =-'Assets debt'!N9 -> (12,000) | O17: =-'Assets debt'!O9 -> (12,000) | P17: =-'Assets debt'!P9 -> (12,000)
C18: Investing cash flow | E18: =E17 -> (€12,000) | F18: =F17 -> 0 | G18: =G17 -> (€24,000) | H18: =H17 -> 0 | I18: =I17 -> 0 | J18: =J17 -> (€30,000) | K18: =K17 -> 0 | L18: =L17 -> (€18,000) | M18: =M17 -> (€75,000) | N18: =N17 -> (€12,000) | O18: =O17 -> (€12,000) | P18: =P17 -> (€12,000)
C19: Debt principal repayment | E19: =-'Assets debt'!E19 -> (5,000) | F19: =-'Assets debt'!F19 -> (5,000) | G19: =-'Assets debt'!G19 -> (5,000) | H19: =-'Assets debt'!H19 -> (5,000) | I19: =-'Assets debt'!I19 -> (5,000) | J19: =-'Assets debt'!J19 -> (5,000) | K19: =-'Assets debt'!K19 -> (5,000) | L19: =-'Assets debt'!L19 -> (5,000) | M19: =-'Assets debt'!M19 -> (5,000) | N19: =-'Assets debt'!N19 -> (5,000) | O19: =-'Assets debt'!O19 -> (5,000) | P19: =-'Assets debt'!P19 -> (5,000)
C20: Financing cash flow | E20: =E19 -> (€5,000) | F20: =F19 -> (€5,000) | G20: =G19 -> (€5,000) | H20: =H19 -> (€5,000) | I20: =I19 -> (€5,000) | J20: =J19 -> (€5,000) | K20: =K19 -> (€5,000) | L20: =L19 -> (€5,000) | M20: =M19 -> (€5,000) | N20: =N19 -> (€5,000) | O20: =O19 -> (€5,000) | P20: =P19 -> (€5,000)
C21: Net cash change | E21: =SUM(E16,E18,E20) -> (€12,750) | F21: =SUM(F16,F18,F20) -> €10,425 | G21: =SUM(G16,G18,G20) -> (€14,700) | H21: =SUM(H16,H18,H20) -> €19,025 | I21: =SUM(I16,I18,I20) -> €5,775 | J21: =SUM(J16,J18,J20) -> (€58,525) | K21: =SUM(K16,K18,K20) -> (€11,250) | L21: =SUM(L16,L18,L20) -> (€32,125) | M21: =SUM(M16,M18,M20) -> (€12,313) | N21: =SUM(N16,N18,N20) -> (€29,630) | O21: =SUM(O16,O18,O20) -> €52,002 | P21: =SUM(P16,P18,P20) -> €77,486
C22: Opening cash | E22: ='Actual inputs'!$E$39 -> 250,000 | F22: =E23 -> 237,250 | G22: =F23 -> 247,675 | H22: =G23 -> 232,975 | I22: =H23 -> 252,000 | J22: =I23 -> 257,775 | K22: =J23 -> 199,250 | L22: =K23 -> 188,000 | M22: =L23 -> 155,875 | N22: =M23 -> 143,562 | O22: =N23 -> 113,931 | P22: =O23 -> 165,933
C23: Closing cash | E23: =SUM(E21:E22) -> €237,250 | F23: =SUM(F21:F22) -> €247,675 | G23: =SUM(G21:G22) -> €232,975 | H23: =SUM(H21:H22) -> €252,000 | I23: =SUM(I21:I22) -> €257,775 | J23: =SUM(J21:J22) -> €199,250 | K23: =SUM(K21:K22) -> €188,000 | L23: =SUM(L21:L22) -> €155,875 | M23: =SUM(M21:M22) -> €143,562 | N23: =SUM(N21:N22) -> €113,931 | O23: =SUM(O21:O22) -> €165,933 | P23: =SUM(P21:P22) -> €243,419
C26: Positive working-capital changes release cash. Expenses use negative signs.
C28: Monthly cash is reconciled to the dated weekly schedule in Forecast review.

Sheet 13 week cash
C2: 13 week cash
C4: Selected case | E4: ='Assumptions'!$G$4 -> Base | H4: EUR · entirely fictional
E6: 1–6 Sep partial | F6: W2 | G6: W3 | H6: W4 | I6: W5 | J6: W6 | K6: W7 | L6: W8 | M6: W9 | N6: W10 | O6: W11 | P6: W12 | Q6: W13
E7: 2026-09-01 | F7: 2026-09-07 | G7: 2026-09-14 | H7: 2026-09-21 | I7: 2026-09-28 | J7: 2026-10-05 | K7: 2026-10-12 | L7: 2026-10-19 | M7: 2026-10-26 | N7: 2026-11-02 | O7: 2026-11-09 | P7: 2026-11-16 | Q7: 2026-11-23
C8: Opening cash | E8: ='Balance sheet'!L8 -> 155,875 | F8: =E18 -> 242,875 | G8: =F18 -> 191,875 | H8: =G18 -> 259,609 | I8: =H18 -> 150,809 | J8: =I18 -> 143,562 | K8: =J18 -> 90,562 | L8: =K18 -> 176,892 | M8: =L18 -> 14,092 | N8: =M18 -> 113,931 | O8: =N18 -> 101,931 | P8: =O18 -> 187,800 | Q8: =P18 -> 187,800
C9: Customer receipts | E9: =SUMIFS($F$33:$F$88,$D$33:$D$88,"receipts",$E$33:$E$88,">="&E$7,$E$33:$E$88,"<"&E$7+6) -> 98,000 | F9: =SUMIFS($F$33:$F$88,$D$33:$D$88,"receipts",$E$33:$E$88,">="&F$7,$E$33:$E$88,"<"&F$7+7) -> 90,000 | G9: =SUMIFS($F$33:$F$88,$D$33:$D$88,"receipts",$E$33:$E$88,">="&G$7,$E$33:$E$88,"<"&G$7+7) -> 79,000 | H9: =SUMIFS($F$33:$F$88,$D$33:$D$88,"receipts",$E$33:$E$88,">="&H$7,$E$33:$E$88,"<"&H$7+7) -> 93,000 | I9: =SUMIFS($F$33:$F$88,$D$33:$D$88,"receipts",$E$33:$E$88,">="&I$7,$E$33:$E$88,"<"&I$7+7) -> 0 | J9: =SUMIFS($F$33:$F$88,$D$33:$D$88,"receipts",$E$33:$E$88,">="&J$7,$E$33:$E$88,"<"&J$7+7) -> 0 | K9: =SUMIFS($F$33:$F$88,$D$33:$D$88,"receipts",$E$33:$E$88,">="&K$7,$E$33:$E$88,"<"&K$7+7) -> 105,840 | L9: =SUMIFS($F$33:$F$88,$D$33:$D$88,"receipts",$E$33:$E$88,">="&L$7,$E$33:$E$88,"<"&L$7+7) -> 0 | M9: =SUMIFS($F$33:$F$88,$D$33:$D$88,"receipts",$E$33:$E$88,">="&M$7,$E$33:$E$88,"<"&M$7+7) -> 129,359 | N9: =SUMIFS($F$33:$F$88,$D$33:$D$88,"receipts",$E$33:$E$88,">="&N$7,$E$33:$E$88,"<"&N$7+7) -> 0 | O9: =SUMIFS($F$33:$F$88,$D$33:$D$88,"receipts",$E$33:$E$88,">="&O$7,$E$33:$E$88,"<"&O$7+7) -> 145,778 | P9: =SUMIFS($F$33:$F$88,$D$33:$D$88,"receipts",$E$33:$E$88,">="&P$7,$E$33:$E$88,"<"&P$7+7) -> 0 | Q9: =SUMIFS($F$33:$F$88,$D$33:$D$88,"receipts",$E$33:$E$88,">="&Q$7,$E$33:$E$88,"<"&Q$7+7) -> 178,173
C10: Supplier payments | E10: =SUMIFS($F$33:$F$88,$D$33:$D$88,"supplierPayments",$E$33:$E$88,">="&E$7,$E$33:$E$88,"<"&E$7+6) -> (11,000) | F10: =SUMIFS($F$33:$F$88,$D$33:$D$88,"supplierPayments",$E$33:$E$88,">="&F$7,$E$33:$E$88,"<"&F$7+7) -> (26,000) | G10: =SUMIFS($F$33:$F$88,$D$33:$D$88,"supplierPayments",$E$33:$E$88,">="&G$7,$E$33:$E$88,"<"&G$7+7) -> (11,266) | H10: =SUMIFS($F$33:$F$88,$D$33:$D$88,"supplierPayments",$E$33:$E$88,">="&H$7,$E$33:$E$88,"<"&H$7+7) -> (14,000) | I10: =SUMIFS($F$33:$F$88,$D$33:$D$88,"supplierPayments",$E$33:$E$88,">="&I$7,$E$33:$E$88,"<"&I$7+7) -> (1,547) | J10: =SUMIFS($F$33:$F$88,$D$33:$D$88,"supplierPayments",$E$33:$E$88,">="&J$7,$E$33:$E$88,"<"&J$7+7) -> 0 | K10: =SUMIFS($F$33:$F$88,$D$33:$D$88,"supplierPayments",$E$33:$E$88,">="&K$7,$E$33:$E$88,"<"&K$7+7) -> (19,509) | L10: =SUMIFS($F$33:$F$88,$D$33:$D$88,"supplierPayments",$E$33:$E$88,">="&L$7,$E$33:$E$88,"<"&L$7+7) -> 0 | M10: =SUMIFS($F$33:$F$88,$D$33:$D$88,"supplierPayments",$E$33:$E$88,">="&M$7,$E$33:$E$88,"<"&M$7+7) -> (23,845) | N10: =SUMIFS($F$33:$F$88,$D$33:$D$88,"supplierPayments",$E$33:$E$88,">="&N$7,$E$33:$E$88,"<"&N$7+7) -> 0 | O10: =SUMIFS($F$33:$F$88,$D$33:$D$88,"supplierPayments",$E$33:$E$88,">="&O$7,$E$33:$E$88,"<"&O$7+7) -> (17,910) | P10: =SUMIFS($F$33:$F$88,$D$33:$D$88,"supplierPayments",$E$33:$E$88,">="&P$7,$E$33:$E$88,"<"&P$7+7) -> 0 | Q10: =SUMIFS($F$33:$F$88,$D$33:$D$88,"supplierPayments",$E$33:$E$88,">="&Q$7,$E$33:$E$88,"<"&Q$7+7) -> (21,889)
C11: Payroll | E11: =SUMIFS($F$33:$F$88,$D$33:$D$88,"payroll",$E$33:$E$88,">="&E$7,$E$33:$E$88,"<"&E$7+6) -> 0 | F11: =SUMIFS($F$33:$F$88,$D$33:$D$88,"payroll",$E$33:$E$88,">="&F$7,$E$33:$E$88,"<"&F$7+7) -> 0 | G11: =SUMIFS($F$33:$F$88,$D$33:$D$88,"payroll",$E$33:$E$88,">="&G$7,$E$33:$E$88,"<"&G$7+7) -> 0 | H11: =SUMIFS($F$33:$F$88,$D$33:$D$88,"payroll",$E$33:$E$88,">="&H$7,$E$33:$E$88,"<"&H$7+7) -> (162,800) | I11: =SUMIFS($F$33:$F$88,$D$33:$D$88,"payroll",$E$33:$E$88,">="&I$7,$E$33:$E$88,"<"&I$7+7) -> 0 | J11: =SUMIFS($F$33:$F$88,$D$33:$D$88,"payroll",$E$33:$E$88,">="&J$7,$E$33:$E$88,"<"&J$7+7) -> 0 | K11: =SUMIFS($F$33:$F$88,$D$33:$D$88,"payroll",$E$33:$E$88,">="&K$7,$E$33:$E$88,"<"&K$7+7) -> 0 | L11: =SUMIFS($F$33:$F$88,$D$33:$D$88,"payroll",$E$33:$E$88,">="&L$7,$E$33:$E$88,"<"&L$7+7) -> (162,800) | M11: =SUMIFS($F$33:$F$88,$D$33:$D$88,"payroll",$E$33:$E$88,">="&M$7,$E$33:$E$88,"<"&M$7+7) -> 0 | N11: =SUMIFS($F$33:$F$88,$D$33:$D$88,"payroll",$E$33:$E$88,">="&N$7,$E$33:$E$88,"<"&N$7+7) -> 0 | O11: =SUMIFS($F$33:$F$88,$D$33:$D$88,"payroll",$E$33:$E$88,">="&O$7,$E$33:$E$88,"<"&O$7+7) -> 0 | P11: =SUMIFS($F$33:$F$88,$D$33:$D$88,"payroll",$E$33:$E$88,">="&P$7,$E$33:$E$88,"<"&P$7+7) -> 0 | Q11: =SUMIFS($F$33:$F$88,$D$33:$D$88,"payroll",$E$33:$E$88,">="&Q$7,$E$33:$E$88,"<"&Q$7+7) -> (172,500)
C12: Operating overheads | E12: =SUMIFS($F$33:$F$88,$D$33:$D$88,"overheads",$E$33:$E$88,">="&E$7,$E$33:$E$88,"<"&E$7+6) -> 0 | F12: =SUMIFS($F$33:$F$88,$D$33:$D$88,"overheads",$E$33:$E$88,">="&F$7,$E$33:$E$88,"<"&F$7+7) -> (40,000) | G12: =SUMIFS($F$33:$F$88,$D$33:$D$88,"overheads",$E$33:$E$88,">="&G$7,$E$33:$E$88,"<"&G$7+7) -> 0 | H12: =SUMIFS($F$33:$F$88,$D$33:$D$88,"overheads",$E$33:$E$88,">="&H$7,$E$33:$E$88,"<"&H$7+7) -> 0 | I12: =SUMIFS($F$33:$F$88,$D$33:$D$88,"overheads",$E$33:$E$88,">="&I$7,$E$33:$E$88,"<"&I$7+7) -> 0 | J12: =SUMIFS($F$33:$F$88,$D$33:$D$88,"overheads",$E$33:$E$88,">="&J$7,$E$33:$E$88,"<"&J$7+7) -> (41,000) | K12: =SUMIFS($F$33:$F$88,$D$33:$D$88,"overheads",$E$33:$E$88,">="&K$7,$E$33:$E$88,"<"&K$7+7) -> 0 | L12: =SUMIFS($F$33:$F$88,$D$33:$D$88,"overheads",$E$33:$E$88,">="&L$7,$E$33:$E$88,"<"&L$7+7) -> 0 | M12: =SUMIFS($F$33:$F$88,$D$33:$D$88,"overheads",$E$33:$E$88,">="&M$7,$E$33:$E$88,"<"&M$7+7) -> 0 | N12: =SUMIFS($F$33:$F$88,$D$33:$D$88,"overheads",$E$33:$E$88,">="&N$7,$E$33:$E$88,"<"&N$7+7) -> 0 | O12: =SUMIFS($F$33:$F$88,$D$33:$D$88,"overheads",$E$33:$E$88,">="&O$7,$E$33:$E$88,"<"&O$7+7) -> (42,000) | P12: =SUMIFS($F$33:$F$88,$D$33:$D$88,"overheads",$E$33:$E$88,">="&P$7,$E$33:$E$88,"<"&P$7+7) -> 0 | Q12: =SUMIFS($F$33:$F$88,$D$33:$D$88,"overheads",$E$33:$E$88,">="&Q$7,$E$33:$E$88,"<"&Q$7+7) -> 0
C13: Tax payments | E13: =SUMIFS($F$33:$F$88,$D$33:$D$88,"tax",$E$33:$E$88,">="&E$7,$E$33:$E$88,"<"&E$7+6) -> 0 | F13: =SUMIFS($F$33:$F$88,$D$33:$D$88,"tax",$E$33:$E$88,">="&F$7,$E$33:$E$88,"<"&F$7+7) -> 0 | G13: =SUMIFS($F$33:$F$88,$D$33:$D$88,"tax",$E$33:$E$88,">="&G$7,$E$33:$E$88,"<"&G$7+7) -> 0 | H13: =SUMIFS($F$33:$F$88,$D$33:$D$88,"tax",$E$33:$E$88,">="&H$7,$E$33:$E$88,"<"&H$7+7) -> (25,000) | I13: =SUMIFS($F$33:$F$88,$D$33:$D$88,"tax",$E$33:$E$88,">="&I$7,$E$33:$E$88,"<"&I$7+7) -> 0 | J13: =SUMIFS($F$33:$F$88,$D$33:$D$88,"tax",$E$33:$E$88,">="&J$7,$E$33:$E$88,"<"&J$7+7) -> 0 | K13: =SUMIFS($F$33:$F$88,$D$33:$D$88,"tax",$E$33:$E$88,">="&K$7,$E$33:$E$88,"<"&K$7+7) -> 0 | L13: =SUMIFS($F$33:$F$88,$D$33:$D$88,"tax",$E$33:$E$88,">="&L$7,$E$33:$E$88,"<"&L$7+7) -> 0 | M13: =SUMIFS($F$33:$F$88,$D$33:$D$88,"tax",$E$33:$E$88,">="&M$7,$E$33:$E$88,"<"&M$7+7) -> 0 | N13: =SUMIFS($F$33:$F$88,$D$33:$D$88,"tax",$E$33:$E$88,">="&N$7,$E$33:$E$88,"<"&N$7+7) -> 0 | O13: =SUMIFS($F$33:$F$88,$D$33:$D$88,"tax",$E$33:$E$88,">="&O$7,$E$33:$E$88,"<"&O$7+7) -> 0 | P13: =SUMIFS($F$33:$F$88,$D$33:$D$88,"tax",$E$33:$E$88,">="&P$7,$E$33:$E$88,"<"&P$7+7) -> 0 | Q13: =SUMIFS($F$33:$F$88,$D$33:$D$88,"tax",$E$33:$E$88,">="&Q$7,$E$33:$E$88,"<"&Q$7+7) -> 0
C14: Interest | E14: =SUMIFS($F$33:$F$88,$D$33:$D$88,"interest",$E$33:$E$88,">="&E$7,$E$33:$E$88,"<"&E$7+6) -> 0 | F14: =SUMIFS($F$33:$F$88,$D$33:$D$88,"interest",$E$33:$E$88,">="&F$7,$E$33:$E$88,"<"&F$7+7) -> 0 | G14: =SUMIFS($F$33:$F$88,$D$33:$D$88,"interest",$E$33:$E$88,">="&G$7,$E$33:$E$88,"<"&G$7+7) -> 0 | H14: =SUMIFS($F$33:$F$88,$D$33:$D$88,"interest",$E$33:$E$88,">="&H$7,$E$33:$E$88,"<"&H$7+7) -> 0 | I14: =SUMIFS($F$33:$F$88,$D$33:$D$88,"interest",$E$33:$E$88,">="&I$7,$E$33:$E$88,"<"&I$7+7) -> (700) | J14: =SUMIFS($F$33:$F$88,$D$33:$D$88,"interest",$E$33:$E$88,">="&J$7,$E$33:$E$88,"<"&J$7+7) -> 0 | K14: =SUMIFS($F$33:$F$88,$D$33:$D$88,"interest",$E$33:$E$88,">="&K$7,$E$33:$E$88,"<"&K$7+7) -> 0 | L14: =SUMIFS($F$33:$F$88,$D$33:$D$88,"interest",$E$33:$E$88,">="&L$7,$E$33:$E$88,"<"&L$7+7) -> 0 | M14: =SUMIFS($F$33:$F$88,$D$33:$D$88,"interest",$E$33:$E$88,">="&M$7,$E$33:$E$88,"<"&M$7+7) -> (675) | N14: =SUMIFS($F$33:$F$88,$D$33:$D$88,"interest",$E$33:$E$88,">="&N$7,$E$33:$E$88,"<"&N$7+7) -> 0 | O14: =SUMIFS($F$33:$F$88,$D$33:$D$88,"interest",$E$33:$E$88,">="&O$7,$E$33:$E$88,"<"&O$7+7) -> 0 | P14: =SUMIFS($F$33:$F$88,$D$33:$D$88,"interest",$E$33:$E$88,">="&P$7,$E$33:$E$88,"<"&P$7+7) -> 0 | Q14: =SUMIFS($F$33:$F$88,$D$33:$D$88,"interest",$E$33:$E$88,">="&Q$7,$E$33:$E$88,"<"&Q$7+7) -> (650)
C15: Capital expenditure | E15: =SUMIFS($F$33:$F$88,$D$33:$D$88,"capex",$E$33:$E$88,">="&E$7,$E$33:$E$88,"<"&E$7+6) -> 0 | F15: =SUMIFS($F$33:$F$88,$D$33:$D$88,"capex",$E$33:$E$88,">="&F$7,$E$33:$E$88,"<"&F$7+7) -> (75,000) | G15: =SUMIFS($F$33:$F$88,$D$33:$D$88,"capex",$E$33:$E$88,">="&G$7,$E$33:$E$88,"<"&G$7+7) -> 0 | H15: =SUMIFS($F$33:$F$88,$D$33:$D$88,"capex",$E$33:$E$88,">="&H$7,$E$33:$E$88,"<"&H$7+7) -> 0 | I15: =SUMIFS($F$33:$F$88,$D$33:$D$88,"capex",$E$33:$E$88,">="&I$7,$E$33:$E$88,"<"&I$7+7) -> 0 | J15: =SUMIFS($F$33:$F$88,$D$33:$D$88,"capex",$E$33:$E$88,">="&J$7,$E$33:$E$88,"<"&J$7+7) -> (12,000) | K15: =SUMIFS($F$33:$F$88,$D$33:$D$88,"capex",$E$33:$E$88,">="&K$7,$E$33:$E$88,"<"&K$7+7) -> 0 | L15: =SUMIFS($F$33:$F$88,$D$33:$D$88,"capex",$E$33:$E$88,">="&L$7,$E$33:$E$88,"<"&L$7+7) -> 0 | M15: =SUMIFS($F$33:$F$88,$D$33:$D$88,"capex",$E$33:$E$88,">="&M$7,$E$33:$E$88,"<"&M$7+7) -> 0 | N15: =SUMIFS($F$33:$F$88,$D$33:$D$88,"capex",$E$33:$E$88,">="&N$7,$E$33:$E$88,"<"&N$7+7) -> (12,000) | O15: =SUMIFS($F$33:$F$88,$D$33:$D$88,"capex",$E$33:$E$88,">="&O$7,$E$33:$E$88,"<"&O$7+7) -> 0 | P15: =SUMIFS($F$33:$F$88,$D$33:$D$88,"capex",$E$33:$E$88,">="&P$7,$E$33:$E$88,"<"&P$7+7) -> 0 | Q15: =SUMIFS($F$33:$F$88,$D$33:$D$88,"capex",$E$33:$E$88,">="&Q$7,$E$33:$E$88,"<"&Q$7+7) -> 0
C16: Debt principal | E16: =SUMIFS($F$33:$F$88,$D$33:$D$88,"debt",$E$33:$E$88,">="&E$7,$E$33:$E$88,"<"&E$7+6) -> 0 | F16: =SUMIFS($F$33:$F$88,$D$33:$D$88,"debt",$E$33:$E$88,">="&F$7,$E$33:$E$88,"<"&F$7+7) -> 0 | G16: =SUMIFS($F$33:$F$88,$D$33:$D$88,"debt",$E$33:$E$88,">="&G$7,$E$33:$E$88,"<"&G$7+7) -> 0 | H16: =SUMIFS($F$33:$F$88,$D$33:$D$88,"debt",$E$33:$E$88,">="&H$7,$E$33:$E$88,"<"&H$7+7) -> 0 | I16: =SUMIFS($F$33:$F$88,$D$33:$D$88,"debt",$E$33:$E$88,">="&I$7,$E$33:$E$88,"<"&I$7+7) -> (5,000) | J16: =SUMIFS($F$33:$F$88,$D$33:$D$88,"debt",$E$33:$E$88,">="&J$7,$E$33:$E$88,"<"&J$7+7) -> 0 | K16: =SUMIFS($F$33:$F$88,$D$33:$D$88,"debt",$E$33:$E$88,">="&K$7,$E$33:$E$88,"<"&K$7+7) -> 0 | L16: =SUMIFS($F$33:$F$88,$D$33:$D$88,"debt",$E$33:$E$88,">="&L$7,$E$33:$E$88,"<"&L$7+7) -> 0 | M16: =SUMIFS($F$33:$F$88,$D$33:$D$88,"debt",$E$33:$E$88,">="&M$7,$E$33:$E$88,"<"&M$7+7) -> (5,000) | N16: =SUMIFS($F$33:$F$88,$D$33:$D$88,"debt",$E$33:$E$88,">="&N$7,$E$33:$E$88,"<"&N$7+7) -> 0 | O16: =SUMIFS($F$33:$F$88,$D$33:$D$88,"debt",$E$33:$E$88,">="&O$7,$E$33:$E$88,"<"&O$7+7) -> 0 | P16: =SUMIFS($F$33:$F$88,$D$33:$D$88,"debt",$E$33:$E$88,">="&P$7,$E$33:$E$88,"<"&P$7+7) -> 0 | Q16: =SUMIFS($F$33:$F$88,$D$33:$D$88,"debt",$E$33:$E$88,">="&Q$7,$E$33:$E$88,"<"&Q$7+7) -> (5,000)
C17: Net cash change | E17: =SUM(E9:E16) -> €87,000 | F17: =SUM(F9:F16) -> (€51,000) | G17: =SUM(G9:G16) -> €67,734 | H17: =SUM(H9:H16) -> (€108,800) | I17: =SUM(I9:I16) -> (€7,247) | J17: =SUM(J9:J16) -> (€53,000) | K17: =SUM(K9:K16) -> €86,330 | L17: =SUM(L9:L16) -> (€162,800) | M17: =SUM(M9:M16) -> €99,840 | N17: =SUM(N9:N16) -> (€12,000) | O17: =SUM(O9:O16) -> €85,868 | P17: =SUM(P9:P16) -> 0 | Q17: =SUM(Q9:Q16) -> (€21,866)
C18: Closing cash | E18: =SUM(E8,E17) -> €242,875 | F18: =SUM(F8,F17) -> €191,875 | G18: =SUM(G8,G17) -> €259,609 | H18: =SUM(H8,H17) -> €150,809 | I18: =SUM(I8,I17) -> €143,562 | J18: =SUM(J8,J17) -> €90,562 | K18: =SUM(K8,K17) -> €176,892 | L18: =SUM(L8,L17) -> €14,092 | M18: =SUM(M8,M17) -> €113,931 | N18: =SUM(N8,N17) -> €101,931 | O18: =SUM(O8,O17) -> €187,800 | P18: =SUM(P8,P17) -> €187,800 | Q18: =SUM(Q8,Q17) -> €165,933
C19: Minimum cash reserve | E19: ='Assumptions'!$E$74 -> 75,000 | F19: ='Assumptions'!$E$74 -> 75,000 | G19: ='Assumptions'!$E$74 -> 75,000 | H19: ='Assumptions'!$E$74 -> 75,000 | I19: ='Assumptions'!$E$74 -> 75,000 | J19: ='Assumptions'!$E$74 -> 75,000 | K19: ='Assumptions'!$E$74 -> 75,000 | L19: ='Assumptions'!$E$74 -> 75,000 | M19: ='Assumptions'!$E$74 -> 75,000 | N19: ='Assumptions'!$E$74 -> 75,000 | O19: ='Assumptions'!$E$74 -> 75,000 | P19: ='Assumptions'!$E$74 -> 75,000 | Q19: ='Assumptions'!$E$74 -> 75,000
C20: Headroom / (shortfall) | E20: =E18-E19 -> 167,875 | F20: =F18-F19 -> 116,875 | G20: =G18-G19 -> 184,609 | H20: =H18-H19 -> 75,809 | I20: =I18-I19 -> 68,562 | J20: =J18-J19 -> 15,562 | K20: =K18-K19 -> 101,892 | L20: =L18-L19 -> (60,908) | M20: =M18-M19 -> 38,931 | N20: =N18-N19 -> 26,931 | O20: =O18-O19 -> 112,800 | P20: =P18-P19 -> 112,800 | Q20: =Q18-Q19 -> 90,933
C23: Lowest weekly closing cash | E23: =MIN(E18:Q18) -> 14,092 | H23: Week | I23: =MATCH(E23,E18:Q18,0) -> 8 | J23: Daily minimum | K23: =MIN(H115:H204) -> 14,092 | M23: On | N23: =INDEX(C115:C204,MATCH(K23,H115:H204,0)) -> 2026-10-25
C26: Opening bank: close of 31 Aug, after all August activity. W1 begins 31 Aug.
C27: Only 1–6 Sep is forecast in W1. There is no omitted 31 Aug day.
C30: Dated cash event schedule
C32: Record ID | D32: Cash category | E32: Cash date | F32: Signed EUR | G32: Month key | H32: Timing basis
C33: AR-2601 | D33: receipts | E33: ='Working capital'!K38 -> 2026-09-18 | F33: ='Working capital'!F38 -> 22,000 | G33: =IF(E33=0,"Unscheduled",TEXT(E33,"yyyy-mm")) -> 2026-09 | H33: Opening AR plan
C34: AR-2602 | D34: receipts | E34: ='Working capital'!K39 -> 2026-09-25 | F34: ='Working capital'!F39 -> 38,000 | G34: =IF(E34=0,"Unscheduled",TEXT(E34,"yyyy-mm")) -> 2026-09 | H34: Opening AR plan
C35: AR-2603 | D35: receipts | E35: ='Working capital'!K40 -> 2026-09-11 | F35: ='Working capital'!F40 -> 42,000 | G35: =IF(E35=0,"Unscheduled",TEXT(E35,"yyyy-mm")) -> 2026-09 | H35: Opening AR plan
C36: AR-2604 | D36: receipts | E36: ='Working capital'!K41 -> 2026-09-04 | F36: ='Working capital'!F41 -> 46,000 | G36: =IF(E36=0,"Unscheduled",TEXT(E36,"yyyy-mm")) -> 2026-09 | H36: Opening AR plan
C37: AR-2605 | D37: receipts | E37: ='Working capital'!K42 -> 2026-09-04 | F37: ='Working capital'!F42 -> 52,000 | G37: =IF(E37=0,"Unscheduled",TEXT(E37,"yyyy-mm")) -> 2026-09 | H37: Opening AR plan
C38: AR-2606 | D38: receipts | E38: ='Working capital'!K43 -> 2026-09-11 | F38: ='Working capital'!F43 -> 48,000 | G38: =IF(E38=0,"Unscheduled",TEXT(E38,"yyyy-mm")) -> 2026-09 | H38: Opening AR plan
C39: AR-2607 | D39: receipts | E39: ='Working capital'!K44 -> 2026-09-18 | F39: ='Working capital'!F44 -> 57,000 | G39: =IF(E39=0,"Unscheduled",TEXT(E39,"yyyy-mm")) -> 2026-09 | H39: Opening AR plan
C40: AR-2608 | D40: receipts | E40: ='Working capital'!K45 -> 2026-09-25 | F40: ='Working capital'!F45 -> 55,000 | G40: =IF(E40=0,"Unscheduled",TEXT(E40,"yyyy-mm")) -> 2026-09 | H40: Opening AR plan
C41: AP-2601 | D41: supplierPayments | E41: ='Working capital'!L53 -> 00:00:00 | F41: =-'Working capital'!M53 -> 0 | G41: =IF(E41=0,"Unscheduled",TEXT(E41,"yyyy-mm")) -> Unscheduled | H41: Approved, no hold
C42: AP-2602 | D42: supplierPayments | E42: ='Working capital'!L54 -> 2026-09-04 | F42: =-'Working capital'!M54 -> (11,000) | G42: =IF(E42=0,"Unscheduled",TEXT(E42,"yyyy-mm")) -> 2026-09 | H42: Approved, no hold
C43: AP-2603 | D43: supplierPayments | E43: ='Working capital'!L55 -> 2026-09-11 | F43: =-'Working capital'!M55 -> (12,000) | G43: =IF(E43=0,"Unscheduled",TEXT(E43,"yyyy-mm")) -> 2026-09 | H43: Approved, no hold
C44: AP-2604 | D44: supplierPayments | E44: ='Working capital'!L56 -> 00:00:00 | F44: =-'Working capital'!M56 -> 0 | G44: =IF(E44=0,"Unscheduled",TEXT(E44,"yyyy-mm")) -> Unscheduled | H44: Approved, no hold
C45: AP-2605 | D45: supplierPayments | E45: ='Working capital'!L57 -> 2026-09-11 | F45: =-'Working capital'!M57 -> (14,000) | G45: =IF(E45=0,"Unscheduled",TEXT(E45,"yyyy-mm")) -> 2026-09 | H45: Approved, no hold
C46: AP-2606 | D46: supplierPayments | E46: ='Working capital'!L58 -> 2026-09-18 | F46: =-'Working capital'!M58 -> (10,000) | G46: =IF(E46=0,"Unscheduled",TEXT(E46,"yyyy-mm")) -> 2026-09 | H46: Approved, no hold
C47: AP-2607 | D47: supplierPayments | E47: ='Working capital'!L59 -> 2026-09-25 | F47: =-'Working capital'!M59 -> (7,000) | G47: =IF(E47=0,"Unscheduled",TEXT(E47,"yyyy-mm")) -> 2026-09 | H47: Approved, no hold
C48: AP-2608 | D48: supplierPayments | E48: ='Working capital'!L60 -> 2026-09-25 | F48: =-'Working capital'!M60 -> (7,000) | G48: =IF(E48=0,"Unscheduled",TEXT(E48,"yyyy-mm")) -> 2026-09 | H48: Approved, no hold
C49: NEW-receipts-9-A | D49: receipts | E49: =DATE(2026,9,15) -> 2026-09-15 | F49: =('Working capital'!M18)*45% -> 0 | G49: =IF(E49=0,"Unscheduled",TEXT(E49,"yyyy-mm")) -> 2026-09 | H49: 45% of new activity
C50: NEW-receipts-9-B | D50: receipts | E50: =DATE(2026,9,28) -> 2026-09-28 | F50: =('Working capital'!M18)*55% -> 0 | G50: =IF(E50=0,"Unscheduled",TEXT(E50,"yyyy-mm")) -> 2026-09 | H50: 55% of new activity
C51: NEW-supplierPayments-9-A | D51: supplierPayments | E51: =DATE(2026,9,15) -> 2026-09-15 | F51: =('Working capital'!M27)*45% -> (1,266) | G51: =IF(E51=0,"Unscheduled",TEXT(E51,"yyyy-mm")) -> 2026-09 | H51: 45% of new activity
C52: NEW-supplierPayments-9-B | D52: supplierPayments | E52: =DATE(2026,9,28) -> 2026-09-28 | F52: =('Working capital'!M27)*55% -> (1,547) | G52: =IF(E52=0,"Unscheduled",TEXT(E52,"yyyy-mm")) -> 2026-09 | H52: 55% of new activity
C53: SCH-payroll-9 | D53: payroll | E53: =DATE(2026,9,25) -> 2026-09-25 | F53: ='Working capital'!M31 -> (162,800) | G53: =IF(E53=0,"Unscheduled",TEXT(E53,"yyyy-mm")) -> 2026-09 | H53: Monthly payment date
C54: SCH-overheads-9 | D54: overheads | E54: =DATE(2026,9,10) -> 2026-09-10 | F54: ='Working capital'!M32 -> (40,000) | G54: =IF(E54=0,"Unscheduled",TEXT(E54,"yyyy-mm")) -> 2026-09 | H54: Monthly payment date
C55: SCH-tax-9 | D55: tax | E55: =DATE(2026,9,21) -> 2026-09-21 | F55: =-'Assets debt'!M26 -> (25,000) | G55: =IF(E55=0,"Unscheduled",TEXT(E55,"yyyy-mm")) -> 2026-09 | H55: Monthly payment date
C56: SCH-interest-9 | D56: interest | E56: =DATE(2026,9,28) -> 2026-09-28 | F56: =-'Assets debt'!M22 -> (700) | G56: =IF(E56=0,"Unscheduled",TEXT(E56,"yyyy-mm")) -> 2026-09 | H56: Monthly payment date
C57: SCH-capex-9 | D57: capex | E57: =DATE(2026,9,8) -> 2026-09-08 | F57: =-'Assets debt'!M9 -> (75,000) | G57: =IF(E57=0,"Unscheduled",TEXT(E57,"yyyy-mm")) -> 2026-09 | H57: Monthly payment date
C58: SCH-debt-9 | D58: debt | E58: =DATE(2026,9,28) -> 2026-09-28 | F58: =-'Assets debt'!M19 -> (5,000) | G58: =IF(E58=0,"Unscheduled",TEXT(E58,"yyyy-mm")) -> 2026-09 | H58: Monthly payment date
C59: NEW-receipts-10-A | D59: receipts | E59: =DATE(2026,10,15) -> 2026-10-15 | F59: =('Working capital'!N18)*45% -> 105,840 | G59: =IF(E59=0,"Unscheduled",TEXT(E59,"yyyy-mm")) -> 2026-10 | H59: 45% of new activity
C60: NEW-receipts-10-B | D60: receipts | E60: =DATE(2026,10,28) -> 2026-10-28 | F60: =('Working capital'!N18)*55% -> 129,359 | G60: =IF(E60=0,"Unscheduled",TEXT(E60,"yyyy-mm")) -> 2026-10 | H60: 55% of new activity
C61: NEW-supplierPayments-10-A | D61: supplierPayments | E61: =DATE(2026,10,15) -> 2026-10-15 | F61: =('Working capital'!N27)*45% -> (19,509) | G61: =IF(E61=0,"Unscheduled",TEXT(E61,"yyyy-mm")) -> 2026-10 | H61: 45% of new activity
C62: NEW-supplierPayments-10-B | D62: supplierPayments | E62: =DATE(2026,10,28) -> 2026-10-28 | F62: =('Working capital'!N27)*55% -> (23,845) | G62: =IF(E62=0,"Unscheduled",TEXT(E62,"yyyy-mm")) -> 2026-10 | H62: 55% of new activity
C63: SCH-payroll-10 | D63: payroll | E63: =DATE(2026,10,25) -> 2026-10-25 | F63: ='Working capital'!N31 -> (162,800) | G63: =IF(E63=0,"Unscheduled",TEXT(E63,"yyyy-mm")) -> 2026-10 | H63: Monthly payment date
C64: SCH-overheads-10 | D64: overheads | E64: =DATE(2026,10,10) -> 2026-10-10 | F64: ='Working capital'!N32 -> (41,000) | G64: =IF(E64=0,"Unscheduled",TEXT(E64,"yyyy-mm")) -> 2026-10 | H64: Monthly payment date
C65: SCH-tax-10 | D65: tax | E65: =DATE(2026,10,21) -> 2026-10-21 | F65: =-'Assets debt'!N26 -> 0 | G65: =IF(E65=0,"Unscheduled",TEXT(E65,"yyyy-mm")) -> 2026-10 | H65: Monthly payment date
C66: SCH-interest-10 | D66: interest | E66: =DATE(2026,10,28) -> 2026-10-28 | F66: =-'Assets debt'!N22 -> (675) | G66: =IF(E66=0,"Unscheduled",TEXT(E66,"yyyy-mm")) -> 2026-10 | H66: Monthly payment date
C67: SCH-capex-10 | D67: capex | E67: =DATE(2026,10,8) -> 2026-10-08 | F67: =-'Assets debt'!N9 -> (12,000) | G67: =IF(E67=0,"Unscheduled",TEXT(E67,"yyyy-mm")) -> 2026-10 | H67: Monthly payment date
C68: SCH-debt-10 | D68: debt | E68: =DATE(2026,10,28) -> 2026-10-28 | F68: =-'Assets debt'!N19 -> (5,000) | G68: =IF(E68=0,"Unscheduled",TEXT(E68,"yyyy-mm")) -> 2026-10 | H68: Monthly payment date
C69: NEW-receipts-11-A | D69: receipts | E69: =DATE(2026,11,15) -> 2026-11-15 | F69: =('Working capital'!O18)*45% -> 145,778 | G69: =IF(E69=0,"Unscheduled",TEXT(E69,"yyyy-mm")) -> 2026-11 | H69: 45% of new activity
C70: NEW-receipts-11-B | D70: receipts | E70: =DATE(2026,11,28) -> 2026-11-28 | F70: =('Working capital'!O18)*55% -> 178,173 | G70: =IF(E70=0,"Unscheduled",TEXT(E70,"yyyy-mm")) -> 2026-11 | H70: 55% of new activity
C71: NEW-supplierPayments-11-A | D71: supplierPayments | E71: =DATE(2026,11,15) -> 2026-11-15 | F71: =('Working capital'!O27)*45% -> (17,910) | G71: =IF(E71=0,"Unscheduled",TEXT(E71,"yyyy-mm")) -> 2026-11 | H71: 45% of new activity
C72: NEW-supplierPayments-11-B | D72: supplierPayments | E72: =DATE(2026,11,28) -> 2026-11-28 | F72: =('Working capital'!O27)*55% -> (21,889) | G72: =IF(E72=0,"Unscheduled",TEXT(E72,"yyyy-mm")) -> 2026-11 | H72: 55% of new activity
C73: SCH-payroll-11 | D73: payroll | E73: =DATE(2026,11,25) -> 2026-11-25 | F73: ='Working capital'!O31 -> (172,500) | G73: =IF(E73=0,"Unscheduled",TEXT(E73,"yyyy-mm")) -> 2026-11 | H73: Monthly payment date
C74: SCH-overheads-11 | D74: overheads | E74: =DATE(2026,11,10) -> 2026-11-10 | F74: ='Working capital'!O32 -> (42,000) | G74: =IF(E74=0,"Unscheduled",TEXT(E74,"yyyy-mm")) -> 2026-11 | H74: Monthly payment date
C75: SCH-tax-11 | D75: tax | E75: =DATE(2026,11,21) -> 2026-11-21 | F75: =-'Assets debt'!O26 -> 0 | G75: =IF(E75=0,"Unscheduled",TEXT(E75,"yyyy-mm")) -> 2026-11 | H75: Monthly payment date
C76: SCH-interest-11 | D76: interest | E76: =DATE(2026,11,28) -> 2026-11-28 | F76: =-'Assets debt'!O22 -> (650) | G76: =IF(E76=0,"Unscheduled",TEXT(E76,"yyyy-mm")) -> 2026-11 | H76: Monthly payment date
C77: SCH-capex-11 | D77: capex | E77: =DATE(2026,11,8) -> 2026-11-08 | F77: =-'Assets debt'!O9 -> (12,000) | G77: =IF(E77=0,"Unscheduled",TEXT(E77,"yyyy-mm")) -> 2026-11 | H77: Monthly payment date
C78: SCH-debt-11 | D78: debt | E78: =DATE(2026,11,28) -> 2026-11-28 | F78: =-'Assets debt'!O19 -> (5,000) | G78: =IF(E78=0,"Unscheduled",TEXT(E78,"yyyy-mm")) -> 2026-11 | H78: Monthly payment date
C79: NEW-receipts-12-A | D79: receipts | E79: =DATE(2026,12,15) -> 2026-12-15 | F79: =('Working capital'!P18)*45% -> 164,757 | G79: =IF(E79=0,"Unscheduled",TEXT(E79,"yyyy-mm")) -> 2026-12 | H79: 45% of new activity
C80: NEW-receipts-12-B | D80: receipts | E80: =DATE(2026,12,28) -> 2026-12-28 | F80: =('Working capital'!P18)*55% -> 201,370 | G80: =IF(E80=0,"Unscheduled",TEXT(E80,"yyyy-mm")) -> 2026-12 | H80: 55% of new activity
C81: NEW-supplierPayments-12-A | D81: supplierPayments | E81: =DATE(2026,12,15) -> 2026-12-15 | F81: =('Working capital'!P27)*45% -> (19,133) | G81: =IF(E81=0,"Unscheduled",TEXT(E81,"yyyy-mm")) -> 2026-12 | H81: 45% of new activity
C82: NEW-supplierPayments-12-B | D82: supplierPayments | E82: =DATE(2026,12,28) -> 2026-12-28 | F82: =('Working capital'!P27)*55% -> (23,384) | G82: =IF(E82=0,"Unscheduled",TEXT(E82,"yyyy-mm")) -> 2026-12 | H82: 55% of new activity
C83: SCH-payroll-12 | D83: payroll | E83: =DATE(2026,12,25) -> 2026-12-25 | F83: ='Working capital'!P31 -> (172,500) | G83: =IF(E83=0,"Unscheduled",TEXT(E83,"yyyy-mm")) -> 2026-12 | H83: Monthly payment date
C84: SCH-overheads-12 | D84: overheads | E84: =DATE(2026,12,10) -> 2026-12-10 | F84: ='Working capital'!P32 -> (41,000) | G84: =IF(E84=0,"Unscheduled",TEXT(E84,"yyyy-mm")) -> 2026-12 | H84: Monthly payment date
C85: SCH-tax-12 | D85: tax | E85: =DATE(2026,12,21) -> 2026-12-21 | F85: =-'Assets debt'!P26 -> (15,000) | G85: =IF(E85=0,"Unscheduled",TEXT(E85,"yyyy-mm")) -> 2026-12 | H85: Monthly payment date
C86: SCH-interest-12 | D86: interest | E86: =DATE(2026,12,28) -> 2026-12-28 | F86: =-'Assets debt'!P22 -> (625) | G86: =IF(E86=0,"Unscheduled",TEXT(E86,"yyyy-mm")) -> 2026-12 | H86: Monthly payment date
C87: SCH-capex-12 | D87: capex | E87: =DATE(2026,12,8) -> 2026-12-08 | F87: =-'Assets debt'!P9 -> (12,000) | G87: =IF(E87=0,"Unscheduled",TEXT(E87,"yyyy-mm")) -> 2026-12 | H87: Monthly payment date
C88: SCH-debt-12 | D88: debt | E88: =DATE(2026,12,28) -> 2026-12-28 | F88: =-'Assets debt'!P19 -> (5,000) | G88: =IF(E88=0,"Unscheduled",TEXT(E88,"yyyy-mm")) -> 2026-12 | H88: Monthly payment date
C93: Monthly cash schedule totals
E94: 2026-01-01 | F94: 2026-02-01 | G94: 2026-03-01 | H94: 2026-04-01 | I94: 2026-05-01 | J94: 2026-06-01 | K94: 2026-07-01 | L94: 2026-08-01 | M94: 2026-09-01 | N94: 2026-10-01 | O94: 2026-11-01 | P94: 2026-12-01
C95: Dated events net cash | E95: =0 -> 0 | F95: =0 -> 0 | G95: =0 -> 0 | H95: =0 -> 0 | I95: =0 -> 0 | J95: =0 -> 0 | K95: =0 -> 0 | L95: =0 -> 0 | M95: =SUMIFS($F$33:$F$88,$E$33:$E$88,">="&M$94,$E$33:$E$88,"<"&EDATE(M$94,1)) -> (12,313) | N95: =SUMIFS($F$33:$F$88,$E$33:$E$88,">="&N$94,$E$33:$E$88,"<"&EDATE(N$94,1)) -> (29,630) | O95: =SUMIFS($F$33:$F$88,$E$33:$E$88,">="&O$94,$E$33:$E$88,"<"&EDATE(O$94,1)) -> 52,002 | P95: =SUMIFS($F$33:$F$88,$E$33:$E$88,">="&P$94,$E$33:$E$88,"<"&EDATE(P$94,1)) -> 77,486
C96: Monthly indirect CF | E96: =0 -> 0 | F96: =0 -> 0 | G96: =0 -> 0 | H96: =0 -> 0 | I96: =0 -> 0 | J96: =0 -> 0 | K96: =0 -> 0 | L96: =0 -> 0 | M96: ='Cash flow'!M21 -> (12,313) | N96: ='Cash flow'!N21 -> (29,630) | O96: ='Cash flow'!O21 -> 52,002 | P96: ='Cash flow'!P21 -> 77,486
C99: Bank opening at 31 August close | E99: ='Balance sheet'!L8 -> 155,875
C100: 31 August forecast bridge adjustment | E100: 0
C101: Week 1 opening cash | E101: =SUM(E99:E100) -> 155,875
C103: Cash at 29 November | E103: =Q18 -> 165,933
C104: Cash events on 30 November | E104: =SUMIFS($F$33:$F$88,$E$33:$E$88,">="&DATE(2026,11,30),$E$33:$E$88,"<"&DATE(2026,12,1)) -> 0
C105: Cash at 30 November | E105: =SUM(E103:E104) -> 165,933
C108: DSO targets yield to already scheduled opening receipts to avoid negative new receipts.
C109: Unscheduled AP stays in closing payables until both workflow prerequisites are met.
C112: Daily scheduled cash through 29 November
C114: Date | D114: Opening cash | E114: Receipts | F114: Payments | G114: Net change | H114: Closing cash | I114: Reserve | J114: Headroom
C115: 2026-09-01 | D115: =E99 -> 155,875 | E115: =SUMIFS($F$33:$F$88,$E$33:$E$88,C115,$F$33:$F$88,">0") -> 0 | F115: =SUMIFS($F$33:$F$88,$E$33:$E$88,C115,$F$33:$F$88,"<0") -> 0 | G115: =SUM(E115:F115) -> 0 | H115: =SUM(D115,G115) -> 155,875 | I115: ='Assumptions'!$E$74 -> 75,000 | J115: =H115-I115 -> 80,875
C116: 2026-09-02 | D116: =H115 -> 155,875 | E116: =SUMIFS($F$33:$F$88,$E$33:$E$88,C116,$F$33:$F$88,">0") -> 0 | F116: =SUMIFS($F$33:$F$88,$E$33:$E$88,C116,$F$33:$F$88,"<0") -> 0 | G116: =SUM(E116:F116) -> 0 | H116: =SUM(D116,G116) -> 155,875 | I116: ='Assumptions'!$E$74 -> 75,000 | J116: =H116-I116 -> 80,875
C117: 2026-09-03 | D117: =H116 -> 155,875 | E117: =SUMIFS($F$33:$F$88,$E$33:$E$88,C117,$F$33:$F$88,">0") -> 0 | F117: =SUMIFS($F$33:$F$88,$E$33:$E$88,C117,$F$33:$F$88,"<0") -> 0 | G117: =SUM(E117:F117) -> 0 | H117: =SUM(D117,G117) -> 155,875 | I117: ='Assumptions'!$E$74 -> 75,000 | J117: =H117-I117 -> 80,875
C118: 2026-09-04 | D118: =H117 -> 155,875 | E118: =SUMIFS($F$33:$F$88,$E$33:$E$88,C118,$F$33:$F$88,">0") -> 98,000 | F118: =SUMIFS($F$33:$F$88,$E$33:$E$88,C118,$F$33:$F$88,"<0") -> (11,000) | G118: =SUM(E118:F118) -> 87,000 | H118: =SUM(D118,G118) -> 242,875 | I118: ='Assumptions'!$E$74 -> 75,000 | J118: =H118-I118 -> 167,875
C119: 2026-09-05 | D119: =H118 -> 242,875 | E119: =SUMIFS($F$33:$F$88,$E$33:$E$88,C119,$F$33:$F$88,">0") -> 0 | F119: =SUMIFS($F$33:$F$88,$E$33:$E$88,C119,$F$33:$F$88,"<0") -> 0 | G119: =SUM(E119:F119) -> 0 | H119: =SUM(D119,G119) -> 242,875 | I119: ='Assumptions'!$E$74 -> 75,000 | J119: =H119-I119 -> 167,875
C120: 2026-09-06 | D120: =H119 -> 242,875 | E120: =SUMIFS($F$33:$F$88,$E$33:$E$88,C120,$F$33:$F$88,">0") -> 0 | F120: =SUMIFS($F$33:$F$88,$E$33:$E$88,C120,$F$33:$F$88,"<0") -> 0 | G120: =SUM(E120:F120) -> 0 | H120: =SUM(D120,G120) -> 242,875 | I120: ='Assumptions'!$E$74 -> 75,000 | J120: =H120-I120 -> 167,875
C121: 2026-09-07 | D121: =H120 -> 242,875 | E121: =SUMIFS($F$33:$F$88,$E$33:$E$88,C121,$F$33:$F$88,">0") -> 0 | F121: =SUMIFS($F$33:$F$88,$E$33:$E$88,C121,$F$33:$F$88,"<0") -> 0 | G121: =SUM(E121:F121) -> 0 | H121: =SUM(D121,G121) -> 242,875 | I121: ='Assumptions'!$E$74 -> 75,000 | J121: =H121-I121 -> 167,875
C122: 2026-09-08 | D122: =H121 -> 242,875 | E122: =SUMIFS($F$33:$F$88,$E$33:$E$88,C122,$F$33:$F$88,">0") -> 0 | F122: =SUMIFS($F$33:$F$88,$E$33:$E$88,C122,$F$33:$F$88,"<0") -> (75,000) | G122: =SUM(E122:F122) -> (75,000) | H122: =SUM(D122,G122) -> 167,875 | I122: ='Assumptions'!$E$74 -> 75,000 | J122: =H122-I122 -> 92,875
C123: 2026-09-09 | D123: =H122 -> 167,875 | E123: =SUMIFS($F$33:$F$88,$E$33:$E$88,C123,$F$33:$F$88,">0") -> 0 | F123: =SUMIFS($F$33:$F$88,$E$33:$E$88,C123,$F$33:$F$88,"<0") -> 0 | G123: =SUM(E123:F123) -> 0 | H123: =SUM(D123,G123) -> 167,875 | I123: ='Assumptions'!$E$74 -> 75,000 | J123: =H123-I123 -> 92,875
C124: 2026-09-10 | D124: =H123 -> 167,875 | E124: =SUMIFS($F$33:$F$88,$E$33:$E$88,C124,$F$33:$F$88,">0") -> 0 | F124: =SUMIFS($F$33:$F$88,$E$33:$E$88,C124,$F$33:$F$88,"<0") -> (40,000) | G124: =SUM(E124:F124) -> (40,000) | H124: =SUM(D124,G124) -> 127,875 | I124: ='Assumptions'!$E$74 -> 75,000 | J124: =H124-I124 -> 52,875
C125: 2026-09-11 | D125: =H124 -> 127,875 | E125: =SUMIFS($F$33:$F$88,$E$33:$E$88,C125,$F$33:$F$88,">0") -> 90,000 | F125: =SUMIFS($F$33:$F$88,$E$33:$E$88,C125,$F$33:$F$88,"<0") -> (26,000) | G125: =SUM(E125:F125) -> 64,000 | H125: =SUM(D125,G125) -> 191,875 | I125: ='Assumptions'!$E$74 -> 75,000 | J125: =H125-I125 -> 116,875
C126: 2026-09-12 | D126: =H125 -> 191,875 | E126: =SUMIFS($F$33:$F$88,$E$33:$E$88,C126,$F$33:$F$88,">0") -> 0 | F126: =SUMIFS($F$33:$F$88,$E$33:$E$88,C126,$F$33:$F$88,"<0") -> 0 | G126: =SUM(E126:F126) -> 0 | H126: =SUM(D126,G126) -> 191,875 | I126: ='Assumptions'!$E$74 -> 75,000 | J126: =H126-I126 -> 116,875
C127: 2026-09-13 | D127: =H126 -> 191,875 | E127: =SUMIFS($F$33:$F$88,$E$33:$E$88,C127,$F$33:$F$88,">0") -> 0 | F127: =SUMIFS($F$33:$F$88,$E$33:$E$88,C127,$F$33:$F$88,"<0") -> 0 | G127: =SUM(E127:F127) -> 0 | H127: =SUM(D127,G127) -> 191,875 | I127: ='Assumptions'!$E$74 -> 75,000 | J127: =H127-I127 -> 116,875
C128: 2026-09-14 | D128: =H127 -> 191,875 | E128: =SUMIFS($F$33:$F$88,$E$33:$E$88,C128,$F$33:$F$88,">0") -> 0 | F128: =SUMIFS($F$33:$F$88,$E$33:$E$88,C128,$F$33:$F$88,"<0") -> 0 | G128: =SUM(E128:F128) -> 0 | H128: =SUM(D128,G128) -> 191,875 | I128: ='Assumptions'!$E$74 -> 75,000 | J128: =H128-I128 -> 116,875
C129: 2026-09-15 | D129: =H128 -> 191,875 | E129: =SUMIFS($F$33:$F$88,$E$33:$E$88,C129,$F$33:$F$88,">0") -> 0 | F129: =SUMIFS($F$33:$F$88,$E$33:$E$88,C129,$F$33:$F$88,"<0") -> (1,266) | G129: =SUM(E129:F129) -> (1,266) | H129: =SUM(D129,G129) -> 190,609 | I129: ='Assumptions'!$E$74 -> 75,000 | J129: =H129-I129 -> 115,609
C130: 2026-09-16 | D130: =H129 -> 190,609 | E130: =SUMIFS($F$33:$F$88,$E$33:$E$88,C130,$F$33:$F$88,">0") -> 0 | F130: =SUMIFS($F$33:$F$88,$E$33:$E$88,C130,$F$33:$F$88,"<0") -> 0 | G130: =SUM(E130:F130) -> 0 | H130: =SUM(D130,G130) -> 190,609 | I130: ='Assumptions'!$E$74 -> 75,000 | J130: =H130-I130 -> 115,609
C131: 2026-09-17 | D131: =H130 -> 190,609 | E131: =SUMIFS($F$33:$F$88,$E$33:$E$88,C131,$F$33:$F$88,">0") -> 0 | F131: =SUMIFS($F$33:$F$88,$E$33:$E$88,C131,$F$33:$F$88,"<0") -> 0 | G131: =SUM(E131:F131) -> 0 | H131: =SUM(D131,G131) -> 190,609 | I131: ='Assumptions'!$E$74 -> 75,000 | J131: =H131-I131 -> 115,609
C132: 2026-09-18 | D132: =H131 -> 190,609 | E132: =SUMIFS($F$33:$F$88,$E$33:$E$88,C132,$F$33:$F$88,">0") -> 79,000 | F132: =SUMIFS($F$33:$F$88,$E$33:$E$88,C132,$F$33:$F$88,"<0") -> (10,000) | G132: =SUM(E132:F132) -> 69,000 | H132: =SUM(D132,G132) -> 259,609 | I132: ='Assumptions'!$E$74 -> 75,000 | J132: =H132-I132 -> 184,609
C133: 2026-09-19 | D133: =H132 -> 259,609 | E133: =SUMIFS($F$33:$F$88,$E$33:$E$88,C133,$F$33:$F$88,">0") -> 0 | F133: =SUMIFS($F$33:$F$88,$E$33:$E$88,C133,$F$33:$F$88,"<0") -> 0 | G133: =SUM(E133:F133) -> 0 | H133: =SUM(D133,G133) -> 259,609 | I133: ='Assumptions'!$E$74 -> 75,000 | J133: =H133-I133 -> 184,609
C134: 2026-09-20 | D134: =H133 -> 259,609 | E134: =SUMIFS($F$33:$F$88,$E$33:$E$88,C134,$F$33:$F$88,">0") -> 0 | F134: =SUMIFS($F$33:$F$88,$E$33:$E$88,C134,$F$33:$F$88,"<0") -> 0 | G134: =SUM(E134:F134) -> 0 | H134: =SUM(D134,G134) -> 259,609 | I134: ='Assumptions'!$E$74 -> 75,000 | J134: =H134-I134 -> 184,609
C135: 2026-09-21 | D135: =H134 -> 259,609 | E135: =SUMIFS($F$33:$F$88,$E$33:$E$88,C135,$F$33:$F$88,">0") -> 0 | F135: =SUMIFS($F$33:$F$88,$E$33:$E$88,C135,$F$33:$F$88,"<0") -> (25,000) | G135: =SUM(E135:F135) -> (25,000) | H135: =SUM(D135,G135) -> 234,609 | I135: ='Assumptions'!$E$74 -> 75,000 | J135: =H135-I135 -> 159,609
C136: 2026-09-22 | D136: =H135 -> 234,609 | E136: =SUMIFS($F$33:$F$88,$E$33:$E$88,C136,$F$33:$F$88,">0") -> 0 | F136: =SUMIFS($F$33:$F$88,$E$33:$E$88,C136,$F$33:$F$88,"<0") -> 0 | G136: =SUM(E136:F136) -> 0 | H136: =SUM(D136,G136) -> 234,609 | I136: ='Assumptions'!$E$74 -> 75,000 | J136: =H136-I136 -> 159,609
C137: 2026-09-23 | D137: =H136 -> 234,609 | E137: =SUMIFS($F$33:$F$88,$E$33:$E$88,C137,$F$33:$F$88,">0") -> 0 | F137: =SUMIFS($F$33:$F$88,$E$33:$E$88,C137,$F$33:$F$88,"<0") -> 0 | G137: =SUM(E137:F137) -> 0 | H137: =SUM(D137,G137) -> 234,609 | I137: ='Assumptions'!$E$74 -> 75,000 | J137: =H137-I137 -> 159,609
C138: 2026-09-24 | D138: =H137 -> 234,609 | E138: =SUMIFS($F$33:$F$88,$E$33:$E$88,C138,$F$33:$F$88,">0") -> 0 | F138: =SUMIFS($F$33:$F$88,$E$33:$E$88,C138,$F$33:$F$88,"<0") -> 0 | G138: =SUM(E138:F138) -> 0 | H138: =SUM(D138,G138) -> 234,609 | I138: ='Assumptions'!$E$74 -> 75,000 | J138: =H138-I138 -> 159,609
C139: 2026-09-25 | D139: =H138 -> 234,609 | E139: =SUMIFS($F$33:$F$88,$E$33:$E$88,C139,$F$33:$F$88,">0") -> 93,000 | F139: =SUMIFS($F$33:$F$88,$E$33:$E$88,C139,$F$33:$F$88,"<0") -> (176,800) | G139: =SUM(E139:F139) -> (83,800) | H139: =SUM(D139,G139) -> 150,809 | I139: ='Assumptions'!$E$74 -> 75,000 | J139: =H139-I139 -> 75,809
C140: 2026-09-26 | D140: =H139 -> 150,809 | E140: =SUMIFS($F$33:$F$88,$E$33:$E$88,C140,$F$33:$F$88,">0") -> 0 | F140: =SUMIFS($F$33:$F$88,$E$33:$E$88,C140,$F$33:$F$88,"<0") -> 0 | G140: =SUM(E140:F140) -> 0 | H140: =SUM(D140,G140) -> 150,809 | I140: ='Assumptions'!$E$74 -> 75,000 | J140: =H140-I140 -> 75,809
C141: 2026-09-27 | D141: =H140 -> 150,809 | E141: =SUMIFS($F$33:$F$88,$E$33:$E$88,C141,$F$33:$F$88,">0") -> 0 | F141: =SUMIFS($F$33:$F$88,$E$33:$E$88,C141,$F$33:$F$88,"<0") -> 0 | G141: =SUM(E141:F141) -> 0 | H141: =SUM(D141,G141) -> 150,809 | I141: ='Assumptions'!$E$74 -> 75,000 | J141: =H141-I141 -> 75,809
C142: 2026-09-28 | D142: =H141 -> 150,809 | E142: =SUMIFS($F$33:$F$88,$E$33:$E$88,C142,$F$33:$F$88,">0") -> 0 | F142: =SUMIFS($F$33:$F$88,$E$33:$E$88,C142,$F$33:$F$88,"<0") -> (7,247) | G142: =SUM(E142:F142) -> (7,247) | H142: =SUM(D142,G142) -> 143,562 | I142: ='Assumptions'!$E$74 -> 75,000 | J142: =H142-I142 -> 68,562
C143: 2026-09-29 | D143: =H142 -> 143,562 | E143: =SUMIFS($F$33:$F$88,$E$33:$E$88,C143,$F$33:$F$88,">0") -> 0 | F143: =SUMIFS($F$33:$F$88,$E$33:$E$88,C143,$F$33:$F$88,"<0") -> 0 | G143: =SUM(E143:F143) -> 0 | H143: =SUM(D143,G143) -> 143,562 | I143: ='Assumptions'!$E$74 -> 75,000 | J143: =H143-I143 -> 68,562
C144: 2026-09-30 | D144: =H143 -> 143,562 | E144: =SUMIFS($F$33:$F$88,$E$33:$E$88,C144,$F$33:$F$88,">0") -> 0 | F144: =SUMIFS($F$33:$F$88,$E$33:$E$88,C144,$F$33:$F$88,"<0") -> 0 | G144: =SUM(E144:F144) -> 0 | H144: =SUM(D144,G144) -> 143,562 | I144: ='Assumptions'!$E$74 -> 75,000 | J144: =H144-I144 -> 68,562
C145: 2026-10-01 | D145: =H144 -> 143,562 | E145: =SUMIFS($F$33:$F$88,$E$33:$E$88,C145,$F$33:$F$88,">0") -> 0 | F145: =SUMIFS($F$33:$F$88,$E$33:$E$88,C145,$F$33:$F$88,"<0") -> 0 | G145: =SUM(E145:F145) -> 0 | H145: =SUM(D145,G145) -> 143,562 | I145: ='Assumptions'!$E$74 -> 75,000 | J145: =H145-I145 -> 68,562
C146: 2026-10-02 | D146: =H145 -> 143,562 | E146: =SUMIFS($F$33:$F$88,$E$33:$E$88,C146,$F$33:$F$88,">0") -> 0 | F146: =SUMIFS($F$33:$F$88,$E$33:$E$88,C146,$F$33:$F$88,"<0") -> 0 | G146: =SUM(E146:F146) -> 0 | H146: =SUM(D146,G146) -> 143,562 | I146: ='Assumptions'!$E$74 -> 75,000 | J146: =H146-I146 -> 68,562
C147: 2026-10-03 | D147: =H146 -> 143,562 | E147: =SUMIFS($F$33:$F$88,$E$33:$E$88,C147,$F$33:$F$88,">0") -> 0 | F147: =SUMIFS($F$33:$F$88,$E$33:$E$88,C147,$F$33:$F$88,"<0") -> 0 | G147: =SUM(E147:F147) -> 0 | H147: =SUM(D147,G147) -> 143,562 | I147: ='Assumptions'!$E$74 -> 75,000 | J147: =H147-I147 -> 68,562
C148: 2026-10-04 | D148: =H147 -> 143,562 | E148: =SUMIFS($F$33:$F$88,$E$33:$E$88,C148,$F$33:$F$88,">0") -> 0 | F148: =SUMIFS($F$33:$F$88,$E$33:$E$88,C148,$F$33:$F$88,"<0") -> 0 | G148: =SUM(E148:F148) -> 0 | H148: =SUM(D148,G148) -> 143,562 | I148: ='Assumptions'!$E$74 -> 75,000 | J148: =H148-I148 -> 68,562
C149: 2026-10-05 | D149: =H148 -> 143,562 | E149: =SUMIFS($F$33:$F$88,$E$33:$E$88,C149,$F$33:$F$88,">0") -> 0 | F149: =SUMIFS($F$33:$F$88,$E$33:$E$88,C149,$F$33:$F$88,"<0") -> 0 | G149: =SUM(E149:F149) -> 0 | H149: =SUM(D149,G149) -> 143,562 | I149: ='Assumptions'!$E$74 -> 75,000 | J149: =H149-I149 -> 68,562
C150: 2026-10-06 | D150: =H149 -> 143,562 | E150: =SUMIFS($F$33:$F$88,$E$33:$E$88,C150,$F$33:$F$88,">0") -> 0 | F150: =SUMIFS($F$33:$F$88,$E$33:$E$88,C150,$F$33:$F$88,"<0") -> 0 | G150: =SUM(E150:F150) -> 0 | H150: =SUM(D150,G150) -> 143,562 | I150: ='Assumptions'!$E$74 -> 75,000 | J150: =H150-I150 -> 68,562
C151: 2026-10-07 | D151: =H150 -> 143,562 | E151: =SUMIFS($F$33:$F$88,$E$33:$E$88,C151,$F$33:$F$88,">0") -> 0 | F151: =SUMIFS($F$33:$F$88,$E$33:$E$88,C151,$F$33:$F$88,"<0") -> 0 | G151: =SUM(E151:F151) -> 0 | H151: =SUM(D151,G151) -> 143,562 | I151: ='Assumptions'!$E$74 -> 75,000 | J151: =H151-I151 -> 68,562
C152: 2026-10-08 | D152: =H151 -> 143,562 | E152: =SUMIFS($F$33:$F$88,$E$33:$E$88,C152,$F$33:$F$88,">0") -> 0 | F152: =SUMIFS($F$33:$F$88,$E$33:$E$88,C152,$F$33:$F$88,"<0") -> (12,000) | G152: =SUM(E152:F152) -> (12,000) | H152: =SUM(D152,G152) -> 131,562 | I152: ='Assumptions'!$E$74 -> 75,000 | J152: =H152-I152 -> 56,562
C153: 2026-10-09 | D153: =H152 -> 131,562 | E153: =SUMIFS($F$33:$F$88,$E$33:$E$88,C153,$F$33:$F$88,">0") -> 0 | F153: =SUMIFS($F$33:$F$88,$E$33:$E$88,C153,$F$33:$F$88,"<0") -> 0 | G153: =SUM(E153:F153) -> 0 | H153: =SUM(D153,G153) -> 131,562 | I153: ='Assumptions'!$E$74 -> 75,000 | J153: =H153-I153 -> 56,562
C154: 2026-10-10 | D154: =H153 -> 131,562 | E154: =SUMIFS($F$33:$F$88,$E$33:$E$88,C154,$F$33:$F$88,">0") -> 0 | F154: =SUMIFS($F$33:$F$88,$E$33:$E$88,C154,$F$33:$F$88,"<0") -> (41,000) | G154: =SUM(E154:F154) -> (41,000) | H154: =SUM(D154,G154) -> 90,562 | I154: ='Assumptions'!$E$74 -> 75,000 | J154: =H154-I154 -> 15,562
C155: 2026-10-11 | D155: =H154 -> 90,562 | E155: =SUMIFS($F$33:$F$88,$E$33:$E$88,C155,$F$33:$F$88,">0") -> 0 | F155: =SUMIFS($F$33:$F$88,$E$33:$E$88,C155,$F$33:$F$88,"<0") -> 0 | G155: =SUM(E155:F155) -> 0 | H155: =SUM(D155,G155) -> 90,562 | I155: ='Assumptions'!$E$74 -> 75,000 | J155: =H155-I155 -> 15,562
C156: 2026-10-12 | D156: =H155 -> 90,562 | E156: =SUMIFS($F$33:$F$88,$E$33:$E$88,C156,$F$33:$F$88,">0") -> 0 | F156: =SUMIFS($F$33:$F$88,$E$33:$E$88,C156,$F$33:$F$88,"<0") -> 0 | G156: =SUM(E156:F156) -> 0 | H156: =SUM(D156,G156) -> 90,562 | I156: ='Assumptions'!$E$74 -> 75,000 | J156: =H156-I156 -> 15,562
C157: 2026-10-13 | D157: =H156 -> 90,562 | E157: =SUMIFS($F$33:$F$88,$E$33:$E$88,C157,$F$33:$F$88,">0") -> 0 | F157: =SUMIFS($F$33:$F$88,$E$33:$E$88,C157,$F$33:$F$88,"<0") -> 0 | G157: =SUM(E157:F157) -> 0 | H157: =SUM(D157,G157) -> 90,562 | I157: ='Assumptions'!$E$74 -> 75,000 | J157: =H157-I157 -> 15,562
C158: 2026-10-14 | D158: =H157 -> 90,562 | E158: =SUMIFS($F$33:$F$88,$E$33:$E$88,C158,$F$33:$F$88,">0") -> 0 | F158: =SUMIFS($F$33:$F$88,$E$33:$E$88,C158,$F$33:$F$88,"<0") -> 0 | G158: =SUM(E158:F158) -> 0 | H158: =SUM(D158,G158) -> 90,562 | I158: ='Assumptions'!$E$74 -> 75,000 | J158: =H158-I158 -> 15,562
C159: 2026-10-15 | D159: =H158 -> 90,562 | E159: =SUMIFS($F$33:$F$88,$E$33:$E$88,C159,$F$33:$F$88,">0") -> 105,840 | F159: =SUMIFS($F$33:$F$88,$E$33:$E$88,C159,$F$33:$F$88,"<0") -> (19,509) | G159: =SUM(E159:F159) -> 86,330 | H159: =SUM(D159,G159) -> 176,892 | I159: ='Assumptions'!$E$74 -> 75,000 | J159: =H159-I159 -> 101,892
C160: 2026-10-16 | D160: =H159 -> 176,892 | E160: =SUMIFS($F$33:$F$88,$E$33:$E$88,C160,$F$33:$F$88,">0") -> 0 | F160: =SUMIFS($F$33:$F$88,$E$33:$E$88,C160,$F$33:$F$88,"<0") -> 0 | G160: =SUM(E160:F160) -> 0 | H160: =SUM(D160,G160) -> 176,892 | I160: ='Assumptions'!$E$74 -> 75,000 | J160: =H160-I160 -> 101,892
C161: 2026-10-17 | D161: =H160 -> 176,892 | E161: =SUMIFS($F$33:$F$88,$E$33:$E$88,C161,$F$33:$F$88,">0") -> 0 | F161: =SUMIFS($F$33:$F$88,$E$33:$E$88,C161,$F$33:$F$88,"<0") -> 0 | G161: =SUM(E161:F161) -> 0 | H161: =SUM(D161,G161) -> 176,892 | I161: ='Assumptions'!$E$74 -> 75,000 | J161: =H161-I161 -> 101,892
C162: 2026-10-18 | D162: =H161 -> 176,892 | E162: =SUMIFS($F$33:$F$88,$E$33:$E$88,C162,$F$33:$F$88,">0") -> 0 | F162: =SUMIFS($F$33:$F$88,$E$33:$E$88,C162,$F$33:$F$88,"<0") -> 0 | G162: =SUM(E162:F162) -> 0 | H162: =SUM(D162,G162) -> 176,892 | I162: ='Assumptions'!$E$74 -> 75,000 | J162: =H162-I162 -> 101,892
C163: 2026-10-19 | D163: =H162 -> 176,892 | E163: =SUMIFS($F$33:$F$88,$E$33:$E$88,C163,$F$33:$F$88,">0") -> 0 | F163: =SUMIFS($F$33:$F$88,$E$33:$E$88,C163,$F$33:$F$88,"<0") -> 0 | G163: =SUM(E163:F163) -> 0 | H163: =SUM(D163,G163) -> 176,892 | I163: ='Assumptions'!$E$74 -> 75,000 | J163: =H163-I163 -> 101,892
C164: 2026-10-20 | D164: =H163 -> 176,892 | E164: =SUMIFS($F$33:$F$88,$E$33:$E$88,C164,$F$33:$F$88,">0") -> 0 | F164: =SUMIFS($F$33:$F$88,$E$33:$E$88,C164,$F$33:$F$88,"<0") -> 0 | G164: =SUM(E164:F164) -> 0 | H164: =SUM(D164,G164) -> 176,892 | I164: ='Assumptions'!$E$74 -> 75,000 | J164: =H164-I164 -> 101,892
C165: 2026-10-21 | D165: =H164 -> 176,892 | E165: =SUMIFS($F$33:$F$88,$E$33:$E$88,C165,$F$33:$F$88,">0") -> 0 | F165: =SUMIFS($F$33:$F$88,$E$33:$E$88,C165,$F$33:$F$88,"<0") -> 0 | G165: =SUM(E165:F165) -> 0 | H165: =SUM(D165,G165) -> 176,892 | I165: ='Assumptions'!$E$74 -> 75,000 | J165: =H165-I165 -> 101,892
C166: 2026-10-22 | D166: =H165 -> 176,892 | E166: =SUMIFS($F$33:$F$88,$E$33:$E$88,C166,$F$33:$F$88,">0") -> 0 | F166: =SUMIFS($F$33:$F$88,$E$33:$E$88,C166,$F$33:$F$88,"<0") -> 0 | G166: =SUM(E166:F166) -> 0 | H166: =SUM(D166,G166) -> 176,892 | I166: ='Assumptions'!$E$74 -> 75,000 | J166: =H166-I166 -> 101,892
C167: 2026-10-23 | D167: =H166 -> 176,892 | E167: =SUMIFS($F$33:$F$88,$E$33:$E$88,C167,$F$33:$F$88,">0") -> 0 | F167: =SUMIFS($F$33:$F$88,$E$33:$E$88,C167,$F$33:$F$88,"<0") -> 0 | G167: =SUM(E167:F167) -> 0 | H167: =SUM(D167,G167) -> 176,892 | I167: ='Assumptions'!$E$74 -> 75,000 | J167: =H167-I167 -> 101,892
C168: 2026-10-24 | D168: =H167 -> 176,892 | E168: =SUMIFS($F$33:$F$88,$E$33:$E$88,C168,$F$33:$F$88,">0") -> 0 | F168: =SUMIFS($F$33:$F$88,$E$33:$E$88,C168,$F$33:$F$88,"<0") -> 0 | G168: =SUM(E168:F168) -> 0 | H168: =SUM(D168,G168) -> 176,892 | I168: ='Assumptions'!$E$74 -> 75,000 | J168: =H168-I168 -> 101,892
C169: 2026-10-25 | D169: =H168 -> 176,892 | E169: =SUMIFS($F$33:$F$88,$E$33:$E$88,C169,$F$33:$F$88,">0") -> 0 | F169: =SUMIFS($F$33:$F$88,$E$33:$E$88,C169,$F$33:$F$88,"<0") -> (162,800) | G169: =SUM(E169:F169) -> (162,800) | H169: =SUM(D169,G169) -> 14,092 | I169: ='Assumptions'!$E$74 -> 75,000 | J169: =H169-I169 -> (60,908)
C170: 2026-10-26 | D170: =H169 -> 14,092 | E170: =SUMIFS($F$33:$F$88,$E$33:$E$88,C170,$F$33:$F$88,">0") -> 0 | F170: =SUMIFS($F$33:$F$88,$E$33:$E$88,C170,$F$33:$F$88,"<0") -> 0 | G170: =SUM(E170:F170) -> 0 | H170: =SUM(D170,G170) -> 14,092 | I170: ='Assumptions'!$E$74 -> 75,000 | J170: =H170-I170 -> (60,908)
C171: 2026-10-27 | D171: =H170 -> 14,092 | E171: =SUMIFS($F$33:$F$88,$E$33:$E$88,C171,$F$33:$F$88,">0") -> 0 | F171: =SUMIFS($F$33:$F$88,$E$33:$E$88,C171,$F$33:$F$88,"<0") -> 0 | G171: =SUM(E171:F171) -> 0 | H171: =SUM(D171,G171) -> 14,092 | I171: ='Assumptions'!$E$74 -> 75,000 | J171: =H171-I171 -> (60,908)
C172: 2026-10-28 | D172: =H171 -> 14,092 | E172: =SUMIFS($F$33:$F$88,$E$33:$E$88,C172,$F$33:$F$88,">0") -> 129,359 | F172: =SUMIFS($F$33:$F$88,$E$33:$E$88,C172,$F$33:$F$88,"<0") -> (29,520) | G172: =SUM(E172:F172) -> 99,840 | H172: =SUM(D172,G172) -> 113,931 | I172: ='Assumptions'!$E$74 -> 75,000 | J172: =H172-I172 -> 38,931
C173: 2026-10-29 | D173: =H172 -> 113,931 | E173: =SUMIFS($F$33:$F$88,$E$33:$E$88,C173,$F$33:$F$88,">0") -> 0 | F173: =SUMIFS($F$33:$F$88,$E$33:$E$88,C173,$F$33:$F$88,"<0") -> 0 | G173: =SUM(E173:F173) -> 0 | H173: =SUM(D173,G173) -> 113,931 | I173: ='Assumptions'!$E$74 -> 75,000 | J173: =H173-I173 -> 38,931
C174: 2026-10-30 | D174: =H173 -> 113,931 | E174: =SUMIFS($F$33:$F$88,$E$33:$E$88,C174,$F$33:$F$88,">0") -> 0 | F174: =SUMIFS($F$33:$F$88,$E$33:$E$88,C174,$F$33:$F$88,"<0") -> 0 | G174: =SUM(E174:F174) -> 0 | H174: =SUM(D174,G174) -> 113,931 | I174: ='Assumptions'!$E$74 -> 75,000 | J174: =H174-I174 -> 38,931
C175: 2026-10-31 | D175: =H174 -> 113,931 | E175: =SUMIFS($F$33:$F$88,$E$33:$E$88,C175,$F$33:$F$88,">0") -> 0 | F175: =SUMIFS($F$33:$F$88,$E$33:$E$88,C175,$F$33:$F$88,"<0") -> 0 | G175: =SUM(E175:F175) -> 0 | H175: =SUM(D175,G175) -> 113,931 | I175: ='Assumptions'!$E$74 -> 75,000 | J175: =H175-I175 -> 38,931
C176: 2026-11-01 | D176: =H175 -> 113,931 | E176: =SUMIFS($F$33:$F$88,$E$33:$E$88,C176,$F$33:$F$88,">0") -> 0 | F176: =SUMIFS($F$33:$F$88,$E$33:$E$88,C176,$F$33:$F$88,"<0") -> 0 | G176: =SUM(E176:F176) -> 0 | H176: =SUM(D176,G176) -> 113,931 | I176: ='Assumptions'!$E$74 -> 75,000 | J176: =H176-I176 -> 38,931
C177: 2026-11-02 | D177: =H176 -> 113,931 | E177: =SUMIFS($F$33:$F$88,$E$33:$E$88,C177,$F$33:$F$88,">0") -> 0 | F177: =SUMIFS($F$33:$F$88,$E$33:$E$88,C177,$F$33:$F$88,"<0") -> 0 | G177: =SUM(E177:F177) -> 0 | H177: =SUM(D177,G177) -> 113,931 | I177: ='Assumptions'!$E$74 -> 75,000 | J177: =H177-I177 -> 38,931
C178: 2026-11-03 | D178: =H177 -> 113,931 | E178: =SUMIFS($F$33:$F$88,$E$33:$E$88,C178,$F$33:$F$88,">0") -> 0 | F178: =SUMIFS($F$33:$F$88,$E$33:$E$88,C178,$F$33:$F$88,"<0") -> 0 | G178: =SUM(E178:F178) -> 0 | H178: =SUM(D178,G178) -> 113,931 | I178: ='Assumptions'!$E$74 -> 75,000 | J178: =H178-I178 -> 38,931
C179: 2026-11-04 | D179: =H178 -> 113,931 | E179: =SUMIFS($F$33:$F$88,$E$33:$E$88,C179,$F$33:$F$88,">0") -> 0 | F179: =SUMIFS($F$33:$F$88,$E$33:$E$88,C179,$F$33:$F$88,"<0") -> 0 | G179: =SUM(E179:F179) -> 0 | H179: =SUM(D179,G179) -> 113,931 | I179: ='Assumptions'!$E$74 -> 75,000 | J179: =H179-I179 -> 38,931
C180: 2026-11-05 | D180: =H179 -> 113,931 | E180: =SUMIFS($F$33:$F$88,$E$33:$E$88,C180,$F$33:$F$88,">0") -> 0 | F180: =SUMIFS($F$33:$F$88,$E$33:$E$88,C180,$F$33:$F$88,"<0") -> 0 | G180: =SUM(E180:F180) -> 0 | H180: =SUM(D180,G180) -> 113,931 | I180: ='Assumptions'!$E$74 -> 75,000 | J180: =H180-I180 -> 38,931
C181: 2026-11-06 | D181: =H180 -> 113,931 | E181: =SUMIFS($F$33:$F$88,$E$33:$E$88,C181,$F$33:$F$88,">0") -> 0 | F181: =SUMIFS($F$33:$F$88,$E$33:$E$88,C181,$F$33:$F$88,"<0") -> 0 | G181: =SUM(E181:F181) -> 0 | H181: =SUM(D181,G181) -> 113,931 | I181: ='Assumptions'!$E$74 -> 75,000 | J181: =H181-I181 -> 38,931
C182: 2026-11-07 | D182: =H181 -> 113,931 | E182: =SUMIFS($F$33:$F$88,$E$33:$E$88,C182,$F$33:$F$88,">0") -> 0 | F182: =SUMIFS($F$33:$F$88,$E$33:$E$88,C182,$F$33:$F$88,"<0") -> 0 | G182: =SUM(E182:F182) -> 0 | H182: =SUM(D182,G182) -> 113,931 | I182: ='Assumptions'!$E$74 -> 75,000 | J182: =H182-I182 -> 38,931
C183: 2026-11-08 | D183: =H182 -> 113,931 | E183: =SUMIFS($F$33:$F$88,$E$33:$E$88,C183,$F$33:$F$88,">0") -> 0 | F183: =SUMIFS($F$33:$F$88,$E$33:$E$88,C183,$F$33:$F$88,"<0") -> (12,000) | G183: =SUM(E183:F183) -> (12,000) | H183: =SUM(D183,G183) -> 101,931 | I183: ='Assumptions'!$E$74 -> 75,000 | J183: =H183-I183 -> 26,931
C184: 2026-11-09 | D184: =H183 -> 101,931 | E184: =SUMIFS($F$33:$F$88,$E$33:$E$88,C184,$F$33:$F$88,">0") -> 0 | F184: =SUMIFS($F$33:$F$88,$E$33:$E$88,C184,$F$33:$F$88,"<0") -> 0 | G184: =SUM(E184:F184) -> 0 | H184: =SUM(D184,G184) -> 101,931 | I184: ='Assumptions'!$E$74 -> 75,000 | J184: =H184-I184 -> 26,931
C185: 2026-11-10 | D185: =H184 -> 101,931 | E185: =SUMIFS($F$33:$F$88,$E$33:$E$88,C185,$F$33:$F$88,">0") -> 0 | F185: =SUMIFS($F$33:$F$88,$E$33:$E$88,C185,$F$33:$F$88,"<0") -> (42,000) | G185: =SUM(E185:F185) -> (42,000) | H185: =SUM(D185,G185) -> 59,931 | I185: ='Assumptions'!$E$74 -> 75,000 | J185: =H185-I185 -> (15,069)
C186: 2026-11-11 | D186: =H185 -> 59,931 | E186: =SUMIFS($F$33:$F$88,$E$33:$E$88,C186,$F$33:$F$88,">0") -> 0 | F186: =SUMIFS($F$33:$F$88,$E$33:$E$88,C186,$F$33:$F$88,"<0") -> 0 | G186: =SUM(E186:F186) -> 0 | H186: =SUM(D186,G186) -> 59,931 | I186: ='Assumptions'!$E$74 -> 75,000 | J186: =H186-I186 -> (15,069)
C187: 2026-11-12 | D187: =H186 -> 59,931 | E187: =SUMIFS($F$33:$F$88,$E$33:$E$88,C187,$F$33:$F$88,">0") -> 0 | F187: =SUMIFS($F$33:$F$88,$E$33:$E$88,C187,$F$33:$F$88,"<0") -> 0 | G187: =SUM(E187:F187) -> 0 | H187: =SUM(D187,G187) -> 59,931 | I187: ='Assumptions'!$E$74 -> 75,000 | J187: =H187-I187 -> (15,069)
C188: 2026-11-13 | D188: =H187 -> 59,931 | E188: =SUMIFS($F$33:$F$88,$E$33:$E$88,C188,$F$33:$F$88,">0") -> 0 | F188: =SUMIFS($F$33:$F$88,$E$33:$E$88,C188,$F$33:$F$88,"<0") -> 0 | G188: =SUM(E188:F188) -> 0 | H188: =SUM(D188,G188) -> 59,931 | I188: ='Assumptions'!$E$74 -> 75,000 | J188: =H188-I188 -> (15,069)
C189: 2026-11-14 | D189: =H188 -> 59,931 | E189: =SUMIFS($F$33:$F$88,$E$33:$E$88,C189,$F$33:$F$88,">0") -> 0 | F189: =SUMIFS($F$33:$F$88,$E$33:$E$88,C189,$F$33:$F$88,"<0") -> 0 | G189: =SUM(E189:F189) -> 0 | H189: =SUM(D189,G189) -> 59,931 | I189: ='Assumptions'!$E$74 -> 75,000 | J189: =H189-I189 -> (15,069)
C190: 2026-11-15 | D190: =H189 -> 59,931 | E190: =SUMIFS($F$33:$F$88,$E$33:$E$88,C190,$F$33:$F$88,">0") -> 145,778 | F190: =SUMIFS($F$33:$F$88,$E$33:$E$88,C190,$F$33:$F$88,"<0") -> (17,910) | G190: =SUM(E190:F190) -> 127,868 | H190: =SUM(D190,G190) -> 187,800 | I190: ='Assumptions'!$E$74 -> 75,000 | J190: =H190-I190 -> 112,800
C191: 2026-11-16 | D191: =H190 -> 187,800 | E191: =SUMIFS($F$33:$F$88,$E$33:$E$88,C191,$F$33:$F$88,">0") -> 0 | F191: =SUMIFS($F$33:$F$88,$E$33:$E$88,C191,$F$33:$F$88,"<0") -> 0 | G191: =SUM(E191:F191) -> 0 | H191: =SUM(D191,G191) -> 187,800 | I191: ='Assumptions'!$E$74 -> 75,000 | J191: =H191-I191 -> 112,800
C192: 2026-11-17 | D192: =H191 -> 187,800 | E192: =SUMIFS($F$33:$F$88,$E$33:$E$88,C192,$F$33:$F$88,">0") -> 0 | F192: =SUMIFS($F$33:$F$88,$E$33:$E$88,C192,$F$33:$F$88,"<0") -> 0 | G192: =SUM(E192:F192) -> 0 | H192: =SUM(D192,G192) -> 187,800 | I192: ='Assumptions'!$E$74 -> 75,000 | J192: =H192-I192 -> 112,800
C193: 2026-11-18 | D193: =H192 -> 187,800 | E193: =SUMIFS($F$33:$F$88,$E$33:$E$88,C193,$F$33:$F$88,">0") -> 0 | F193: =SUMIFS($F$33:$F$88,$E$33:$E$88,C193,$F$33:$F$88,"<0") -> 0 | G193: =SUM(E193:F193) -> 0 | H193: =SUM(D193,G193) -> 187,800 | I193: ='Assumptions'!$E$74 -> 75,000 | J193: =H193-I193 -> 112,800
C194: 2026-11-19 | D194: =H193 -> 187,800 | E194: =SUMIFS($F$33:$F$88,$E$33:$E$88,C194,$F$33:$F$88,">0") -> 0 | F194: =SUMIFS($F$33:$F$88,$E$33:$E$88,C194,$F$33:$F$88,"<0") -> 0 | G194: =SUM(E194:F194) -> 0 | H194: =SUM(D194,G194) -> 187,800 | I194: ='Assumptions'!$E$74 -> 75,000 | J194: =H194-I194 -> 112,800
C195: 2026-11-20 | D195: =H194 -> 187,800 | E195: =SUMIFS($F$33:$F$88,$E$33:$E$88,C195,$F$33:$F$88,">0") -> 0 | F195: =SUMIFS($F$33:$F$88,$E$33:$E$88,C195,$F$33:$F$88,"<0") -> 0 | G195: =SUM(E195:F195) -> 0 | H195: =SUM(D195,G195) -> 187,800 | I195: ='Assumptions'!$E$74 -> 75,000 | J195: =H195-I195 -> 112,800
C196: 2026-11-21 | D196: =H195 -> 187,800 | E196: =SUMIFS($F$33:$F$88,$E$33:$E$88,C196,$F$33:$F$88,">0") -> 0 | F196: =SUMIFS($F$33:$F$88,$E$33:$E$88,C196,$F$33:$F$88,"<0") -> 0 | G196: =SUM(E196:F196) -> 0 | H196: =SUM(D196,G196) -> 187,800 | I196: ='Assumptions'!$E$74 -> 75,000 | J196: =H196-I196 -> 112,800
C197: 2026-11-22 | D197: =H196 -> 187,800 | E197: =SUMIFS($F$33:$F$88,$E$33:$E$88,C197,$F$33:$F$88,">0") -> 0 | F197: =SUMIFS($F$33:$F$88,$E$33:$E$88,C197,$F$33:$F$88,"<0") -> 0 | G197: =SUM(E197:F197) -> 0 | H197: =SUM(D197,G197) -> 187,800 | I197: ='Assumptions'!$E$74 -> 75,000 | J197: =H197-I197 -> 112,800
C198: 2026-11-23 | D198: =H197 -> 187,800 | E198: =SUMIFS($F$33:$F$88,$E$33:$E$88,C198,$F$33:$F$88,">0") -> 0 | F198: =SUMIFS($F$33:$F$88,$E$33:$E$88,C198,$F$33:$F$88,"<0") -> 0 | G198: =SUM(E198:F198) -> 0 | H198: =SUM(D198,G198) -> 187,800 | I198: ='Assumptions'!$E$74 -> 75,000 | J198: =H198-I198 -> 112,800
C199: 2026-11-24 | D199: =H198 -> 187,800 | E199: =SUMIFS($F$33:$F$88,$E$33:$E$88,C199,$F$33:$F$88,">0") -> 0 | F199: =SUMIFS($F$33:$F$88,$E$33:$E$88,C199,$F$33:$F$88,"<0") -> 0 | G199: =SUM(E199:F199) -> 0 | H199: =SUM(D199,G199) -> 187,800 | I199: ='Assumptions'!$E$74 -> 75,000 | J199: =H199-I199 -> 112,800
C200: 2026-11-25 | D200: =H199 -> 187,800 | E200: =SUMIFS($F$33:$F$88,$E$33:$E$88,C200,$F$33:$F$88,">0") -> 0 | F200: =SUMIFS($F$33:$F$88,$E$33:$E$88,C200,$F$33:$F$88,"<0") -> (172,500) | G200: =SUM(E200:F200) -> (172,500) | H200: =SUM(D200,G200) -> 15,300 | I200: ='Assumptions'!$E$74 -> 75,000 | J200: =H200-I200 -> (59,700)
C201: 2026-11-26 | D201: =H200 -> 15,300 | E201: =SUMIFS($F$33:$F$88,$E$33:$E$88,C201,$F$33:$F$88,">0") -> 0 | F201: =SUMIFS($F$33:$F$88,$E$33:$E$88,C201,$F$33:$F$88,"<0") -> 0 | G201: =SUM(E201:F201) -> 0 | H201: =SUM(D201,G201) -> 15,300 | I201: ='Assumptions'!$E$74 -> 75,000 | J201: =H201-I201 -> (59,700)
C202: 2026-11-27 | D202: =H201 -> 15,300 | E202: =SUMIFS($F$33:$F$88,$E$33:$E$88,C202,$F$33:$F$88,">0") -> 0 | F202: =SUMIFS($F$33:$F$88,$E$33:$E$88,C202,$F$33:$F$88,"<0") -> 0 | G202: =SUM(E202:F202) -> 0 | H202: =SUM(D202,G202) -> 15,300 | I202: ='Assumptions'!$E$74 -> 75,000 | J202: =H202-I202 -> (59,700)
C203: 2026-11-28 | D203: =H202 -> 15,300 | E203: =SUMIFS($F$33:$F$88,$E$33:$E$88,C203,$F$33:$F$88,">0") -> 178,173 | F203: =SUMIFS($F$33:$F$88,$E$33:$E$88,C203,$F$33:$F$88,"<0") -> (27,539) | G203: =SUM(E203:F203) -> 150,634 | H203: =SUM(D203,G203) -> 165,933 | I203: ='Assumptions'!$E$74 -> 75,000 | J203: =H203-I203 -> 90,933
C204: 2026-11-29 | D204: =H203 -> 165,933 | E204: =SUMIFS($F$33:$F$88,$E$33:$E$88,C204,$F$33:$F$88,">0") -> 0 | F204: =SUMIFS($F$33:$F$88,$E$33:$E$88,C204,$F$33:$F$88,"<0") -> 0 | G204: =SUM(E204:F204) -> 0 | H204: =SUM(D204,G204) -> 165,933 | I204: ='Assumptions'!$E$74 -> 75,000 | J204: =H204-I204 -> 90,933

Sheet Revenue capacity
C2: Revenue capacity
C4: Selected case | E4: ='Assumptions'!$G$4 -> Base | H4: EUR · entirely fictional
E6: Actual | F6: Actual | G6: Actual | H6: Actual | I6: Actual | J6: Actual | K6: Actual | L6: Actual | M6: Forecast | N6: Forecast | O6: Forecast | P6: Forecast
E7: 2026-01-01 | F7: 2026-02-01 | G7: 2026-03-01 | H7: 2026-04-01 | I7: 2026-05-01 | J7: 2026-06-01 | K7: 2026-07-01 | L7: 2026-08-01 | M7: 2026-09-01 | N7: 2026-10-01 | O7: 2026-11-01 | P7: 2026-12-01
C8: Active retainers | E8: ='Assumptions'!E8 -> 18 | F8: ='Assumptions'!F8 -> 19 | G8: ='Assumptions'!G8 -> 19 | H8: ='Assumptions'!H8 -> 20 | I8: ='Assumptions'!I8 -> 21 | J8: ='Assumptions'!J8 -> 21 | K8: ='Assumptions'!K8 -> 22 | L8: ='Assumptions'!L8 -> 22 | M8: ='Assumptions'!M8 -> 23 | N8: ='Assumptions'!N8 -> 24 | O8: ='Assumptions'!O8 -> 25 | P8: ='Assumptions'!P8 -> 26
C9: Monthly retainer fee | E9: ='Assumptions'!E11 -> 5,000 | F9: ='Assumptions'!F11 -> 5,000 | G9: ='Assumptions'!G11 -> 5,000 | H9: ='Assumptions'!H11 -> 5,000 | I9: ='Assumptions'!I11 -> 5,000 | J9: ='Assumptions'!J11 -> 5,000 | K9: ='Assumptions'!K11 -> 5,000 | L9: ='Assumptions'!L11 -> 5,000 | M9: ='Assumptions'!M11 -> 5,100 | N9: ='Assumptions'!N11 -> 5,100 | O9: ='Assumptions'!O11 -> 5,200 | P9: ='Assumptions'!P11 -> 5,200
C10: Retainer revenue | E10: =E8*E9 -> 90,000 | F10: =F8*F9 -> 95,000 | G10: =G8*G9 -> 95,000 | H10: =H8*H9 -> 100,000 | I10: =I8*I9 -> 105,000 | J10: =J8*J9 -> 105,000 | K10: =K8*K9 -> 110,000 | L10: =L8*L9 -> 110,000 | M10: =M8*M9 -> 117,300 | N10: =N8*N9 -> 122,400 | O10: =O8*O9 -> 130,000 | P10: =P8*P9 -> 135,200
C11: Billable project days | E11: ='Assumptions'!E14 -> 135 | F11: ='Assumptions'!F14 -> 140 | G11: ='Assumptions'!G14 -> 150 | H11: ='Assumptions'!H14 -> 155 | I11: ='Assumptions'!I14 -> 152 | J11: ='Assumptions'!J14 -> 145 | K11: ='Assumptions'!K14 -> 158 | L11: ='Assumptions'!L14 -> 150 | M11: ='Assumptions'!M14 -> 170 | N11: ='Assumptions'!N14 -> 180 | O11: ='Assumptions'!O14 -> 185 | P11: ='Assumptions'!P14 -> 170
C12: Project day rate | E12: ='Assumptions'!E17 -> 850 | F12: ='Assumptions'!F17 -> 850 | G12: ='Assumptions'!G17 -> 850 | H12: ='Assumptions'!H17 -> 850 | I12: ='Assumptions'!I17 -> 850 | J12: ='Assumptions'!J17 -> 850 | K12: ='Assumptions'!K17 -> 850 | L12: ='Assumptions'!L17 -> 850 | M12: ='Assumptions'!M17 -> 875 | N12: ='Assumptions'!N17 -> 875 | O12: ='Assumptions'!O17 -> 900 | P12: ='Assumptions'!P17 -> 900
C13: Project revenue | E13: =E11*E12 -> 114,750 | F13: =F11*F12 -> 119,000 | G13: =G11*G12 -> 127,500 | H13: =H11*H12 -> 131,750 | I13: =I11*I12 -> 129,200 | J13: =J11*J12 -> 123,250 | K13: =K11*K12 -> 134,300 | L13: =L11*L12 -> 127,500 | M13: =M11*M12 -> 148,750 | N13: =N11*N12 -> 157,500 | O13: =O11*O12 -> 166,500 | P13: =P11*P12 -> 153,000
C14: Implementations completed | E14: ='Assumptions'!E20 -> 2 | F14: ='Assumptions'!F20 -> 2 | G14: ='Assumptions'!G20 -> 3 | H14: ='Assumptions'!H20 -> 3 | I14: ='Assumptions'!I20 -> 2 | J14: ='Assumptions'!J20 -> 3 | K14: ='Assumptions'!K20 -> 2 | L14: ='Assumptions'!L20 -> 2 | M14: ='Assumptions'!M20 -> 3 | N14: ='Assumptions'!N20 -> 3 | O14: ='Assumptions'!O20 -> 4 | P14: ='Assumptions'!P20 -> 3
C15: Implementation fee | E15: ='Assumptions'!E23 -> 12,000 | F15: ='Assumptions'!F23 -> 12,000 | G15: ='Assumptions'!G23 -> 12,000 | H15: ='Assumptions'!H23 -> 12,000 | I15: ='Assumptions'!I23 -> 12,000 | J15: ='Assumptions'!J23 -> 12,000 | K15: ='Assumptions'!K23 -> 12,000 | L15: ='Assumptions'!L23 -> 12,000 | M15: ='Assumptions'!M23 -> 12,500 | N15: ='Assumptions'!N23 -> 12,500 | O15: ='Assumptions'!O23 -> 12,500 | P15: ='Assumptions'!P23 -> 12,500
C16: Implementation revenue | E16: =E14*E15 -> 24,000 | F16: =F14*F15 -> 24,000 | G16: =G14*G15 -> 36,000 | H16: =H14*H15 -> 36,000 | I16: =I14*I15 -> 24,000 | J16: =J14*J15 -> 36,000 | K16: =K14*K15 -> 24,000 | L16: =L14*L15 -> 24,000 | M16: =M14*M15 -> 37,500 | N16: =N14*N15 -> 37,500 | O16: =O14*O15 -> 50,000 | P16: =P14*P15 -> 37,500
C17: Total revenue | E17: =SUM(E10,E13,E16) -> €228,750 | F17: =SUM(F10,F13,F16) -> €238,000 | G17: =SUM(G10,G13,G16) -> €258,500 | H17: =SUM(H10,H13,H16) -> €267,750 | I17: =SUM(I10,I13,I16) -> €258,200 | J17: =SUM(J10,J13,J16) -> €264,250 | K17: =SUM(K10,K13,K16) -> €268,300 | L17: =SUM(L10,L13,L16) -> €261,500 | M17: =SUM(M10,M13,M16) -> €303,550 | N17: =SUM(N10,N13,N16) -> €317,400 | O17: =SUM(O10,O13,O16) -> €346,500 | P17: =SUM(P10,P13,P16) -> €325,700
C19: Paid delivery FTE | E19: ='Assumptions'!E26 -> 20.0 | F19: ='Assumptions'!F26 -> 20.0 | G19: ='Assumptions'!G26 -> 20.0 | H19: ='Assumptions'!H26 -> 21.0 | I19: ='Assumptions'!I26 -> 21.0 | J19: ='Assumptions'!J26 -> 21.0 | K19: ='Assumptions'!K26 -> 22.0 | L19: ='Assumptions'!L26 -> 22.0 | M19: ='Assumptions'!M26 -> 22.0 | N19: ='Assumptions'!N26 -> 22.0 | O19: ='Assumptions'!O26 -> 23.0 | P19: ='Assumptions'!P26 -> 23.0
C20: Monthly loaded pay per FTE | E20: ='Assumptions'!E29 -> 5,200 | F20: ='Assumptions'!F29 -> 5,200 | G20: ='Assumptions'!G29 -> 5,200 | H20: ='Assumptions'!H29 -> 5,300 | I20: ='Assumptions'!I29 -> 5,300 | J20: ='Assumptions'!J29 -> 5,300 | K20: ='Assumptions'!K29 -> 5,400 | L20: ='Assumptions'!L29 -> 5,400 | M20: ='Assumptions'!M29 -> 5,400 | N20: ='Assumptions'!N29 -> 5,400 | O20: ='Assumptions'!O29 -> 5,500 | P20: ='Assumptions'!P29 -> 5,500
C21: Direct payroll cost | E21: =E19*E20 -> 104,000 | F21: =F19*F20 -> 104,000 | G21: =G19*G20 -> 104,000 | H21: =H19*H20 -> 111,300 | I21: =I19*I20 -> 111,300 | J21: =J19*J20 -> 111,300 | K21: =K19*K20 -> 118,800 | L21: =L19*L20 -> 118,800 | M21: =M19*M20 -> 118,800 | N21: =N19*N20 -> 118,800 | O21: =O19*O20 -> 126,500 | P21: =P19*P20 -> 126,500
C22: Subcontractor days | E22: ='Assumptions'!E32 -> 42 | F22: ='Assumptions'!F32 -> 44 | G22: ='Assumptions'!G32 -> 47 | H22: ='Assumptions'!H32 -> 48 | I22: ='Assumptions'!I32 -> 51 | J22: ='Assumptions'!J32 -> 56 | K22: ='Assumptions'!K32 -> 60 | L22: ='Assumptions'!L32 -> 65 | M22: ='Assumptions'!M32 -> 52 | N22: ='Assumptions'!N32 -> 50 | O22: ='Assumptions'!O32 -> 50 | P22: ='Assumptions'!P32 -> 46
C23: Subcontractor day rate | E23: ='Assumptions'!E35 -> 550 | F23: ='Assumptions'!F35 -> 550 | G23: ='Assumptions'!G35 -> 550 | H23: ='Assumptions'!H35 -> 575 | I23: ='Assumptions'!I35 -> 575 | J23: ='Assumptions'!J35 -> 575 | K23: ='Assumptions'!K35 -> 600 | L23: ='Assumptions'!L35 -> 600 | M23: ='Assumptions'!M35 -> 600 | N23: ='Assumptions'!N35 -> 600 | O23: ='Assumptions'!O35 -> 600 | P23: ='Assumptions'!P35 -> 600
C24: Subcontractor cost | E24: =E22*E23 -> 23,100 | F24: =F22*F23 -> 24,200 | G24: =G22*G23 -> 25,850 | H24: =H22*H23 -> 27,600 | I24: =I22*I23 -> 29,325 | J24: =J22*J23 -> 32,200 | K24: =K22*K23 -> 36,000 | L24: =L22*L23 -> 39,000 | M24: =M22*M23 -> 31,200 | N24: =N22*N23 -> 30,000 | O24: =O22*O23 -> 30,000 | P24: =P22*P23 -> 27,600
C25: Direct software | E25: ='Assumptions'!E38 -> 9,000 | F25: ='Assumptions'!F38 -> 9,000 | G25: ='Assumptions'!G38 -> 9,500 | H25: ='Assumptions'!H38 -> 9,500 | I25: ='Assumptions'!I38 -> 10,000 | J25: ='Assumptions'!J38 -> 10,000 | K25: ='Assumptions'!K38 -> 10,500 | L25: ='Assumptions'!L38 -> 10,500 | M25: ='Assumptions'!M38 -> 11,000 | N25: ='Assumptions'!N38 -> 11,000 | O25: ='Assumptions'!O38 -> 11,500 | P25: ='Assumptions'!P38 -> 11,500
C27: Available internal delivery days | E27: =E19*'Assumptions'!$E$78 -> 400 | F27: =F19*'Assumptions'!$E$78 -> 400 | G27: =G19*'Assumptions'!$E$78 -> 400 | H27: =H19*'Assumptions'!$E$78 -> 420 | I27: =I19*'Assumptions'!$E$78 -> 420 | J27: =J19*'Assumptions'!$E$78 -> 420 | K27: =K19*'Assumptions'!$E$78 -> 440 | L27: =L19*'Assumptions'!$E$78 -> 440 | M27: =M19*'Assumptions'!$E$78 -> 440 | N27: =N19*'Assumptions'!$E$78 -> 440 | O27: =O19*'Assumptions'!$E$78 -> 460 | P27: =P19*'Assumptions'!$E$78 -> 460
C28: Retainer delivery days | E28: =E8*'Assumptions'!$E$79 -> 90 | F28: =F8*'Assumptions'!$E$79 -> 95 | G28: =G8*'Assumptions'!$E$79 -> 95 | H28: =H8*'Assumptions'!$E$79 -> 100 | I28: =I8*'Assumptions'!$E$79 -> 105 | J28: =J8*'Assumptions'!$E$79 -> 105 | K28: =K8*'Assumptions'!$E$79 -> 110 | L28: =L8*'Assumptions'!$E$79 -> 110 | M28: =M8*'Assumptions'!$E$79 -> 115 | N28: =N8*'Assumptions'!$E$79 -> 120 | O28: =O8*'Assumptions'!$E$79 -> 125 | P28: =P8*'Assumptions'!$E$79 -> 130
C29: Implementation delivery days | E29: =E14*'Assumptions'!$E$80 -> 40 | F29: =F14*'Assumptions'!$E$80 -> 40 | G29: =G14*'Assumptions'!$E$80 -> 60 | H29: =H14*'Assumptions'!$E$80 -> 60 | I29: =I14*'Assumptions'!$E$80 -> 40 | J29: =J14*'Assumptions'!$E$80 -> 60 | K29: =K14*'Assumptions'!$E$80 -> 40 | L29: =L14*'Assumptions'!$E$80 -> 40 | M29: =M14*'Assumptions'!$E$80 -> 60 | N29: =N14*'Assumptions'!$E$80 -> 60 | O29: =O14*'Assumptions'!$E$80 -> 80 | P29: =P14*'Assumptions'!$E$80 -> 60
C30: Total delivery days required | E30: =SUM(E11,E28:E29) -> 265 | F30: =SUM(F11,F28:F29) -> 275 | G30: =SUM(G11,G28:G29) -> 305 | H30: =SUM(H11,H28:H29) -> 315 | I30: =SUM(I11,I28:I29) -> 297 | J30: =SUM(J11,J28:J29) -> 310 | K30: =SUM(K11,K28:K29) -> 308 | L30: =SUM(L11,L28:L29) -> 300 | M30: =SUM(M11,M28:M29) -> 345 | N30: =SUM(N11,N28:N29) -> 360 | O30: =SUM(O11,O28:O29) -> 390 | P30: =SUM(P11,P28:P29) -> 360
C31: Internal delivery days required | E31: =E30-E22 -> 223 | F31: =F30-F22 -> 231 | G31: =G30-G22 -> 258 | H31: =H30-H22 -> 267 | I31: =I30-I22 -> 246 | J31: =J30-J22 -> 254 | K31: =K30-K22 -> 248 | L31: =L30-L22 -> 235 | M31: =M30-M22 -> 293 | N31: =N30-N22 -> 310 | O31: =O30-O22 -> 340 | P31: =P30-P22 -> 314
C32: Internal capacity utilization | E32: =E31/E27 -> 55.8% | F32: =F31/F27 -> 57.8% | G32: =G31/G27 -> 64.5% | H32: =H31/H27 -> 63.6% | I32: =I31/I27 -> 58.6% | J32: =J31/J27 -> 60.5% | K32: =K31/K27 -> 56.4% | L32: =L31/L27 -> 53.4% | M32: =M31/M27 -> 66.6% | N32: =N31/N27 -> 70.5% | O32: =O31/O27 -> 73.9% | P32: =P31/P27 -> 68.3%
C33: Revenue per paid delivery FTE | E33: =E17/E19 -> 11,438 | F33: =F17/F19 -> 11,900 | G33: =G17/G19 -> 12,925 | H33: =H17/H19 -> 12,750 | I33: =I17/I19 -> 12,295 | J33: =J17/J19 -> 12,583 | K33: =K17/K19 -> 12,195 | L33: =L17/L19 -> 11,886 | M33: =M17/M19 -> 13,798 | N33: =N17/N19 -> 14,427 | O33: =O17/O19 -> 15,065 | P33: =P17/P19 -> 14,161
C34: Revenue per delivery day | E34: =E17/E30 -> 863 | F34: =F17/F30 -> 865 | G34: =G17/G30 -> 848 | H34: =H17/H30 -> 850 | I34: =I17/I30 -> 869 | J34: =J17/J30 -> 852 | K34: =K17/K30 -> 871 | L34: =L17/L30 -> 872 | M34: =M17/M30 -> 880 | N34: =N17/N30 -> 882 | O34: =O17/O30 -> 888 | P34: =P17/P30 -> 905
C35: Unallocated internal days | E35: =E27-E31 -> 177 | F35: =F27-F31 -> 169 | G35: =G27-G31 -> 142 | H35: =H27-H31 -> 153 | I35: =I27-I31 -> 174 | J35: =J27-J31 -> 166 | K35: =K27-K31 -> 192 | L35: =L27-L31 -> 205 | M35: =M27-M31 -> 147 | N35: =N27-N31 -> 130 | O35: =O27-O31 -> 120 | P35: =P27-P31 -> 146
C36: Implied closing AR days | E36: ='Working capital'!E16/'P&L'!E11*31 -> 25.7 | F36: ='Working capital'!F16/'P&L'!F11*28 -> 24.1 | G36: ='Working capital'!G16/'P&L'!G11*31 -> 25.8 | H36: ='Working capital'!H16/'P&L'!H11*30 -> 27.5 | I36: ='Working capital'!I16/'P&L'!I11*31 -> 31.2 | J36: ='Working capital'!J16/'P&L'!J11*30 -> 32.9 | K36: ='Working capital'!K16/'P&L'!K11*31 -> 37.6 | L36: ='Working capital'!L16/'P&L'!L11*31 -> 42.7 | M36: ='Working capital'!M16/'P&L'!M11*30 -> 30.1 | N36: ='Working capital'!N16/'P&L'!N11*31 -> 38.0 | O36: ='Working capital'!O16/'P&L'!O11*30 -> 36.0 | P36: ='Working capital'!P16/'P&L'!P11*31 -> 36.0
C37: Utilization excludes leave and bench beyond the 20 available days assumption.

Sheet Working capital
C2: Working capital
C4: Selected case | E4: ='Assumptions'!$G$4 -> Base | H4: EUR · entirely fictional
E6: Actual | F6: Actual | G6: Actual | H6: Actual | I6: Actual | J6: Actual | K6: Actual | L6: Actual | M6: Forecast | N6: Forecast | O6: Forecast | P6: Forecast
E7: 2026-01-01 | F7: 2026-02-01 | G7: 2026-03-01 | H7: 2026-04-01 | I7: 2026-05-01 | J7: 2026-06-01 | K7: 2026-07-01 | L7: 2026-08-01 | M7: 2026-09-01 | N7: 2026-10-01 | O7: 2026-11-01 | P7: 2026-12-01
C8: Opening accounts receivable | E8: ='Actual inputs'!$E$40 -> 170,000 | F8: =E16 -> 190,000 | G8: =F16 -> 205,000 | H8: =G16 -> 215,000 | I8: =H16 -> 245,000 | J8: =I16 -> 260,000 | K8: =J16 -> 290,000 | L8: =K16 -> 325,000 | M8: =L16 -> 360,000 | N8: =M16 -> 304,065 | O8: =N16 -> 389,071 | P8: =O16 -> 415,800
C9: Revenue earned | E9: ='P&L'!E11 -> 228,750 | F9: ='P&L'!F11 -> 238,000 | G9: ='P&L'!G11 -> 258,500 | H9: ='P&L'!H11 -> 267,750 | I9: ='P&L'!I11 -> 258,200 | J9: ='P&L'!J11 -> 264,250 | K9: ='P&L'!K11 -> 268,300 | L9: ='P&L'!L11 -> 261,500 | M9: ='P&L'!M11 -> 303,550 | N9: ='P&L'!N11 -> 317,400 | O9: ='P&L'!O11 -> 346,500 | P9: ='P&L'!P11 -> 325,700
C10: Opening invoices scheduled receipts | E10: =0 -> 0 | F10: =0 -> 0 | G10: =0 -> 0 | H10: =0 -> 0 | I10: =0 -> 0 | J10: =0 -> 0 | K10: =0 -> 0 | L10: =0 -> 0 | M10: =SUMIFS($F$38:$F$45,$K$38:$K$45,">="&M$7,$K$38:$K$45,"<"&EDATE(M$7,1)) -> 360,000 | N10: =SUMIFS($F$38:$F$45,$K$38:$K$45,">="&N$7,$K$38:$K$45,"<"&EDATE(N$7,1)) -> 0 | O10: =SUMIFS($F$38:$F$45,$K$38:$K$45,">="&O$7,$K$38:$K$45,"<"&EDATE(O$7,1)) -> 0 | P10: =SUMIFS($F$38:$F$45,$K$38:$K$45,">="&P$7,$K$38:$K$45,"<"&EDATE(P$7,1)) -> 0
C11: Target closing AR at selected DSO | E11: ='Actual inputs'!E23 -> 190,000 | F11: ='Actual inputs'!F23 -> 205,000 | G11: ='Actual inputs'!G23 -> 215,000 | H11: ='Actual inputs'!H23 -> 245,000 | I11: ='Actual inputs'!I23 -> 260,000 | J11: ='Actual inputs'!J23 -> 290,000 | K11: ='Actual inputs'!K23 -> 325,000 | L11: ='Actual inputs'!L23 -> 360,000 | M11: =M9*'Assumptions'!M53/30 -> 404,733 | N11: =N9*'Assumptions'!N53/31 -> 389,071 | O11: =O9*'Assumptions'!O53/30 -> 415,800 | P11: =P9*'Assumptions'!P53/31 -> 378,232
C12: Unpaid opening invoice floor | E12: =0 -> 0 | F12: =0 -> 0 | G12: =0 -> 0 | H12: =0 -> 0 | I12: =0 -> 0 | J12: =0 -> 0 | K12: =0 -> 0 | L12: =0 -> 0 | M12: =SUMIFS($F$38:$F$45,$K$38:$K$45,">="&EDATE(M$7,1)) -> 0 | N12: =SUMIFS($F$38:$F$45,$K$38:$K$45,">="&EDATE(N$7,1)) -> 0 | O12: =SUMIFS($F$38:$F$45,$K$38:$K$45,">="&EDATE(O$7,1)) -> 0 | P12: =SUMIFS($F$38:$F$45,$K$38:$K$45,">="&EDATE(P$7,1)) -> 0
C13: Closing deferred revenue | E13: ='Actual inputs'!E27 -> 50,000 | F13: ='Actual inputs'!F27 -> 52,000 | G13: ='Actual inputs'!G27 -> 54,000 | H13: ='Actual inputs'!H27 -> 58,000 | I13: ='Actual inputs'!I27 -> 60,000 | J13: ='Actual inputs'!J27 -> 56,000 | K13: ='Actual inputs'!K27 -> 58,000 | L13: ='Actual inputs'!L27 -> 64,000 | M13: ='P&L'!M8*'Assumptions'!$E$81 -> 64,515 | N13: ='P&L'!N8*'Assumptions'!$E$81 -> 67,320 | O13: ='P&L'!O8*'Assumptions'!$E$81 -> 71,500 | P13: ='P&L'!P8*'Assumptions'!$E$81 -> 74,360
C14: Increase / (release) in deferrals | E14: =E13-'Actual inputs'!$E$46 -> 2,000 | F14: =F13-E13 -> 2,000 | G14: =G13-F13 -> 2,000 | H14: =H13-G13 -> 4,000 | I14: =I13-H13 -> 2,000 | J14: =J13-I13 -> (4,000) | K14: =K13-J13 -> 2,000 | L14: =L13-K13 -> 6,000 | M14: =M13-L13 -> 515 | N14: =N13-M13 -> 2,805 | O14: =O13-N13 -> 4,180 | P14: =P13-O13 -> 2,860
C15: AR after scheduled opening receipts | E15: =E8+E9+E14-E10 -> 400,750 | F15: =F8+F9+F14-F10 -> 430,000 | G15: =G8+G9+G14-G10 -> 465,500 | H15: =H8+H9+H14-H10 -> 486,750 | I15: =I8+I9+I14-I10 -> 505,200 | J15: =J8+J9+J14-J10 -> 520,250 | K15: =K8+K9+K14-K10 -> 560,300 | L15: =L8+L9+L14-L10 -> 592,500 | M15: =M8+M9+M14-M10 -> 304,065 | N15: =N8+N9+N14-N10 -> 624,270 | O15: =O8+O9+O14-O10 -> 739,751 | P15: =P8+P9+P14-P10 -> 744,360
C16: Closing accounts receivable | E16: ='Actual inputs'!E23 -> €190,000 | F16: ='Actual inputs'!F23 -> €205,000 | G16: ='Actual inputs'!G23 -> €215,000 | H16: ='Actual inputs'!H23 -> €245,000 | I16: ='Actual inputs'!I23 -> €260,000 | J16: ='Actual inputs'!J23 -> €290,000 | K16: ='Actual inputs'!K23 -> €325,000 | L16: ='Actual inputs'!L23 -> €360,000 | M16: =MAX(M12,MIN(M11,M15)) -> €304,065 | N16: =MAX(N12,MIN(N11,N15)) -> €389,071 | O16: =MAX(O12,MIN(O11,O15)) -> €415,800 | P16: =MAX(P12,MIN(P11,P15)) -> €378,232
C17: Total customer cash receipts | E17: =E8+E9+E14-E16 -> €210,750 | F17: =F8+F9+F14-F16 -> €225,000 | G17: =G8+G9+G14-G16 -> €250,500 | H17: =H8+H9+H14-H16 -> €241,750 | I17: =I8+I9+I14-I16 -> €245,200 | J17: =J8+J9+J14-J16 -> €230,250 | K17: =K8+K9+K14-K16 -> €235,300 | L17: =L8+L9+L14-L16 -> €232,500 | M17: =M8+M9+M14-M16 -> €360,000 | N17: =N8+N9+N14-N16 -> €235,199 | O17: =O8+O9+O14-O16 -> €323,951 | P17: =P8+P9+P14-P16 -> €366,128
C18: Receipts from new activity | E18: =E17-E10 -> 210,750 | F18: =F17-F10 -> 225,000 | G18: =G17-G10 -> 250,500 | H18: =H17-H10 -> 241,750 | I18: =I17-I10 -> 245,200 | J18: =J17-J10 -> 230,250 | K18: =K17-K10 -> 235,300 | L18: =L17-L10 -> 232,500 | M18: =M17-M10 -> 0 | N18: =N17-N10 -> 235,199 | O18: =O17-O10 -> 323,951 | P18: =P17-P10 -> 366,128
C20: Opening accounts payable | E20: ='Actual inputs'!$E$44 -> 55,000 | F20: =E25 -> 56,000 | G20: =F25 -> 58,000 | H20: =G25 -> 60,000 | I20: =H25 -> 66,000 | J20: =I25 -> 61,000 | K20: =J25 -> 65,000 | L20: =K25 -> 70,000 | M20: =L25 -> 78,000 | N20: =M25 -> 56,387 | O20: =N25 -> 54,032 | P20: =O25 -> 55,733
C21: Supplier expense incurred | E21: =-'P&L'!E13-'P&L'!E14 -> 32,100 | F21: =-'P&L'!F13-'P&L'!F14 -> 33,200 | G21: =-'P&L'!G13-'P&L'!G14 -> 35,350 | H21: =-'P&L'!H13-'P&L'!H14 -> 37,100 | I21: =-'P&L'!I13-'P&L'!I14 -> 39,325 | J21: =-'P&L'!J13-'P&L'!J14 -> 42,200 | K21: =-'P&L'!K13-'P&L'!K14 -> 46,500 | L21: =-'P&L'!L13-'P&L'!L14 -> 49,500 | M21: =-'P&L'!M13-'P&L'!M14 -> 42,200 | N21: =-'P&L'!N13-'P&L'!N14 -> 41,000 | O21: =-'P&L'!O13-'P&L'!O14 -> 41,500 | P21: =-'P&L'!P13-'P&L'!P14 -> 39,100
C22: Opening invoices scheduled payments | E22: =0 -> 0 | F22: =0 -> 0 | G22: =0 -> 0 | H22: =0 -> 0 | I22: =0 -> 0 | J22: =0 -> 0 | K22: =0 -> 0 | L22: =0 -> 0 | M22: =SUMIFS($M$53:$M$60,$L$53:$L$60,">="&M$7,$L$53:$L$60,"<"&EDATE(M$7,1)) -> 61,000 | N22: =SUMIFS($M$53:$M$60,$L$53:$L$60,">="&N$7,$L$53:$L$60,"<"&EDATE(N$7,1)) -> 0 | O22: =SUMIFS($M$53:$M$60,$L$53:$L$60,">="&O$7,$L$53:$L$60,"<"&EDATE(O$7,1)) -> 0 | P22: =SUMIFS($M$53:$M$60,$L$53:$L$60,">="&P$7,$L$53:$L$60,"<"&EDATE(P$7,1)) -> 0
C23: Opening invoices still unpaid | E23: =0 -> 0 | F23: =0 -> 0 | G23: =0 -> 0 | H23: =0 -> 0 | I23: =0 -> 0 | J23: =0 -> 0 | K23: =0 -> 0 | L23: =0 -> 0 | M23: =SUM($F$53:$F$60)-SUMIFS($M$53:$M$60,$L$53:$L$60,"<"&EDATE(M$7,1),$L$53:$L$60,">0") -> 17,000 | N23: =SUM($F$53:$F$60)-SUMIFS($M$53:$M$60,$L$53:$L$60,"<"&EDATE(N$7,1),$L$53:$L$60,">0") -> 17,000 | O23: =SUM($F$53:$F$60)-SUMIFS($M$53:$M$60,$L$53:$L$60,"<"&EDATE(O$7,1),$L$53:$L$60,">0") -> 17,000 | P23: =SUM($F$53:$F$60)-SUMIFS($M$53:$M$60,$L$53:$L$60,"<"&EDATE(P$7,1),$L$53:$L$60,">0") -> 17,000
C24: New supplier AP at selected DPO | E24: =0 -> 0 | F24: =0 -> 0 | G24: =0 -> 0 | H24: =0 -> 0 | I24: =0 -> 0 | J24: =0 -> 0 | K24: =0 -> 0 | L24: =0 -> 0 | M24: =M21*'Assumptions'!M56/30 -> 39,387 | N24: =N21*'Assumptions'!N56/31 -> 37,032 | O24: =O21*'Assumptions'!O56/30 -> 38,733 | P24: =P21*'Assumptions'!P56/31 -> 35,316
C25: Closing accounts payable | E25: ='Actual inputs'!E24 -> €56,000 | F25: ='Actual inputs'!F24 -> €58,000 | G25: ='Actual inputs'!G24 -> €60,000 | H25: ='Actual inputs'!H24 -> €66,000 | I25: ='Actual inputs'!I24 -> €61,000 | J25: ='Actual inputs'!J24 -> €65,000 | K25: ='Actual inputs'!K24 -> €70,000 | L25: ='Actual inputs'!L24 -> €78,000 | M25: =SUM(M23:M24) -> €56,387 | N25: =SUM(N23:N24) -> €54,032 | O25: =SUM(O23:O24) -> €55,733 | P25: =SUM(P23:P24) -> €52,316
C26: Total supplier cash payments | E26: =-(E20+E21-E25) -> (€31,100) | F26: =-(F20+F21-F25) -> (€31,200) | G26: =-(G20+G21-G25) -> (€33,350) | H26: =-(H20+H21-H25) -> (€31,100) | I26: =-(I20+I21-I25) -> (€44,325) | J26: =-(J20+J21-J25) -> (€38,200) | K26: =-(K20+K21-K25) -> (€41,500) | L26: =-(L20+L21-L25) -> (€41,500) | M26: =-(M20+M21-M25) -> (€63,813) | N26: =-(N20+N21-N25) -> (€43,354) | O26: =-(O20+O21-O25) -> (€39,799) | P26: =-(P20+P21-P25) -> (€42,517)
C27: Payments for new supplier activity | E27: =E26+E22 -> (31,100) | F27: =F26+F22 -> (31,200) | G27: =G26+G22 -> (33,350) | H27: =H26+H22 -> (31,100) | I27: =I26+I22 -> (44,325) | J27: =J26+J22 -> (38,200) | K27: =K26+K22 -> (41,500) | L27: =L26+L22 -> (41,500) | M27: =M26+M22 -> (2,813) | N27: =N26+N22 -> (43,354) | O27: =O26+O22 -> (39,799) | P27: =P26+P22 -> (42,517)
C29: Closing prepayments | E29: ='Actual inputs'!E26 -> 18,000 | F29: ='Actual inputs'!F26 -> 18,000 | G29: ='Actual inputs'!G26 -> 20,000 | H29: ='Actual inputs'!H26 -> 18,000 | I29: ='Actual inputs'!I26 -> 18,000 | J29: ='Actual inputs'!J26 -> 24,000 | K29: ='Actual inputs'!K26 -> 22,000 | L29: ='Actual inputs'!L26 -> 20,000 | M29: ='Actual inputs'!L26 -> 20,000 | N29: ='Actual inputs'!L26 -> 20,000 | O29: ='Actual inputs'!L26 -> 20,000 | P29: ='Actual inputs'!L26 -> 20,000
C30: Closing accruals | E30: ='Actual inputs'!E25 -> 28,000 | F30: ='Actual inputs'!F25 -> 29,000 | G30: ='Actual inputs'!G25 -> 30,000 | H30: ='Actual inputs'!H25 -> 31,000 | I30: ='Actual inputs'!I25 -> 32,000 | J30: ='Actual inputs'!J25 -> 33,000 | K30: ='Actual inputs'!K25 -> 34,000 | L30: ='Actual inputs'!L25 -> 36,000 | M30: ='Actual inputs'!L25 -> 36,000 | N30: ='Actual inputs'!L25 -> 36,000 | O30: ='Actual inputs'!L25 -> 36,000 | P30: ='Actual inputs'!L25 -> 36,000
C31: Payroll cash payments | E31: ='P&L'!E12+'P&L'!E19+E30-'Actual inputs'!$E$45 -> (142,000) | F31: ='P&L'!F12+'P&L'!F19+F30-E30 -> (143,000) | G31: ='P&L'!G12+'P&L'!G19+G30-F30 -> (143,000) | H31: ='P&L'!H12+'P&L'!H19+H30-G30 -> (152,300) | I31: ='P&L'!I12+'P&L'!I19+I30-H30 -> (152,300) | J31: ='P&L'!J12+'P&L'!J19+J30-I30 -> (152,300) | K31: ='P&L'!K12+'P&L'!K19+K30-J30 -> (161,800) | L31: ='P&L'!L12+'P&L'!L19+L30-K30 -> (160,800) | M31: ='P&L'!M12+'P&L'!M19+M30-L30 -> (162,800) | N31: ='P&L'!N12+'P&L'!N19+N30-M30 -> (162,800) | O31: ='P&L'!O12+'P&L'!O19+O30-N30 -> (172,500) | P31: ='P&L'!P12+'P&L'!P19+P30-O30 -> (172,500)
C32: Overhead cash payments | E32: ='P&L'!E18+'P&L'!E20+'P&L'!E21+'Actual inputs'!$E$41-E29 -> (32,500) | F32: ='P&L'!F18+'P&L'!F20+'P&L'!F21+E29-F29 -> (34,500) | G32: ='P&L'!G18+'P&L'!G20+'P&L'!G21+F29-G29 -> (39,000) | H32: ='P&L'!H18+'P&L'!H20+'P&L'!H21+G29-H29 -> (33,500) | I32: ='P&L'!I18+'P&L'!I20+'P&L'!I21+H29-I29 -> (37,000) | J32: ='P&L'!J18+'P&L'!J20+'P&L'!J21+I29-J29 -> (44,500) | K32: ='P&L'!K18+'P&L'!K20+'P&L'!K21+J29-K29 -> (37,500) | L32: ='P&L'!L18+'P&L'!L20+'P&L'!L21+K29-L29 -> (38,600) | M32: ='P&L'!M18+'P&L'!M20+'P&L'!M21+L29-M29 -> (40,000) | N32: ='P&L'!N18+'P&L'!N20+'P&L'!N21+M29-N29 -> (41,000) | O32: ='P&L'!O18+'P&L'!O20+'P&L'!O21+N29-O29 -> (42,000) | P32: ='P&L'!P18+'P&L'!P20+'P&L'!P21+O29-P29 -> (41,000)
C35: Receivables at 31 August 2026
C37: Record ID | D37: Invoice date | E37: Due date | F37: EUR open | G37: Receipt plan | H37: Collection state | I37: Days overdue | J37: Age band | K37: Active receipt
C38: AR-2601 | D38: 2026-05-15 | E38: 2026-06-14 | F38: 22,000 | G38: 2026-09-18 | H38: Escalated | I38: =MAX(0,DATE(2026,8,31)-E38) -> 78 | J38: =IF(I38=0,"Current",IF(I38<=30,"1–30",IF(I38<=60,"31–60",IF(I38<=90,"61–90","90+")))) -> 61–90 | K38: =G38+'Assumptions'!M65 -> 2026-09-18
C39: AR-2602 | D39: 2026-06-10 | E39: 2026-07-10 | F39: 38,000 | G39: 2026-09-25 | H39: Payment plan | I39: =MAX(0,DATE(2026,8,31)-E39) -> 52 | J39: =IF(I39=0,"Current",IF(I39<=30,"1–30",IF(I39<=60,"31–60",IF(I39<=90,"61–90","90+")))) -> 31–60 | K39: =G39+'Assumptions'!M65 -> 2026-09-25
C40: AR-2603 | D40: 2026-07-01 | E40: 2026-07-31 | F40: 42,000 | G40: 2026-09-11 | H40: Promised | I40: =MAX(0,DATE(2026,8,31)-E40) -> 31 | J40: =IF(I40=0,"Current",IF(I40<=30,"1–30",IF(I40<=60,"31–60",IF(I40<=90,"61–90","90+")))) -> 31–60 | K40: =G40+'Assumptions'!M65 -> 2026-09-11
C41: AR-2604 | D41: 2026-07-20 | E41: 2026-08-19 | F41: 46,000 | G41: 2026-09-04 | H41: Confirmed | I41: =MAX(0,DATE(2026,8,31)-E41) -> 12 | J41: =IF(I41=0,"Current",IF(I41<=30,"1–30",IF(I41<=60,"31–60",IF(I41<=90,"61–90","90+")))) -> 1–30 | K41: =G41+'Assumptions'!M65 -> 2026-09-04
C42: AR-2605 | D42: 2026-07-31 | E42: 2026-08-30 | F42: 52,000 | G42: 2026-09-04 | H42: Confirmed | I42: =MAX(0,DATE(2026,8,31)-E42) -> 1 | J42: =IF(I42=0,"Current",IF(I42<=30,"1–30",IF(I42<=60,"31–60",IF(I42<=90,"61–90","90+")))) -> 1–30 | K42: =G42+'Assumptions'!M65 -> 2026-09-04
C43: AR-2606 | D43: 2026-08-05 | E43: 2026-09-04 | F43: 48,000 | G43: 2026-09-11 | H43: Scheduled | I43: =MAX(0,DATE(2026,8,31)-E43) -> 0 | J43: =IF(I43=0,"Current",IF(I43<=30,"1–30",IF(I43<=60,"31–60",IF(I43<=90,"61–90","90+")))) -> Current | K43: =G43+'Assumptions'!M65 -> 2026-09-11
C44: AR-2607 | D44: 2026-08-15 | E44: 2026-09-14 | F44: 57,000 | G44: 2026-09-18 | H44: Scheduled | I44: =MAX(0,DATE(2026,8,31)-E44) -> 0 | J44: =IF(I44=0,"Current",IF(I44<=30,"1–30",IF(I44<=60,"31–60",IF(I44<=90,"61–90","90+")))) -> Current | K44: =G44+'Assumptions'!M65 -> 2026-09-18
C45: AR-2608 | D45: 2026-08-25 | E45: 2026-09-24 | F45: 55,000 | G45: 2026-09-25 | H45: Scheduled | I45: =MAX(0,DATE(2026,8,31)-E45) -> 0 | J45: =IF(I45=0,"Current",IF(I45<=30,"1–30",IF(I45<=60,"31–60",IF(I45<=90,"61–90","90+")))) -> Current | K45: =G45+'Assumptions'!M65 -> 2026-09-25
C47: Total receivables | F47: =SUM(F38:F45) -> 360,000
C50: Payables at 31 August 2026
C52: Record ID | D52: Invoice date | E52: Due date | F52: EUR open | G52: Payment plan | H52: Approval | I52: Hold | J52: Days overdue | K52: Age band | L52: Active payment | M52: Eligible EUR | N52: Next action | O52: Invoice total | P52: Paid to date | Q52: Review
C53: AP-2601 | D53: 2026-06-20 | E53: 2026-07-20 | F53: =O53-P53 -> 9,000 | G53: 2026-09-04 | H53: Pending | I53: Yes | J53: =MAX(0,DATE(2026,8,31)-E53) -> 42 | K53: =IF(J53=0,"Current",IF(J53<=30,"1–30",IF(J53<=60,"31–60",IF(J53<=90,"61–90","90+")))) -> 31–60 | L53: =IF(AND(H53="Approved",I53="No",Q53="Complete"),G53,0) -> 00:00:00 | M53: =IF(AND(H53="Approved",I53="No",Q53="Complete"),F53,0) -> 0 | N53: =IF(AND(H53="Approved",I53="No",Q53="Complete"),"Scheduled",IF(H53<>"Approved","Approve. ","")&IF(Q53<>"Complete","Review. ","")&IF(I53="Yes","Release hold.","")) -> Approve. Release hold. | O53: 12,000 | P53: 3,000 | Q53: Complete
C54: AP-2602 | D54: 2026-07-01 | E54: 2026-07-31 | F54: =O54-P54 -> 11,000 | G54: 2026-09-04 | H54: Approved | I54: No | J54: =MAX(0,DATE(2026,8,31)-E54) -> 31 | K54: =IF(J54=0,"Current",IF(J54<=30,"1–30",IF(J54<=60,"31–60",IF(J54<=90,"61–90","90+")))) -> 31–60 | L54: =IF(AND(H54="Approved",I54="No",Q54="Complete"),G54,0) -> 2026-09-04 | M54: =IF(AND(H54="Approved",I54="No",Q54="Complete"),F54,0) -> 11,000 | N54: =IF(AND(H54="Approved",I54="No",Q54="Complete"),"Scheduled",IF(H54<>"Approved","Approve. ","")&IF(Q54<>"Complete","Review. ","")&IF(I54="Yes","Release hold.","")) -> Scheduled | O54: 11,000 | P54: 0 | Q54: Complete
C55: AP-2603 | D55: 2026-07-15 | E55: 2026-08-14 | F55: =O55-P55 -> 12,000 | G55: 2026-09-11 | H55: Approved | I55: No | J55: =MAX(0,DATE(2026,8,31)-E55) -> 17 | K55: =IF(J55=0,"Current",IF(J55<=30,"1–30",IF(J55<=60,"31–60",IF(J55<=90,"61–90","90+")))) -> 1–30 | L55: =IF(AND(H55="Approved",I55="No",Q55="Complete"),G55,0) -> 2026-09-11 | M55: =IF(AND(H55="Approved",I55="No",Q55="Complete"),F55,0) -> 12,000 | N55: =IF(AND(H55="Approved",I55="No",Q55="Complete"),"Scheduled",IF(H55<>"Approved","Approve. ","")&IF(Q55<>"Complete","Review. ","")&IF(I55="Yes","Release hold.","")) -> Scheduled | O55: 18,000 | P55: 6,000 | Q55: Complete
C56: AP-2604 | D56: 2026-07-31 | E56: 2026-08-30 | F56: =O56-P56 -> 8,000 | G56: 2026-09-04 | H56: Pending | I56: No | J56: =MAX(0,DATE(2026,8,31)-E56) -> 1 | K56: =IF(J56=0,"Current",IF(J56<=30,"1–30",IF(J56<=60,"31–60",IF(J56<=90,"61–90","90+")))) -> 1–30 | L56: =IF(AND(H56="Approved",I56="No",Q56="Complete"),G56,0) -> 00:00:00 | M56: =IF(AND(H56="Approved",I56="No",Q56="Complete"),F56,0) -> 0 | N56: =IF(AND(H56="Approved",I56="No",Q56="Complete"),"Scheduled",IF(H56<>"Approved","Approve. ","")&IF(Q56<>"Complete","Review. ","")&IF(I56="Yes","Release hold.","")) -> Approve. Review. | O56: 10,000 | P56: 2,000 | Q56: Pending
C57: AP-2605 | D57: 2026-08-05 | E57: 2026-09-04 | F57: =O57-P57 -> 14,000 | G57: 2026-09-11 | H57: Approved | I57: No | J57: =MAX(0,DATE(2026,8,31)-E57) -> 0 | K57: =IF(J57=0,"Current",IF(J57<=30,"1–30",IF(J57<=60,"31–60",IF(J57<=90,"61–90","90+")))) -> Current | L57: =IF(AND(H57="Approved",I57="No",Q57="Complete"),G57,0) -> 2026-09-11 | M57: =IF(AND(H57="Approved",I57="No",Q57="Complete"),F57,0) -> 14,000 | N57: =IF(AND(H57="Approved",I57="No",Q57="Complete"),"Scheduled",IF(H57<>"Approved","Approve. ","")&IF(Q57<>"Complete","Review. ","")&IF(I57="Yes","Release hold.","")) -> Scheduled | O57: 14,000 | P57: 0 | Q57: Complete
C58: AP-2606 | D58: 2026-08-15 | E58: 2026-09-14 | F58: =O58-P58 -> 10,000 | G58: 2026-09-18 | H58: Approved | I58: No | J58: =MAX(0,DATE(2026,8,31)-E58) -> 0 | K58: =IF(J58=0,"Current",IF(J58<=30,"1–30",IF(J58<=60,"31–60",IF(J58<=90,"61–90","90+")))) -> Current | L58: =IF(AND(H58="Approved",I58="No",Q58="Complete"),G58,0) -> 2026-09-18 | M58: =IF(AND(H58="Approved",I58="No",Q58="Complete"),F58,0) -> 10,000 | N58: =IF(AND(H58="Approved",I58="No",Q58="Complete"),"Scheduled",IF(H58<>"Approved","Approve. ","")&IF(Q58<>"Complete","Review. ","")&IF(I58="Yes","Release hold.","")) -> Scheduled | O58: 15,000 | P58: 5,000 | Q58: Complete
C59: AP-2607 | D59: 2026-08-20 | E59: 2026-09-19 | F59: =O59-P59 -> 7,000 | G59: 2026-09-25 | H59: Approved | I59: No | J59: =MAX(0,DATE(2026,8,31)-E59) -> 0 | K59: =IF(J59=0,"Current",IF(J59<=30,"1–30",IF(J59<=60,"31–60",IF(J59<=90,"61–90","90+")))) -> Current | L59: =IF(AND(H59="Approved",I59="No",Q59="Complete"),G59,0) -> 2026-09-25 | M59: =IF(AND(H59="Approved",I59="No",Q59="Complete"),F59,0) -> 7,000 | N59: =IF(AND(H59="Approved",I59="No",Q59="Complete"),"Scheduled",IF(H59<>"Approved","Approve. ","")&IF(Q59<>"Complete","Review. ","")&IF(I59="Yes","Release hold.","")) -> Scheduled | O59: 7,000 | P59: 0 | Q59: Complete
C60: AP-2608 | D60: 2026-08-25 | E60: 2026-09-24 | F60: =O60-P60 -> 7,000 | G60: 2026-09-25 | H60: Approved | I60: No | J60: =MAX(0,DATE(2026,8,31)-E60) -> 0 | K60: =IF(J60=0,"Current",IF(J60<=30,"1–30",IF(J60<=60,"31–60",IF(J60<=90,"61–90","90+")))) -> Current | L60: =IF(AND(H60="Approved",I60="No",Q60="Complete"),G60,0) -> 2026-09-25 | M60: =IF(AND(H60="Approved",I60="No",Q60="Complete"),F60,0) -> 7,000 | N60: =IF(AND(H60="Approved",I60="No",Q60="Complete"),"Scheduled",IF(H60<>"Approved","Approve. ","")&IF(Q60<>"Complete","Review. ","")&IF(I60="Yes","Release hold.","")) -> Scheduled | O60: 7,000 | P60: 0 | Q60: Complete
C62: Total payables | F62: =SUM(F53:F60) -> 78,000
C64: Due dates calculate age. Payment requires approval, completed review and no hold.
C66: Ageing and workflow exposure
C67: Age band | E67: AR | F67: AP
C68: Current | E68: =SUMIFS($F$38:$F$45,$J$38:$J$45,C68) -> 160,000 | F68: =SUMIFS($F$53:$F$60,$K$53:$K$60,C68) -> 38,000 | K68: Original invoice total | O68: =SUM(O53:O60) -> 94,000
C69: 1–30 | E69: =SUMIFS($F$38:$F$45,$J$38:$J$45,C69) -> 98,000 | F69: =SUMIFS($F$53:$F$60,$K$53:$K$60,C69) -> 20,000 | K69: Paid to date | O69: =SUM(P53:P60) -> 16,000
C70: 31–60 | E70: =SUMIFS($F$38:$F$45,$J$38:$J$45,C70) -> 80,000 | F70: =SUMIFS($F$53:$F$60,$K$53:$K$60,C70) -> 20,000 | K70: Outstanding ledger AP | O70: =O68-O69 -> 78,000
C71: 61–90 | E71: =SUMIFS($F$38:$F$45,$J$38:$J$45,C71) -> 22,000 | F71: =SUMIFS($F$53:$F$60,$K$53:$K$60,C71) -> 0 | K71: Pending / held / not reviewed | O71: =SUM(F53:F60)-SUM(M53:M60) -> 17,000
C72: 90+ | E72: =SUMIFS($F$38:$F$45,$J$38:$J$45,C72) -> 0 | F72: =SUMIFS($F$53:$F$60,$K$53:$K$60,C72) -> 0 | K72: Eligible scheduled AP | O72: =SUM(M53:M60) -> 61,000
C74: AP requiring approval or release | E74: =SUM(F53:F60)-SUM(M53:M60) -> 17,000

Sheet Assets debt
C2: Assets debt
C4: Selected case | E4: ='Assumptions'!$G$4 -> Base | H4: EUR · entirely fictional
E6: Actual | F6: Actual | G6: Actual | H6: Actual | I6: Actual | J6: Actual | K6: Actual | L6: Actual | M6: Forecast | N6: Forecast | O6: Forecast | P6: Forecast
E7: 2026-01-01 | F7: 2026-02-01 | G7: 2026-03-01 | H7: 2026-04-01 | I7: 2026-05-01 | J7: 2026-06-01 | K7: 2026-07-01 | L7: 2026-08-01 | M7: 2026-09-01 | N7: 2026-10-01 | O7: 2026-11-01 | P7: 2026-12-01
C8: Opening fixed assets at cost | E8: ='Actual inputs'!$E$42 -> 120,000 | F8: =E10 -> 132,000 | G8: =F10 -> 132,000 | H8: =G10 -> 156,000 | I8: =H10 -> 156,000 | J8: =I10 -> 156,000 | K8: =J10 -> 186,000 | L8: =K10 -> 186,000 | M8: =L10 -> 204,000 | N8: =M10 -> 279,000 | O8: =N10 -> 291,000 | P8: =O10 -> 303,000
C9: Additions and cash capex | E9: ='Assumptions'!E59 -> 12,000 | F9: ='Assumptions'!F59 -> 0 | G9: ='Assumptions'!G59 -> 24,000 | H9: ='Assumptions'!H59 -> 0 | I9: ='Assumptions'!I59 -> 0 | J9: ='Assumptions'!J59 -> 30,000 | K9: ='Assumptions'!K59 -> 0 | L9: ='Assumptions'!L59 -> 18,000 | M9: ='Assumptions'!M59 -> 75,000 | N9: ='Assumptions'!N59 -> 12,000 | O9: ='Assumptions'!O59 -> 12,000 | P9: ='Assumptions'!P59 -> 12,000
C10: Closing fixed assets at cost | E10: =SUM(E8:E9) -> €132,000 | F10: =SUM(F8:F9) -> €132,000 | G10: =SUM(G8:G9) -> €156,000 | H10: =SUM(H8:H9) -> €156,000 | I10: =SUM(I8:I9) -> €156,000 | J10: =SUM(J8:J9) -> €186,000 | K10: =SUM(K8:K9) -> €186,000 | L10: =SUM(L8:L9) -> €204,000 | M10: =SUM(M8:M9) -> €279,000 | N10: =SUM(N8:N9) -> €291,000 | O10: =SUM(O8:O9) -> €303,000 | P10: =SUM(P8:P9) -> €315,000
C11: Opening accumulated depreciation | E11: ='Actual inputs'!$E$43 -> 36,000 | F11: =E15 -> 38,833 | G11: =F15 -> 41,667 | H11: =G15 -> 45,167 | I11: =H15 -> 48,667 | J11: =I15 -> 52,167 | K11: =J15 -> 56,500 | L11: =K15 -> 60,833 | M11: =L15 -> 65,667 | N11: =M15 -> 72,583 | O11: =N15 -> 79,833 | P11: =O15 -> 87,417
C12: Depreciation of opening assets | E12: ='Assumptions'!$E$75 -> 2,500 | F12: ='Assumptions'!$E$75 -> 2,500 | G12: ='Assumptions'!$E$75 -> 2,500 | H12: ='Assumptions'!$E$75 -> 2,500 | I12: ='Assumptions'!$E$75 -> 2,500 | J12: ='Assumptions'!$E$75 -> 2,500 | K12: ='Assumptions'!$E$75 -> 2,500 | L12: ='Assumptions'!$E$75 -> 2,500 | M12: ='Assumptions'!$E$75 -> 2,500 | N12: ='Assumptions'!$E$75 -> 2,500 | O12: ='Assumptions'!$E$75 -> 2,500 | P12: ='Assumptions'!$E$75 -> 2,500
C13: Depreciation of new assets | E13: =(E10-'Actual inputs'!$E$42)/'Assumptions'!$E$76 -> 333 | F13: =(F10-'Actual inputs'!$E$42)/'Assumptions'!$E$76 -> 333 | G13: =(G10-'Actual inputs'!$E$42)/'Assumptions'!$E$76 -> 1,000 | H13: =(H10-'Actual inputs'!$E$42)/'Assumptions'!$E$76 -> 1,000 | I13: =(I10-'Actual inputs'!$E$42)/'Assumptions'!$E$76 -> 1,000 | J13: =(J10-'Actual inputs'!$E$42)/'Assumptions'!$E$76 -> 1,833 | K13: =(K10-'Actual inputs'!$E$42)/'Assumptions'!$E$76 -> 1,833 | L13: =(L10-'Actual inputs'!$E$42)/'Assumptions'!$E$76 -> 2,333 | M13: =(M10-'Actual inputs'!$E$42)/'Assumptions'!$E$76 -> 4,417 | N13: =(N10-'Actual inputs'!$E$42)/'Assumptions'!$E$76 -> 4,750 | O13: =(O10-'Actual inputs'!$E$42)/'Assumptions'!$E$76 -> 5,083 | P13: =(P10-'Actual inputs'!$E$42)/'Assumptions'!$E$76 -> 5,417
C14: Total depreciation | E14: =SUM(E12:E13) -> €2,833 | F14: =SUM(F12:F13) -> €2,833 | G14: =SUM(G12:G13) -> €3,500 | H14: =SUM(H12:H13) -> €3,500 | I14: =SUM(I12:I13) -> €3,500 | J14: =SUM(J12:J13) -> €4,333 | K14: =SUM(K12:K13) -> €4,333 | L14: =SUM(L12:L13) -> €4,833 | M14: =SUM(M12:M13) -> €6,917 | N14: =SUM(N12:N13) -> €7,250 | O14: =SUM(O12:O13) -> €7,583 | P14: =SUM(P12:P13) -> €7,917
C15: Closing accumulated depreciation | E15: =SUM(E11,E14) -> 38,833 | F15: =SUM(F11,F14) -> 41,667 | G15: =SUM(G11,G14) -> 45,167 | H15: =SUM(H11,H14) -> 48,667 | I15: =SUM(I11,I14) -> 52,167 | J15: =SUM(J11,J14) -> 56,500 | K15: =SUM(K11,K14) -> 60,833 | L15: =SUM(L11,L14) -> 65,667 | M15: =SUM(M11,M14) -> 72,583 | N15: =SUM(N11,N14) -> 79,833 | O15: =SUM(O11,O14) -> 87,417 | P15: =SUM(P11,P14) -> 95,333
C16: Net fixed assets | E16: =E10-E15 -> €93,167 | F16: =F10-F15 -> €90,333 | G16: =G10-G15 -> €110,833 | H16: =H10-H15 -> €107,333 | I16: =I10-I15 -> €103,833 | J16: =J10-J15 -> €129,500 | K16: =K10-K15 -> €125,167 | L16: =L10-L15 -> €138,333 | M16: =M10-M15 -> €206,417 | N16: =N10-N15 -> €211,167 | O16: =O10-O15 -> €215,583 | P16: =P10-P15 -> €219,667
C18: Opening debt | E18: ='Actual inputs'!$E$48 -> 180,000 | F18: =E20 -> 175,000 | G18: =F20 -> 170,000 | H18: =G20 -> 165,000 | I18: =H20 -> 160,000 | J18: =I20 -> 155,000 | K18: =J20 -> 150,000 | L18: =K20 -> 145,000 | M18: =L20 -> 140,000 | N18: =M20 -> 135,000 | O18: =N20 -> 130,000 | P18: =O20 -> 125,000
C19: Principal repayment | E19: ='Assumptions'!$E$77 -> 5,000 | F19: ='Assumptions'!$E$77 -> 5,000 | G19: ='Assumptions'!$E$77 -> 5,000 | H19: ='Assumptions'!$E$77 -> 5,000 | I19: ='Assumptions'!$E$77 -> 5,000 | J19: ='Assumptions'!$E$77 -> 5,000 | K19: ='Assumptions'!$E$77 -> 5,000 | L19: ='Assumptions'!$E$77 -> 5,000 | M19: ='Assumptions'!$E$77 -> 5,000 | N19: ='Assumptions'!$E$77 -> 5,000 | O19: ='Assumptions'!$E$77 -> 5,000 | P19: ='Assumptions'!$E$77 -> 5,000
C20: Closing debt | E20: =E18-E19 -> €175,000 | F20: =F18-F19 -> €170,000 | G20: =G18-G19 -> €165,000 | H20: =H18-H19 -> €160,000 | I20: =I18-I19 -> €155,000 | J20: =J18-J19 -> €150,000 | K20: =K18-K19 -> €145,000 | L20: =L18-L19 -> €140,000 | M20: =M18-M19 -> €135,000 | N20: =N18-N19 -> €130,000 | O20: =O18-O19 -> €125,000 | P20: =P18-P19 -> €120,000
C21: Annual interest rate | E21: ='Assumptions'!$E$73 -> 6.0% | F21: ='Assumptions'!$E$73 -> 6.0% | G21: ='Assumptions'!$E$73 -> 6.0% | H21: ='Assumptions'!$E$73 -> 6.0% | I21: ='Assumptions'!$E$73 -> 6.0% | J21: ='Assumptions'!$E$73 -> 6.0% | K21: ='Assumptions'!$E$73 -> 6.0% | L21: ='Assumptions'!$E$73 -> 6.0% | M21: ='Assumptions'!$E$73 -> 6.0% | N21: ='Assumptions'!$E$73 -> 6.0% | O21: ='Assumptions'!$E$73 -> 6.0% | P21: ='Assumptions'!$E$73 -> 6.0%
C22: Interest expense | E22: =E18*E21/12 -> 900 | F22: =F18*F21/12 -> 875 | G22: =G18*G21/12 -> 850 | H22: =H18*H21/12 -> 825 | I22: =I18*I21/12 -> 800 | J22: =J18*J21/12 -> 775 | K22: =K18*K21/12 -> 750 | L22: =L18*L21/12 -> 725 | M22: =M18*M21/12 -> 700 | N22: =N18*N21/12 -> 675 | O22: =O18*O21/12 -> 650 | P22: =P18*P21/12 -> 625
C24: Opening net tax position | E24: ='Actual inputs'!$E$47 -> 12,000 | F24: =E27 -> 14,883 | G24: =F27 -> 19,402 | H24: =G27 -> 6,962 | I24: =H27 -> 14,467 | J24: =I27 -> 19,322 | K24: =J27 -> 6,350 | L24: =K27 -> 9,233 | M24: =L27 -> 9,842 | N24: =M27 -> (4,972) | O24: =N27 -> 7,963 | P24: =O27 -> 24,417
C25: Current tax expense | E25: =-'P&L'!E29 -> 2,883 | F25: =-'P&L'!F29 -> 4,518 | G25: =-'P&L'!G29 -> 7,560 | H25: =-'P&L'!H29 -> 7,505 | I25: =-'P&L'!I29 -> 4,855 | J25: =-'P&L'!J29 -> 5,028 | K25: =-'P&L'!K29 -> 2,883 | L25: =-'P&L'!L29 -> 608 | M25: =-'P&L'!M29 -> 10,187 | N25: =-'P&L'!N29 -> 12,935 | O25: =-'P&L'!O29 -> 16,453 | P25: =-'P&L'!P29 -> 12,912
C26: Tax paid | E26: ='Assumptions'!E62 -> 0 | F26: ='Assumptions'!F62 -> 0 | G26: ='Assumptions'!G62 -> 20,000 | H26: ='Assumptions'!H62 -> 0 | I26: ='Assumptions'!I62 -> 0 | J26: ='Assumptions'!J62 -> 18,000 | K26: ='Assumptions'!K62 -> 0 | L26: ='Assumptions'!L62 -> 0 | M26: ='Assumptions'!M62 -> 25,000 | N26: ='Assumptions'!N62 -> 0 | O26: ='Assumptions'!O62 -> 0 | P26: ='Assumptions'!P62 -> 15,000
C27: Closing net tax position | E27: =SUM(E24:E25)-E26 -> €14,883 | F27: =SUM(F24:F25)-F26 -> €19,402 | G27: =SUM(G24:G25)-G26 -> €6,962 | H27: =SUM(H24:H25)-H26 -> €14,467 | I27: =SUM(I24:I25)-I26 -> €19,322 | J27: =SUM(J24:J25)-J26 -> €6,350 | K27: =SUM(K24:K25)-K26 -> €9,233 | L27: =SUM(L24:L25)-L26 -> €9,842 | M27: =SUM(M24:M25)-M26 -> (€4,972) | N27: =SUM(N24:N25)-N26 -> €7,963 | O27: =SUM(O24:O25)-O26 -> €24,417 | P27: =SUM(P24:P25)-P26 -> €22,328
C30: New additions: 36-month straight-line, full month charged on purchase, zero residual.

Sheet Budget
C2: Budget
C4: Selected case | E4: ='Assumptions'!$G$4 -> Base | H4: EUR · entirely fictional
E6: Original budget | F6: Original budget | G6: Original budget | H6: Original budget | I6: Original budget | J6: Original budget | K6: Original budget | L6: Original budget | M6: Original budget | N6: Original budget | O6: Original budget | P6: Original budget
E7: 2026-01-01 | F7: 2026-02-01 | G7: 2026-03-01 | H7: 2026-04-01 | I7: 2026-05-01 | J7: 2026-06-01 | K7: 2026-07-01 | L7: 2026-08-01 | M7: 2026-09-01 | N7: 2026-10-01 | O7: 2026-11-01 | P7: 2026-12-01
C8: Retainers | E8: =E38*E39 -> 95,000 | F8: =F38*F39 -> 95,000 | G8: =G38*G39 -> 100,000 | H8: =H38*H39 -> 100,000 | I8: =I38*I39 -> 105,000 | J8: =J38*J39 -> 105,000 | K8: =K38*K39 -> 110,000 | L8: =L38*L39 -> 110,000 | M8: =M38*M39 -> 115,000 | N8: =N38*N39 -> 115,000 | O8: =O38*O39 -> 120,000 | P8: =P38*P39 -> 120,000
C9: Projects | E9: =E40*E41 -> 135,625 | F9: =F40*F41 -> 137,375 | G9: =G40*G41 -> 139,125 | H9: =H40*H41 -> 140,875 | I9: =I40*I41 -> 142,625 | J9: =J40*J41 -> 144,375 | K9: =K40*K41 -> 146,125 | L9: =L40*L41 -> 147,875 | M9: =M40*M41 -> 149,625 | N9: =N40*N41 -> 151,375 | O9: =O40*O41 -> 153,125 | P9: =P40*P41 -> 154,875
C10: Implementation | E10: =E42*E43 -> 37,500 | F10: =F42*F43 -> 37,500 | G10: =G42*G43 -> 37,500 | H10: =H42*H43 -> 37,500 | I10: =I42*I43 -> 37,500 | J10: =J42*J43 -> 37,500 | K10: =K42*K43 -> 37,500 | L10: =L42*L43 -> 37,500 | M10: =M42*M43 -> 37,500 | N10: =N42*N43 -> 37,500 | O10: =O42*O43 -> 37,500 | P10: =P42*P43 -> 37,500
C11: Revenue | E11: =SUM(E8:E10) -> €268,125 | F11: =SUM(F8:F10) -> €269,875 | G11: =SUM(G8:G10) -> €276,625 | H11: =SUM(H8:H10) -> €278,375 | I11: =SUM(I8:I10) -> €285,125 | J11: =SUM(J8:J10) -> €286,875 | K11: =SUM(K8:K10) -> €293,625 | L11: =SUM(L8:L10) -> €295,375 | M11: =SUM(M8:M10) -> €302,125 | N11: =SUM(N8:N10) -> €303,875 | O11: =SUM(O8:O10) -> €310,625 | P11: =SUM(P8:P10) -> €312,375
C12: Direct payroll | E12: =-E44*E45 -> (104,000) | F12: =-F44*F45 -> (104,000) | G12: =-G44*G45 -> (104,000) | H12: =-H44*H45 -> (104,000) | I12: =-I44*I45 -> (111,300) | J12: =-J44*J45 -> (111,300) | K12: =-K44*K45 -> (111,300) | L12: =-L44*L45 -> (111,300) | M12: =-M44*M45 -> (118,800) | N12: =-N44*N45 -> (118,800) | O12: =-O44*O45 -> (118,800) | P12: =-P44*P45 -> (118,800)
C13: Subcontractors | E13: =-E46*E47 -> (24,750) | F13: =-F46*F47 -> (24,750) | G13: =-G46*G47 -> (24,750) | H13: =-H46*H47 -> (24,750) | I13: =-I46*I47 -> (24,750) | J13: =-J46*J47 -> (24,750) | K13: =-K46*K47 -> (24,750) | L13: =-L46*L47 -> (24,750) | M13: =-M46*M47 -> (24,750) | N13: =-N46*N47 -> (24,750) | O13: =-O46*O47 -> (24,750) | P13: =-P46*P47 -> (24,750)
C14: Direct software | E14: =-E48 -> (9,500) | F14: =-F48 -> (9,750) | G14: =-G48 -> (10,000) | H14: =-H48 -> (10,250) | I14: =-I48 -> (10,500) | J14: =-J48 -> (10,750) | K14: =-K48 -> (11,000) | L14: =-L48 -> (11,250) | M14: =-M48 -> (11,500) | N14: =-N48 -> (11,750) | O14: =-O48 -> (12,000) | P14: =-P48 -> (12,250)
C15: Direct costs | E15: =SUM(E12:E14) -> (€138,250) | F15: =SUM(F12:F14) -> (€138,500) | G15: =SUM(G12:G14) -> (€138,750) | H15: =SUM(H12:H14) -> (€139,000) | I15: =SUM(I12:I14) -> (€146,550) | J15: =SUM(J12:J14) -> (€146,800) | K15: =SUM(K12:K14) -> (€147,050) | L15: =SUM(L12:L14) -> (€147,300) | M15: =SUM(M12:M14) -> (€155,050) | N15: =SUM(N12:N14) -> (€155,300) | O15: =SUM(O12:O14) -> (€155,550) | P15: =SUM(P12:P14) -> (€155,800)
C16: Gross profit | E16: =SUM(E11,E15) -> €129,875 | F16: =SUM(F11,F15) -> €131,375 | G16: =SUM(G11,G15) -> €137,875 | H16: =SUM(H11,H15) -> €139,375 | I16: =SUM(I11,I15) -> €138,575 | J16: =SUM(J11,J15) -> €140,075 | K16: =SUM(K11,K15) -> €146,575 | L16: =SUM(L11,L15) -> €148,075 | M16: =SUM(M11,M15) -> €147,075 | N16: =SUM(N11,N15) -> €148,575 | O16: =SUM(O11,O15) -> €155,075 | P16: =SUM(P11,P15) -> €156,575
C17: Gross margin | E17: =E16/E11 -> 48.4% | F17: =F16/F11 -> 48.7% | G17: =G16/G11 -> 49.8% | H17: =H16/H11 -> 50.1% | I17: =I16/I11 -> 48.6% | J17: =J16/J11 -> 48.8% | K17: =K16/K11 -> 49.9% | L17: =L16/L11 -> 50.1% | M17: =M16/M11 -> 48.7% | N17: =N16/N11 -> 48.9% | O17: =O16/O11 -> 49.9% | P17: =P16/P11 -> 50.1%
C18: Sales and marketing | E18: =-E49 -> (19,000) | F18: =-F49 -> (19,250) | G18: =-G49 -> (19,500) | H18: =-H49 -> (19,750) | I18: =-I49 -> (20,000) | J18: =-J49 -> (20,250) | K18: =-K49 -> (20,500) | L18: =-L49 -> (20,750) | M18: =-M49 -> (21,000) | N18: =-N49 -> (21,250) | O18: =-O49 -> (21,500) | P18: =-P49 -> (21,750)
C19: Management and admin payroll | E19: =-E50 -> (41,000) | F19: =-F50 -> (41,250) | G19: =-G50 -> (41,500) | H19: =-H50 -> (41,750) | I19: =-I50 -> (42,000) | J19: =-J50 -> (42,250) | K19: =-K50 -> (42,500) | L19: =-L50 -> (42,750) | M19: =-M50 -> (43,000) | N19: =-N50 -> (43,250) | O19: =-O50 -> (43,500) | P19: =-P50 -> (43,750)
C20: Office and general costs | E20: =-E51 -> (10,500) | F20: =-F51 -> (10,500) | G20: =-G51 -> (10,500) | H20: =-H51 -> (10,500) | I20: =-I51 -> (10,500) | J20: =-J51 -> (10,500) | K20: =-K51 -> (10,500) | L20: =-L51 -> (10,500) | M20: =-M51 -> (10,500) | N20: =-N51 -> (10,500) | O20: =-O51 -> (10,500) | P20: =-P51 -> (10,500)
C21: Professional fees | E21: =-E52 -> (6,500) | F21: =-F52 -> (6,500) | G21: =-G52 -> (6,500) | H21: =-H52 -> (6,500) | I21: =-I52 -> (6,500) | J21: =-J52 -> (6,500) | K21: =-K52 -> (6,500) | L21: =-L52 -> (6,500) | M21: =-M52 -> (6,500) | N21: =-N52 -> (6,500) | O21: =-O52 -> (6,500) | P21: =-P52 -> (6,500)
C22: Operating expenses | E22: =SUM(E18:E21) -> (€77,000) | F22: =SUM(F18:F21) -> (€77,500) | G22: =SUM(G18:G21) -> (€78,000) | H22: =SUM(H18:H21) -> (€78,500) | I22: =SUM(I18:I21) -> (€79,000) | J22: =SUM(J18:J21) -> (€79,500) | K22: =SUM(K18:K21) -> (€80,000) | L22: =SUM(L18:L21) -> (€80,500) | M22: =SUM(M18:M21) -> (€81,000) | N22: =SUM(N18:N21) -> (€81,500) | O22: =SUM(O18:O21) -> (€82,000) | P22: =SUM(P18:P21) -> (€82,500)
C23: EBITDA | E23: =SUM(E16,E22) -> €52,875 | F23: =SUM(F16,F22) -> €53,875 | G23: =SUM(G16,G22) -> €59,875 | H23: =SUM(H16,H22) -> €60,875 | I23: =SUM(I16,I22) -> €59,575 | J23: =SUM(J16,J22) -> €60,575 | K23: =SUM(K16,K22) -> €66,575 | L23: =SUM(L16,L22) -> €67,575 | M23: =SUM(M16,M22) -> €66,075 | N23: =SUM(N16,N22) -> €67,075 | O23: =SUM(O16,O22) -> €73,075 | P23: =SUM(P16,P22) -> €74,075
C24: EBITDA margin | E24: =E23/E11 -> 19.7% | F24: =F23/F11 -> 20.0% | G24: =G23/G11 -> 21.6% | H24: =H23/H11 -> 21.9% | I24: =I23/I11 -> 20.9% | J24: =J23/J11 -> 21.1% | K24: =K23/K11 -> 22.7% | L24: =L23/L11 -> 22.9% | M24: =M23/M11 -> 21.9% | N24: =N23/N11 -> 22.1% | O24: =O23/O11 -> 23.5% | P24: =P23/P11 -> 23.7%
C25: Depreciation | E25: =-('Assumptions'!$E$75+SUM($E54:E54)/'Assumptions'!$E$76) -> (2,778) | F25: =-('Assumptions'!$E$75+SUM($E54:F54)/'Assumptions'!$E$76) -> (3,056) | G25: =-('Assumptions'!$E$75+SUM($E54:G54)/'Assumptions'!$E$76) -> (3,333) | H25: =-('Assumptions'!$E$75+SUM($E54:H54)/'Assumptions'!$E$76) -> (3,611) | I25: =-('Assumptions'!$E$75+SUM($E54:I54)/'Assumptions'!$E$76) -> (3,889) | J25: =-('Assumptions'!$E$75+SUM($E54:J54)/'Assumptions'!$E$76) -> (4,167) | K25: =-('Assumptions'!$E$75+SUM($E54:K54)/'Assumptions'!$E$76) -> (4,444) | L25: =-('Assumptions'!$E$75+SUM($E54:L54)/'Assumptions'!$E$76) -> (4,722) | M25: =-('Assumptions'!$E$75+SUM($E54:M54)/'Assumptions'!$E$76) -> (5,000) | N25: =-('Assumptions'!$E$75+SUM($E54:N54)/'Assumptions'!$E$76) -> (5,278) | O25: =-('Assumptions'!$E$75+SUM($E54:O54)/'Assumptions'!$E$76) -> (5,556) | P25: =-('Assumptions'!$E$75+SUM($E54:P54)/'Assumptions'!$E$76) -> (5,833)
C26: EBIT | E26: =SUM(E23,E25) -> €50,097 | F26: =SUM(F23,F25) -> €50,819 | G26: =SUM(G23,G25) -> €56,542 | H26: =SUM(H23,H25) -> €57,264 | I26: =SUM(I23,I25) -> €55,686 | J26: =SUM(J23,J25) -> €56,408 | K26: =SUM(K23,K25) -> €62,131 | L26: =SUM(L23,L25) -> €62,853 | M26: =SUM(M23,M25) -> €61,075 | N26: =SUM(N23,N25) -> €61,797 | O26: =SUM(O23,O25) -> €67,519 | P26: =SUM(P23,P25) -> €68,242
C27: Interest | E27: =-('Actual inputs'!$E$48-0*'Assumptions'!$E$77)*'Assumptions'!$E$73/12 -> (900) | F27: =-('Actual inputs'!$E$48-1*'Assumptions'!$E$77)*'Assumptions'!$E$73/12 -> (875) | G27: =-('Actual inputs'!$E$48-2*'Assumptions'!$E$77)*'Assumptions'!$E$73/12 -> (850) | H27: =-('Actual inputs'!$E$48-3*'Assumptions'!$E$77)*'Assumptions'!$E$73/12 -> (825) | I27: =-('Actual inputs'!$E$48-4*'Assumptions'!$E$77)*'Assumptions'!$E$73/12 -> (800) | J27: =-('Actual inputs'!$E$48-5*'Assumptions'!$E$77)*'Assumptions'!$E$73/12 -> (775) | K27: =-('Actual inputs'!$E$48-6*'Assumptions'!$E$77)*'Assumptions'!$E$73/12 -> (750) | L27: =-('Actual inputs'!$E$48-7*'Assumptions'!$E$77)*'Assumptions'!$E$73/12 -> (725) | M27: =-('Actual inputs'!$E$48-8*'Assumptions'!$E$77)*'Assumptions'!$E$73/12 -> (700) | N27: =-('Actual inputs'!$E$48-9*'Assumptions'!$E$77)*'Assumptions'!$E$73/12 -> (675) | O27: =-('Actual inputs'!$E$48-10*'Assumptions'!$E$77)*'Assumptions'!$E$73/12 -> (650) | P27: =-('Actual inputs'!$E$48-11*'Assumptions'!$E$77)*'Assumptions'!$E$73/12 -> (625)
C28: Profit before tax | E28: =SUM(E26:E27) -> €49,197 | F28: =SUM(F26:F27) -> €49,944 | G28: =SUM(G26:G27) -> €55,692 | H28: =SUM(H26:H27) -> €56,439 | I28: =SUM(I26:I27) -> €54,886 | J28: =SUM(J26:J27) -> €55,633 | K28: =SUM(K26:K27) -> €61,381 | L28: =SUM(L26:L27) -> €62,128 | M28: =SUM(M26:M27) -> €60,375 | N28: =SUM(N26:N27) -> €61,122 | O28: =SUM(O26:O27) -> €66,869 | P28: =SUM(P26:P27) -> €67,617
C29: Illustrative tax expense | E29: =-MAX(0,E28)*'Assumptions'!$E$72 -> (9,839) | F29: =-MAX(0,F28)*'Assumptions'!$E$72 -> (9,989) | G29: =-MAX(0,G28)*'Assumptions'!$E$72 -> (11,138) | H29: =-MAX(0,H28)*'Assumptions'!$E$72 -> (11,288) | I29: =-MAX(0,I28)*'Assumptions'!$E$72 -> (10,977) | J29: =-MAX(0,J28)*'Assumptions'!$E$72 -> (11,127) | K29: =-MAX(0,K28)*'Assumptions'!$E$72 -> (12,276) | L29: =-MAX(0,L28)*'Assumptions'!$E$72 -> (12,426) | M29: =-MAX(0,M28)*'Assumptions'!$E$72 -> (12,075) | N29: =-MAX(0,N28)*'Assumptions'!$E$72 -> (12,224) | O29: =-MAX(0,O28)*'Assumptions'!$E$72 -> (13,374) | P29: =-MAX(0,P28)*'Assumptions'!$E$72 -> (13,523)
C30: Net profit | E30: =SUM(E28:E29) -> €39,358 | F30: =SUM(F28:F29) -> €39,956 | G30: =SUM(G28:G29) -> €44,553 | H30: =SUM(H28:H29) -> €45,151 | I30: =SUM(I28:I29) -> €43,909 | J30: =SUM(J28:J29) -> €44,507 | K30: =SUM(K28:K29) -> €49,104 | L30: =SUM(L28:L29) -> €49,702 | M30: =SUM(M28:M29) -> €48,300 | N30: =SUM(N28:N29) -> €48,898 | O30: =SUM(O28:O29) -> €53,496 | P30: =SUM(P28:P29) -> €54,093
C35: Original budget approved for this fictional planning exercise.
C36: Original plan inputs
C38: Active retainers | E38: 19 | F38: 19 | G38: 20 | H38: 20 | I38: 21 | J38: 21 | K38: 22 | L38: 22 | M38: 23 | N38: 23 | O38: 24 | P38: 24
C39: Monthly retainer fee | E39: 5,000 | F39: 5,000 | G39: 5,000 | H39: 5,000 | I39: 5,000 | J39: 5,000 | K39: 5,000 | L39: 5,000 | M39: 5,000 | N39: 5,000 | O39: 5,000 | P39: 5,000
C40: Billable project days | E40: 155 | F40: 157 | G40: 159 | H40: 161 | I40: 163 | J40: 165 | K40: 167 | L40: 169 | M40: 171 | N40: 173 | O40: 175 | P40: 177
C41: Project day rate | E41: 875 | F41: 875 | G41: 875 | H41: 875 | I41: 875 | J41: 875 | K41: 875 | L41: 875 | M41: 875 | N41: 875 | O41: 875 | P41: 875
C42: Implementations completed | E42: 3 | F42: 3 | G42: 3 | H42: 3 | I42: 3 | J42: 3 | K42: 3 | L42: 3 | M42: 3 | N42: 3 | O42: 3 | P42: 3
C43: Implementation fee | E43: 12,500 | F43: 12,500 | G43: 12,500 | H43: 12,500 | I43: 12,500 | J43: 12,500 | K43: 12,500 | L43: 12,500 | M43: 12,500 | N43: 12,500 | O43: 12,500 | P43: 12,500
C44: Paid delivery FTE | E44: 20 | F44: 20 | G44: 20 | H44: 20 | I44: 21 | J44: 21 | K44: 21 | L44: 21 | M44: 22 | N44: 22 | O44: 22 | P44: 22
C45: Monthly loaded pay per FTE | E45: 5,200 | F45: 5,200 | G45: 5,200 | H45: 5,200 | I45: 5,300 | J45: 5,300 | K45: 5,300 | L45: 5,300 | M45: 5,400 | N45: 5,400 | O45: 5,400 | P45: 5,400
C46: Subcontractor days | E46: 45 | F46: 45 | G46: 45 | H46: 45 | I46: 45 | J46: 45 | K46: 45 | L46: 45 | M46: 45 | N46: 45 | O46: 45 | P46: 45
C47: Subcontractor day rate | E47: 550 | F47: 550 | G47: 550 | H47: 550 | I47: 550 | J47: 550 | K47: 550 | L47: 550 | M47: 550 | N47: 550 | O47: 550 | P47: 550
C48: Direct software | E48: 9,500 | F48: 9,750 | G48: 10,000 | H48: 10,250 | I48: 10,500 | J48: 10,750 | K48: 11,000 | L48: 11,250 | M48: 11,500 | N48: 11,750 | O48: 12,000 | P48: 12,250
C49: Sales and marketing | E49: 19,000 | F49: 19,250 | G49: 19,500 | H49: 19,750 | I49: 20,000 | J49: 20,250 | K49: 20,500 | L49: 20,750 | M49: 21,000 | N49: 21,250 | O49: 21,500 | P49: 21,750
C50: Management and admin payroll | E50: 41,000 | F50: 41,250 | G50: 41,500 | H50: 41,750 | I50: 42,000 | J50: 42,250 | K50: 42,500 | L50: 42,750 | M50: 43,000 | N50: 43,250 | O50: 43,500 | P50: 43,750
C51: Office and general costs | E51: 10,500 | F51: 10,500 | G51: 10,500 | H51: 10,500 | I51: 10,500 | J51: 10,500 | K51: 10,500 | L51: 10,500 | M51: 10,500 | N51: 10,500 | O51: 10,500 | P51: 10,500
C52: Professional fees | E52: 6,500 | F52: 6,500 | G52: 6,500 | H52: 6,500 | I52: 6,500 | J52: 6,500 | K52: 6,500 | L52: 6,500 | M52: 6,500 | N52: 6,500 | O52: 6,500 | P52: 6,500
C54: Budget capital expenditure | E54: 10,000 | F54: 10,000 | G54: 10,000 | H54: 10,000 | I54: 10,000 | J54: 10,000 | K54: 10,000 | L54: 10,000 | M54: 10,000 | N54: 10,000 | O54: 10,000 | P54: 10,000

Sheet Actual inputs
C2: Actual inputs
C4: Selected case | E4: ='Assumptions'!$G$4 -> Base | H4: EUR · entirely fictional
E6: Actual | F6: Actual | G6: Actual | H6: Actual | I6: Actual | J6: Actual | K6: Actual | L6: Actual | M6: Forecast | N6: Forecast | O6: Forecast | P6: Forecast
E7: 2026-01-01 | F7: 2026-02-01 | G7: 2026-03-01 | H7: 2026-04-01 | I7: 2026-05-01 | J7: 2026-06-01 | K7: 2026-07-01 | L7: 2026-08-01 | M7: 2026-09-01 | N7: 2026-10-01 | O7: 2026-11-01 | P7: 2026-12-01
C8: Active retainers | E8: 18 | F8: 19 | G8: 19 | H8: 20 | I8: 21 | J8: 21 | K8: 22 | L8: 22
C9: Monthly retainer fee | E9: 5,000 | F9: 5,000 | G9: 5,000 | H9: 5,000 | I9: 5,000 | J9: 5,000 | K9: 5,000 | L9: 5,000
C10: Billable project days | E10: 135 | F10: 140 | G10: 150 | H10: 155 | I10: 152 | J10: 145 | K10: 158 | L10: 150
C11: Project day rate | E11: 850 | F11: 850 | G11: 850 | H11: 850 | I11: 850 | J11: 850 | K11: 850 | L11: 850
C12: Implementations completed | E12: 2 | F12: 2 | G12: 3 | H12: 3 | I12: 2 | J12: 3 | K12: 2 | L12: 2
C13: Implementation fee | E13: 12,000 | F13: 12,000 | G13: 12,000 | H13: 12,000 | I13: 12,000 | J13: 12,000 | K13: 12,000 | L13: 12,000
C14: Paid delivery FTE | E14: 20 | F14: 20 | G14: 20 | H14: 21 | I14: 21 | J14: 21 | K14: 22 | L14: 22
C15: Monthly loaded pay per FTE | E15: 5,200 | F15: 5,200 | G15: 5,200 | H15: 5,300 | I15: 5,300 | J15: 5,300 | K15: 5,400 | L15: 5,400
C16: Subcontractor days | E16: 42 | F16: 44 | G16: 47 | H16: 48 | I16: 51 | J16: 56 | K16: 60 | L16: 65
C17: Subcontractor day rate | E17: 550 | F17: 550 | G17: 550 | H17: 575 | I17: 575 | J17: 575 | K17: 600 | L17: 600
C18: Direct software | E18: 9,000 | F18: 9,000 | G18: 9,500 | H18: 9,500 | I18: 10,000 | J18: 10,000 | K18: 10,500 | L18: 10,500
C19: Sales and marketing | E19: 18,000 | F19: 18,000 | G19: 19,000 | H19: 19,000 | I19: 20,000 | J19: 20,000 | K19: 22,000 | L19: 22,000
C20: Management and admin payroll | E20: 40,000 | F20: 40,000 | G20: 40,000 | H20: 42,000 | I20: 42,000 | J20: 42,000 | K20: 44,000 | L20: 44,000
C21: Office and general costs | E21: 10,500 | F21: 10,500 | G21: 10,500 | H21: 10,500 | I21: 10,500 | J21: 10,500 | K21: 10,500 | L21: 10,500
C22: Professional fees | E22: 6,000 | F22: 6,000 | G22: 7,500 | H22: 6,000 | I22: 6,500 | J22: 8,000 | K22: 7,000 | L22: 8,100
C23: Accounts receivable | E23: 190,000 | F23: 205,000 | G23: 215,000 | H23: 245,000 | I23: 260,000 | J23: 290,000 | K23: 325,000 | L23: 360,000
C24: Accounts payable | E24: 56,000 | F24: 58,000 | G24: 60,000 | H24: 66,000 | I24: 61,000 | J24: 65,000 | K24: 70,000 | L24: 78,000
C25: Accruals | E25: 28,000 | F25: 29,000 | G25: 30,000 | H25: 31,000 | I25: 32,000 | J25: 33,000 | K25: 34,000 | L25: 36,000
C26: Prepayments | E26: 18,000 | F26: 18,000 | G26: 20,000 | H26: 18,000 | I26: 18,000 | J26: 24,000 | K26: 22,000 | L26: 20,000
C27: Deferred revenue | E27: 50,000 | F27: 52,000 | G27: 54,000 | H27: 58,000 | I27: 60,000 | J27: 56,000 | K27: 58,000 | L27: 64,000
C28: Cash capital expenditure | E28: 12,000 | F28: 0 | G28: 24,000 | H28: 0 | I28: 0 | J28: 30,000 | K28: 0 | L28: 18,000
C29: Tax cash payment | E29: 0 | F29: 0 | G29: 20,000 | H29: 0 | I29: 0 | J29: 18,000 | K29: 0 | L29: 0
C37: Opening balances at 31 December 2025
C39: Cash | E39: 250,000
C40: Accounts receivable | E40: 170,000
C41: Prepayments | E41: 20,000
C42: Fixed assets at cost | E42: 120,000
C43: Accumulated depreciation | E43: 36,000
C44: Accounts payable | E44: 55,000
C45: Accruals | E45: 26,000
C46: Deferred revenue | E46: 48,000
C47: Tax payable | E47: 12,000
C48: Debt | E48: 180,000
C49: Share capital | E49: 100,000
C50: Retained earnings | E50: 103,000
C58: Source: invented data generated for this demonstration.
C60: Blue numbers in amber cells are editable synthetic source inputs.

Sheet Ledger Aug
C2: Ledger Aug
C4: Selected case | E4: ='Assumptions'!$G$4 -> Base | H4: EUR · entirely fictional
C7: Account | D7: Mapped line | E7: Debit EUR | F7: Credit EUR | G7: Statement | H7: Model EUR | I7: TB signed EUR | J7: Difference
C8: 1001 | D8: Cash | E8: 155,875 | F8: 0 | G8: Balance sheet | H8: ='Balance sheet'!L8 -> 155,875 | I8: =E8-F8 -> 155,875 | J8: =H8-I8 -> 0.00
C9: 1002 | D9: Accounts receivable | E9: 360,000 | F9: 0 | G9: Balance sheet | H9: ='Balance sheet'!L9 -> 360,000 | I9: =E9-F9 -> 360,000 | J9: =H9-I9 -> 0.00
C10: 1003 | D10: Prepayments | E10: 20,000 | F10: 0 | G10: Balance sheet | H10: ='Balance sheet'!L10 -> 20,000 | I10: =E10-F10 -> 20,000 | J10: =H10-I10 -> 0.00
C11: 1004 | D11: Fixed assets at cost | E11: 204,000 | F11: 0 | G11: Balance sheet | H11: ='Balance sheet'!L13 -> 204,000 | I11: =E11-F11 -> 204,000 | J11: =H11-I11 -> 0.00
C12: 2005 | D12: Accumulated depreciation | E12: 0 | F12: 65,667 | G12: Balance sheet | H12: ='Balance sheet'!L14 -> 65,667 | I12: =F12-E12 -> 65,667 | J12: =H12-I12 -> 0.00
C13: 2006 | D13: Accounts payable | E13: 0 | F13: 78,000 | G13: Balance sheet | H13: ='Balance sheet'!L17 -> 78,000 | I13: =F13-E13 -> 78,000 | J13: =H13-I13 -> 0.00
C14: 2007 | D14: Accruals | E14: 0 | F14: 36,000 | G14: Balance sheet | H14: ='Balance sheet'!L18 -> 36,000 | I14: =F14-E14 -> 36,000 | J14: =H14-I14 -> 0.00
C15: 2008 | D15: Deferred revenue | E15: 0 | F15: 64,000 | G15: Balance sheet | H15: ='Balance sheet'!L19 -> 64,000 | I15: =F15-E15 -> 64,000 | J15: =H15-I15 -> 0.00
C16: 2009 | D16: Tax payable | E16: 0 | F16: 9,842 | G16: Balance sheet | H16: ='Balance sheet'!L20 -> 9,842 | I16: =F16-E16 -> 9,842 | J16: =H16-I16 -> 0.00
C17: 2010 | D17: Debt | E17: 0 | F17: 140,000 | G17: Balance sheet | H17: ='Balance sheet'!L22 -> 140,000 | I17: =F17-E17 -> 140,000 | J17: =H17-I17 -> 0.00
C18: 2011 | D18: Share capital | E18: 0 | F18: 100,000 | G18: Balance sheet | H18: ='Balance sheet'!L24 -> 100,000 | I18: =F18-E18 -> 100,000 | J18: =H18-I18 -> 0.00
C19: 2012 | D19: Retained earnings | E19: 0 | F19: 103,000 | G19: Balance sheet | H19: ='Balance sheet'!L25-SUM('P&L'!E30:L30) -> 103,000 | I19: =F19-E19 -> 103,000 | J19: =H19-I19 -> 0.00
C20: 4013 | D20: Retainers | E20: 0 | F20: 810,000 | G20: P&L YTD | H20: =SUM('P&L'!E8:L8) -> 810,000 | I20: =F20-E20 -> 810,000 | J20: =H20-I20 -> 0.00
C21: 4014 | D21: Projects | E21: 0 | F21: 1,007,250 | G21: P&L YTD | H21: =SUM('P&L'!E9:L9) -> 1,007,250 | I21: =F21-E21 -> 1,007,250 | J21: =H21-I21 -> 0.00
C22: 4015 | D22: Implementation | E22: 0 | F22: 228,000 | G22: P&L YTD | H22: =SUM('P&L'!E10:L10) -> 228,000 | I22: =F22-E22 -> 228,000 | J22: =H22-I22 -> 0.00
C23: 5016 | D23: Direct payroll | E23: 883,500 | F23: 0 | G23: P&L YTD | H23: =SUM('P&L'!E12:L12) -> (883,500) | I23: =F23-E23 -> (883,500) | J23: =H23-I23 -> 0.00
C24: 5017 | D24: Subcontractors | E24: 237,275 | F24: 0 | G24: P&L YTD | H24: =SUM('P&L'!E13:L13) -> (237,275) | I24: =F24-E24 -> (237,275) | J24: =H24-I24 -> 0.00
C25: 5018 | D25: Direct software | E25: 78,000 | F25: 0 | G25: P&L YTD | H25: =SUM('P&L'!E14:L14) -> (78,000) | I25: =F25-E25 -> (78,000) | J25: =H25-I25 -> 0.00
C26: 5019 | D26: Sales and marketing | E26: 158,000 | F26: 0 | G26: P&L YTD | H26: =SUM('P&L'!E18:L18) -> (158,000) | I26: =F26-E26 -> (158,000) | J26: =H26-I26 -> 0.00
C27: 5020 | D27: Management and admin payroll | E27: 334,000 | F27: 0 | G27: P&L YTD | H27: =SUM('P&L'!E19:L19) -> (334,000) | I27: =F27-E27 -> (334,000) | J27: =H27-I27 -> 0.00
C28: 5021 | D28: Office and general costs | E28: 84,000 | F28: 0 | G28: P&L YTD | H28: =SUM('P&L'!E20:L20) -> (84,000) | I28: =F28-E28 -> (84,000) | J28: =H28-I28 -> 0.00
C29: 5022 | D29: Professional fees | E29: 55,100 | F29: 0 | G29: P&L YTD | H29: =SUM('P&L'!E21:L21) -> (55,100) | I29: =F29-E29 -> (55,100) | J29: =H29-I29 -> 0.00
C30: 5023 | D30: Depreciation | E30: 29,667 | F30: 0 | G30: P&L YTD | H30: =SUM('P&L'!E25:L25) -> (29,667) | I30: =F30-E30 -> (29,667) | J30: =H30-I30 -> 0.00
C31: 5024 | D31: Interest | E31: 6,500 | F31: 0 | G31: P&L YTD | H31: =SUM('P&L'!E27:L27) -> (6,500) | I31: =F31-E31 -> (6,500) | J31: =H31-I31 -> 0.00
C32: 5025 | D32: Illustrative tax expense | E32: 35,842 | F32: 0 | G32: P&L YTD | H32: =SUM('P&L'!E29:L29) -> (35,842) | I32: =F32-E32 -> (35,842) | J32: =H32-I32 -> 0.00
D34: Trial balance totals | E34: =SUM(E8:E32) -> 2,641,758 | F34: =SUM(F8:F32) -> 2,641,758 | J34: =E34-F34 -> (0.00)
C37: Unclosed YTD TB: opening retained earnings and Jan–Aug income accounts.
C38: This synthetic snapshot tests mapping and model edits. It is not external ledger evidence.

Sheet Forecast review
C2: Forecast review
C4: Selected case | E4: ='Assumptions'!$G$4 -> Base | H4: EUR · entirely fictional
E6: Actual | F6: Actual | G6: Actual | H6: Actual | I6: Actual | J6: Actual | K6: Actual | L6: Actual | M6: Forecast | N6: Forecast | O6: Forecast | P6: Forecast
E7: 2026-01-01 | F7: 2026-02-01 | G7: 2026-03-01 | H7: 2026-04-01 | I7: 2026-05-01 | J7: 2026-06-01 | K7: 2026-07-01 | L7: 2026-08-01 | M7: 2026-09-01 | N7: 2026-10-01 | O7: 2026-11-01 | P7: 2026-12-01
C8: Balance sheet assets less liabilities/equity | E8: ='Balance sheet'!E16-'Balance sheet'!E27 -> (0.00) | F8: ='Balance sheet'!F16-'Balance sheet'!F27 -> 0.00 | G8: ='Balance sheet'!G16-'Balance sheet'!G27 -> 0.00 | H8: ='Balance sheet'!H16-'Balance sheet'!H27 -> 0.00 | I8: ='Balance sheet'!I16-'Balance sheet'!I27 -> 0.00 | J8: ='Balance sheet'!J16-'Balance sheet'!J27 -> 0.00 | K8: ='Balance sheet'!K16-'Balance sheet'!K27 -> (0.00) | L8: ='Balance sheet'!L16-'Balance sheet'!L27 -> 0.00 | M8: ='Balance sheet'!M16-'Balance sheet'!M27 -> 0.00 | N8: ='Balance sheet'!N16-'Balance sheet'!N27 -> (0.00) | O8: ='Balance sheet'!O16-'Balance sheet'!O27 -> 0.00 | P8: ='Balance sheet'!P16-'Balance sheet'!P27 -> (0.00)
C9: Cash flow closing less balance-sheet cash | E9: ='Cash flow'!E23-'Balance sheet'!E8 -> 0.00 | F9: ='Cash flow'!F23-'Balance sheet'!F8 -> 0.00 | G9: ='Cash flow'!G23-'Balance sheet'!G8 -> 0.00 | H9: ='Cash flow'!H23-'Balance sheet'!H8 -> 0.00 | I9: ='Cash flow'!I23-'Balance sheet'!I8 -> 0.00 | J9: ='Cash flow'!J23-'Balance sheet'!J8 -> 0.00 | K9: ='Cash flow'!K23-'Balance sheet'!K8 -> 0.00 | L9: ='Cash flow'!L23-'Balance sheet'!L8 -> 0.00 | M9: ='Cash flow'!M23-'Balance sheet'!M8 -> 0.00 | N9: ='Cash flow'!N23-'Balance sheet'!N8 -> 0.00 | O9: ='Cash flow'!O23-'Balance sheet'!O8 -> 0.00 | P9: ='Cash flow'!P23-'Balance sheet'!P8 -> 0.00
C10: Fixed assets roll-forward | E10: ='Assets debt'!E10-'Assets debt'!E8-'Assets debt'!E9 -> 0.00 | F10: ='Assets debt'!F10-'Assets debt'!F8-'Assets debt'!F9 -> 0.00 | G10: ='Assets debt'!G10-'Assets debt'!G8-'Assets debt'!G9 -> 0.00 | H10: ='Assets debt'!H10-'Assets debt'!H8-'Assets debt'!H9 -> 0.00 | I10: ='Assets debt'!I10-'Assets debt'!I8-'Assets debt'!I9 -> 0.00 | J10: ='Assets debt'!J10-'Assets debt'!J8-'Assets debt'!J9 -> 0.00 | K10: ='Assets debt'!K10-'Assets debt'!K8-'Assets debt'!K9 -> 0.00 | L10: ='Assets debt'!L10-'Assets debt'!L8-'Assets debt'!L9 -> 0.00 | M10: ='Assets debt'!M10-'Assets debt'!M8-'Assets debt'!M9 -> 0.00 | N10: ='Assets debt'!N10-'Assets debt'!N8-'Assets debt'!N9 -> 0.00 | O10: ='Assets debt'!O10-'Assets debt'!O8-'Assets debt'!O9 -> 0.00 | P10: ='Assets debt'!P10-'Assets debt'!P8-'Assets debt'!P9 -> 0.00
C11: Debt roll-forward | E11: ='Assets debt'!E20-'Assets debt'!E18+'Assets debt'!E19 -> 0.00 | F11: ='Assets debt'!F20-'Assets debt'!F18+'Assets debt'!F19 -> 0.00 | G11: ='Assets debt'!G20-'Assets debt'!G18+'Assets debt'!G19 -> 0.00 | H11: ='Assets debt'!H20-'Assets debt'!H18+'Assets debt'!H19 -> 0.00 | I11: ='Assets debt'!I20-'Assets debt'!I18+'Assets debt'!I19 -> 0.00 | J11: ='Assets debt'!J20-'Assets debt'!J18+'Assets debt'!J19 -> 0.00 | K11: ='Assets debt'!K20-'Assets debt'!K18+'Assets debt'!K19 -> 0.00 | L11: ='Assets debt'!L20-'Assets debt'!L18+'Assets debt'!L19 -> 0.00 | M11: ='Assets debt'!M20-'Assets debt'!M18+'Assets debt'!M19 -> 0.00 | N11: ='Assets debt'!N20-'Assets debt'!N18+'Assets debt'!N19 -> 0.00 | O11: ='Assets debt'!O20-'Assets debt'!O18+'Assets debt'!O19 -> 0.00 | P11: ='Assets debt'!P20-'Assets debt'!P18+'Assets debt'!P19 -> 0.00
C12: Direct cash less indirect cash | E12: ='Working capital'!E17+'Working capital'!E26+'Working capital'!E31+'Working capital'!E32-'Assets debt'!E26-'Assets debt'!E22-'Assets debt'!E9-'Assets debt'!E19-'Cash flow'!E21 -> 0.00 | F12: ='Working capital'!F17+'Working capital'!F26+'Working capital'!F31+'Working capital'!F32-'Assets debt'!F26-'Assets debt'!F22-'Assets debt'!F9-'Assets debt'!F19-'Cash flow'!F21 -> (0.00) | G12: ='Working capital'!G17+'Working capital'!G26+'Working capital'!G31+'Working capital'!G32-'Assets debt'!G26-'Assets debt'!G22-'Assets debt'!G9-'Assets debt'!G19-'Cash flow'!G21 -> 0.00 | H12: ='Working capital'!H17+'Working capital'!H26+'Working capital'!H31+'Working capital'!H32-'Assets debt'!H26-'Assets debt'!H22-'Assets debt'!H9-'Assets debt'!H19-'Cash flow'!H21 -> 0.00 | I12: ='Working capital'!I17+'Working capital'!I26+'Working capital'!I31+'Working capital'!I32-'Assets debt'!I26-'Assets debt'!I22-'Assets debt'!I9-'Assets debt'!I19-'Cash flow'!I21 -> 0.00 | J12: ='Working capital'!J17+'Working capital'!J26+'Working capital'!J31+'Working capital'!J32-'Assets debt'!J26-'Assets debt'!J22-'Assets debt'!J9-'Assets debt'!J19-'Cash flow'!J21 -> 0.00 | K12: ='Working capital'!K17+'Working capital'!K26+'Working capital'!K31+'Working capital'!K32-'Assets debt'!K26-'Assets debt'!K22-'Assets debt'!K9-'Assets debt'!K19-'Cash flow'!K21 -> (0.00) | L12: ='Working capital'!L17+'Working capital'!L26+'Working capital'!L31+'Working capital'!L32-'Assets debt'!L26-'Assets debt'!L22-'Assets debt'!L9-'Assets debt'!L19-'Cash flow'!L21 -> 0.00 | M12: ='Working capital'!M17+'Working capital'!M26+'Working capital'!M31+'Working capital'!M32-'Assets debt'!M26-'Assets debt'!M22-'Assets debt'!M9-'Assets debt'!M19-'Cash flow'!M21 -> 0.00 | N12: ='Working capital'!N17+'Working capital'!N26+'Working capital'!N31+'Working capital'!N32-'Assets debt'!N26-'Assets debt'!N22-'Assets debt'!N9-'Assets debt'!N19-'Cash flow'!N21 -> 0.00 | O12: ='Working capital'!O17+'Working capital'!O26+'Working capital'!O31+'Working capital'!O32-'Assets debt'!O26-'Assets debt'!O22-'Assets debt'!O9-'Assets debt'!O19-'Cash flow'!O21 -> 0.00 | P12: ='Working capital'!P17+'Working capital'!P26+'Working capital'!P31+'Working capital'!P32-'Assets debt'!P26-'Assets debt'!P22-'Assets debt'!P9-'Assets debt'!P19-'Cash flow'!P21 -> 0.00
C13: Dated events less monthly forecast cash | E13: =0 -> 0.00 | F13: =0 -> 0.00 | G13: =0 -> 0.00 | H13: =0 -> 0.00 | I13: =0 -> 0.00 | J13: =0 -> 0.00 | K13: =0 -> 0.00 | L13: =0 -> 0.00 | M13: ='13 week cash'!M95-'Cash flow'!M21 -> 0.00 | N13: ='13 week cash'!N95-'Cash flow'!N21 -> 0.00 | O13: ='13 week cash'!O95-'Cash flow'!O21 -> 0.00 | P13: ='13 week cash'!P95-'Cash flow'!P21 -> (0.00)
C14: Retained earnings roll-forward | E14: ='Balance sheet'!E25-'Actual inputs'!$E$50-'P&L'!E30 -> (0.00) | F14: ='Balance sheet'!F25-'Balance sheet'!E25-'P&L'!F30 -> (0.00) | G14: ='Balance sheet'!G25-'Balance sheet'!F25-'P&L'!G30 -> 0.00 | H14: ='Balance sheet'!H25-'Balance sheet'!G25-'P&L'!H30 -> 0.00 | I14: ='Balance sheet'!I25-'Balance sheet'!H25-'P&L'!I30 -> 0.00 | J14: ='Balance sheet'!J25-'Balance sheet'!I25-'P&L'!J30 -> 0.00 | K14: ='Balance sheet'!K25-'Balance sheet'!J25-'P&L'!K30 -> 0.00 | L14: ='Balance sheet'!L25-'Balance sheet'!K25-'P&L'!L30 -> 0.00 | M14: ='Balance sheet'!M25-'Balance sheet'!L25-'P&L'!M30 -> 0.00 | N14: ='Balance sheet'!N25-'Balance sheet'!M25-'P&L'!N30 -> 0.00 | O14: ='Balance sheet'!O25-'Balance sheet'!N25-'P&L'!O30 -> 0.00 | P14: ='Balance sheet'!P25-'Balance sheet'!O25-'P&L'!P30 -> 0.00
C15: Negative new customer receipts | E15: =0 -> 0.00 | F15: =0 -> 0.00 | G15: =0 -> 0.00 | H15: =0 -> 0.00 | I15: =0 -> 0.00 | J15: =0 -> 0.00 | K15: =0 -> 0.00 | L15: =0 -> 0.00 | M15: =MIN(0,'Working capital'!M18) -> 0.00 | N15: =MIN(0,'Working capital'!N18) -> 0.00 | O15: =MIN(0,'Working capital'!O18) -> 0.00 | P15: =MIN(0,'Working capital'!P18) -> 0.00
C16: Positive new supplier payments | E16: =0 -> 0.00 | F16: =0 -> 0.00 | G16: =0 -> 0.00 | H16: =0 -> 0.00 | I16: =0 -> 0.00 | J16: =0 -> 0.00 | K16: =0 -> 0.00 | L16: =0 -> 0.00 | M16: =MAX(0,'Working capital'!M27) -> 0.00 | N16: =MAX(0,'Working capital'!N27) -> 0.00 | O16: =MAX(0,'Working capital'!O27) -> 0.00 | P16: =MAX(0,'Working capital'!P27) -> 0.00
C17: Excess internal days over available | E17: =MAX(0,'Revenue capacity'!E31-'Revenue capacity'!E27) -> 0.00 | F17: =MAX(0,'Revenue capacity'!F31-'Revenue capacity'!F27) -> 0.00 | G17: =MAX(0,'Revenue capacity'!G31-'Revenue capacity'!G27) -> 0.00 | H17: =MAX(0,'Revenue capacity'!H31-'Revenue capacity'!H27) -> 0.00 | I17: =MAX(0,'Revenue capacity'!I31-'Revenue capacity'!I27) -> 0.00 | J17: =MAX(0,'Revenue capacity'!J31-'Revenue capacity'!J27) -> 0.00 | K17: =MAX(0,'Revenue capacity'!K31-'Revenue capacity'!K27) -> 0.00 | L17: =MAX(0,'Revenue capacity'!L31-'Revenue capacity'!L27) -> 0.00 | M17: =MAX(0,'Revenue capacity'!M31-'Revenue capacity'!M27) -> 0.00 | N17: =MAX(0,'Revenue capacity'!N31-'Revenue capacity'!N27) -> 0.00 | O17: =MAX(0,'Revenue capacity'!O31-'Revenue capacity'!O27) -> 0.00 | P17: =MAX(0,'Revenue capacity'!P31-'Revenue capacity'!P27) -> 0.00
C21: AR detail less August closing AR | E21: ='Working capital'!F47-'Balance sheet'!L9 -> 0.00
C22: AP detail less August closing AP | E22: ='Working capital'!F62-'Balance sheet'!L17 -> 0.00
C23: August TB debits less credits | E23: ='Ledger Aug'!J34 -> (0.00)
C24: Maximum TB mapped line difference | E24: =MAX(MAX('Ledger Aug'!J8:J32),-MIN('Ledger Aug'!J8:J32)) -> 0.00
C25: Weekly cash roll-forward | E25: ='13 week cash'!E8+SUM('13 week cash'!E17:Q17)-'13 week cash'!Q18 -> 0.00
C26: November end-week/end-month bridge | E26: ='13 week cash'!E105-'Balance sheet'!O8 -> 0.00
C27: Opening bank timing bridge | E27: ='13 week cash'!E101-'13 week cash'!E8 -> 0.00
C28: Daily schedule less final weekly close | E28: ='13 week cash'!H204-'13 week cash'!Q18 -> 0.00
C30: Differences are displayed to €0.01. Neutral zero is a passed reconciliation.
C31: January–August dated-event checks are not applicable and displayed as zero.
C32: Ledger mapping checks compare the model with a fixed synthetic YTD snapshot.

Sheet Guide
C2: Guide
C4: ="Selected case: "&'Assumptions'!$G$4 -> Selected case: Base | H4: EUR · entirely fictional
C6: Business model and model use
C8: Every entity, record, date-linked amount and business result is synthetic. This is a demonstration, not client evidence.
C10: B2B digital services: retainers earned monthly, projects recognized at delivered days × rate, implementations recognized on completion.
C12: Jan–Aug 2026 are invented actuals. Sep–Dec use one case-selected driver build. Original budget is fixed separately.
C14: Amounts are EUR. P&L expenses and cash outflows are negative. Balance-sheet contra-asset accumulated depreciation is positive and subtracted.
C16: Ledger and bank schedules both exclude VAT: illustrative no-VAT scope with no VAT receivable/payable or gross-to-net adjustment. This is not a tax treatment claim.
C18: Illustrative current tax is 20% of positive monthly profit before tax. No loss carry-forwards, deferred tax or jurisdiction-specific rules. A debit tax position is shown as a current tax prepayment asset; only a credit tax balance is tax payable.
C20: Opening fixed assets depreciate at €2,500 monthly. New additions depreciate straight-line over 36 months from the full month of purchase, zero residual value.
C22: Debt principal amortizes €5,000 monthly. Interest is 6% annual on the opening month debt balance. No new facility or overdraft is assumed. Negative forecast cash denotes an unfunded requirement rather than a funded bank balance.
C24: Forecast AR starts with revenue × target DSO / calendar days. Scheduled opening-invoice receipts cap closing AR so new receipts cannot be negative. Unpaid opening invoices set a floor. Actual implied DSO can differ from the target. Forecast AP includes new vendor expense × DPO / calendar days plus unpaid opening invoices.
C26: Payroll accrual and prepayment balances are fixed after August. Forecast customer advances equal 55% of monthly retainer revenue.
C28: Cash receipts and vendor payments reconcile to the monthly statements. Opening AR/AP use record-specific dates; residual new activity is split 45% on day 15 and 55% on day 28.
C30: AP approval, review completion and hold states are editable, independent prerequisites. Unapproved or held opening invoices remain unpaid. Due dates calculate ageing and never grant approval.
C32: Cash week 1 begins Monday 31 August but models only 1–6 September because the opening bank balance includes the complete 31 August bank close.
C34: The weekly forecast ends 29 November. Full-month November cash includes any 30 November scheduled cash activity, shown separately in reconciliation.
C36: Forecast limitations include simplified recognition, uniform monthly drivers, no FX, no VAT, no payroll taxes beyond loaded pay, no interest on cash, and no automated financing.
C38: How to edit: change the case in Assumptions E4, then edit amber inputs. Each active driver feeds one forecast build.
C40: Negative cash is an unfunded cash requirement, not an authorized overdraft. No automatic borrowing is included.
C42: The synthetic trial balance is a fixed YTD snapshot. It is not audited, certified, imported or linked to a client ledger.
C44: Public JSON captures each evaluated case for the website. It is a static export and must be refreshed after workbook edits.
